Workbook

Sheet AVISO LEGAL
H2: Fecha de actualización: | J2: 2017-04-19
J23: www.ree.es

Sheet Maximos mensuales peninsular
O1: 28
M4: Sistema eléctrico
M5: Horizonte temporal
M6: Periodo
C8: Ene. | D8: Feb. | E8: Mar. | F8: Abr. | G8: May. | H8: Jun. | I8: Jul. | J8: Ago. | K8: Sep. | L8: Oct. | M8: Nov. | N8: Dic. | O8: =OFFSET(Año!$B$2,($O$1-1),0) -> 2017
B10: Potencia instantánea (MW) | C10: =OFFSET(Maximos!C3,0,($O$1-1)*12) -> 41381 | D10: =OFFSET(Maximos!D3,0,($O$1-1)*12) -> 36974 | E10: =OFFSET(Maximos!E3,0,($O$1-1)*12) -> 35935 | F10: =OFFSET(Maximos!F3,0,($O$1-1)*12) -> - | G10: =OFFSET(Maximos!G3,0,($O$1-1)*12) -> - | H10: =OFFSET(Maximos!H3,0,($O$1-1)*12) -> - | I10: =OFFSET(Maximos!I3,0,($O$1-1)*12) -> - | J10: =OFFSET(Maximos!J3,0,($O$1-1)*12) -> - | K10: =OFFSET(Maximos!K3,0,($O$1-1)*12) -> - | L10: =OFFSET(Maximos!L3,0,($O$1-1)*12) -> - | M10: =OFFSET(Maximos!M3,0,($O$1-1)*12) -> - | N10: =OFFSET(Maximos!N3,0,($O$1-1)*12) -> - | O10: =IF(SUM(C10:N10)=0,"-",MAX(C10:N10)) -> 41381
B11: Día | C11: =OFFSET(Maximos!C4,0,($O$1-1)*12) -> 18 | D11: =OFFSET(Maximos!D4,0,($O$1-1)*12) -> 9 | E11: =OFFSET(Maximos!E4,0,($O$1-1)*12) -> 23 | F11: =OFFSET(Maximos!F4,0,($O$1-1)*12) -> - | G11: =OFFSET(Maximos!G4,0,($O$1-1)*12) -> - | H11: =OFFSET(Maximos!H4,0,($O$1-1)*12) -> - | I11: =OFFSET(Maximos!I4,0,($O$1-1)*12) -> - | J11: =OFFSET(Maximos!J4,0,($O$1-1)*12) -> - | K11: =OFFSET(Maximos!K4,0,($O$1-1)*12) -> - | L11: =OFFSET(Maximos!L4,0,($O$1-1)*12) -> - | M11: =OFFSET(Maximos!M4,0,($O$1-1)*12) -> - | N11: =OFFSET(Maximos!N4,0,($O$1-1)*12) -> - | O11: =IF(SUM(C10:N10)=0,"-",HLOOKUP($O$10,C10:N13,2,0)&" de "&HLOOKUP($O$10,C10:N13,4,0)) -> 18 de enero
B12: Hora | C12: =OFFSET(Maximos!C5,0,($O$1-1)*12) -> 19:50 | D12: =OFFSET(Maximos!D5,0,($O$1-1)*12) -> 20:26 | E12: =OFFSET(Maximos!E5,0,($O$1-1)*12) -> 20:33 | F12: =OFFSET(Maximos!F5,0,($O$1-1)*12) -> - | G12: =OFFSET(Maximos!G5,0,($O$1-1)*12) -> - | H12: =OFFSET(Maximos!H5,0,($O$1-1)*12) -> - | I12: =OFFSET(Maximos!I5,0,($O$1-1)*12) -> - | J12: =OFFSET(Maximos!J5,0,($O$1-1)*12) -> - | K12: =OFFSET(Maximos!K5,0,($O$1-1)*12) -> - | L12: =OFFSET(Maximos!L5,0,($O$1-1)*12) -> - | M12: =OFFSET(Maximos!M5,0,($O$1-1)*12) -> - | N12: =OFFSET(Maximos!N5,0,($O$1-1)*12) -> - | O12: =HLOOKUP($O$10,C10:N12,3,0) -> 19:50
C13: enero | D13: febrero | E13: marzo | F13: abril | G13: mayo | H13: junio | I13: julio | J13: agosto | K13: septiembre | L13: octubre | M13: noviembre | N13: diciembre
C16: Ene. | D16: Feb. | E16: Mar. | F16: Abr. | G16: May. | H16: Jun. | I16: Jul. | J16: Ago. | K16: Sep. | L16: Oct. | M16: Nov. | N16: Dic. | O16: =OFFSET(Año!$B$2,($O$1-1),0) -> 2017
B18: Demanda horaria (MWh) | C18: =OFFSET(Maximos!C7,0,($O$1-1)*12) -> 41015 | D18: =OFFSET(Maximos!D7,0,($O$1-1)*12) -> 36732 | E18: =OFFSET(Maximos!E7,0,($O$1-1)*12) -> 35575 | F18: =OFFSET(Maximos!F7,0,($O$1-1)*12) -> - | G18: =OFFSET(Maximos!G7,0,($O$1-1)*12) -> - | H18: =OFFSET(Maximos!H7,0,($O$1-1)*12) -> - | I18: =OFFSET(Maximos!I7,0,($O$1-1)*12) -> - | J18: =OFFSET(Maximos!J7,0,($O$1-1)*12) -> - | K18: =OFFSET(Maximos!K7,0,($O$1-1)*12) -> - | L18: =OFFSET(Maximos!L7,0,($O$1-1)*12) -> - | M18: =OFFSET(Maximos!M7,0,($O$1-1)*12) -> - | N18: =OFFSET(Maximos!N7,0,($O$1-1)*12) -> - | O18: =MAX(C18:N18) -> 41015
B19: Día | C19: =OFFSET(Maximos!C8,0,($O$1-1)*12) -> 18 | D19: =OFFSET(Maximos!D8,0,($O$1-1)*12) -> 9 | E19: =OFFSET(Maximos!E8,0,($O$1-1)*12) -> 23 | F19: =OFFSET(Maximos!F8,0,($O$1-1)*12) -> - | G19: =OFFSET(Maximos!G8,0,($O$1-1)*12) -> - | H19: =OFFSET(Maximos!H8,0,($O$1-1)*12) -> - | I19: =OFFSET(Maximos!I8,0,($O$1-1)*12) -> - | J19: =OFFSET(Maximos!J8,0,($O$1-1)*12) -> - | K19: =OFFSET(Maximos!K8,0,($O$1-1)*12) -> - | L19: =OFFSET(Maximos!L8,0,($O$1-1)*12) -> - | M19: =OFFSET(Maximos!M8,0,($O$1-1)*12) -> - | N19: =OFFSET(Maximos!N8,0,($O$1-1)*12) -> - | O19: =HLOOKUP($O$18,C18:N21,2,0)&" de "&HLOOKUP($O$18,C18:N21,4,0) -> 18 de enero
B20: Hora | C20: =OFFSET(Maximos!C9,0,($O$1-1)*12) -> 21 | D20: =OFFSET(Maximos!D9,0,($O$1-1)*12) -> 21 | E20: =OFFSET(Maximos!E9,0,($O$1-1)*12) -> 21 | F20: =OFFSET(Maximos!F9,0,($O$1-1)*12) -> - | G20: =OFFSET(Maximos!G9,0,($O$1-1)*12) -> - | H20: =OFFSET(Maximos!H9,0,($O$1-1)*12) -> - | I20: =OFFSET(Maximos!I9,0,($O$1-1)*12) -> - | J20: =OFFSET(Maximos!J9,0,($O$1-1)*12) -> - | K20: =OFFSET(Maximos!K9,0,($O$1-1)*12) -> - | L20: =OFFSET(Maximos!L9,0,($O$1-1)*12) -> - | M20: =OFFSET(Maximos!M9,0,($O$1-1)*12) -> - | N20: =OFFSET(Maximos!N9,0,($O$1-1)*12) -> - | O20: =HLOOKUP($O$18,C18:N20,3,0) -> 21
C21: enero | D21: febrero | E21: marzo | F21: abril | G21: mayo | H21: junio | I21: julio | J21: agosto | K21: septiembre | L21: octubre | M21: noviembre | N21: diciembre
C24: Ene. | D24: Feb. | E24: Mar. | F24: Abr. | G24: May. | H24: Jun. | I24: Jul. | J24: Ago. | K24: Sep. | L24: Oct. | M24: Nov. | N24: Dic. | O24: =OFFSET(Año!$B$2,($O$1-1),0) -> 2017
B26: Demanda diaria (GWh) | C26: =OFFSET(Maximos!C11,0,($O$1-1)*12) -> 834.729633 | D26: =OFFSET(Maximos!D11,0,($O$1-1)*12) -> 767.353001 | E26: =OFFSET(Maximos!E11,0,($O$1-1)*12) -> 734.5814 | F26: =OFFSET(Maximos!F11,0,($O$1-1)*12) -> - | G26: =OFFSET(Maximos!G11,0,($O$1-1)*12) -> - | H26: =OFFSET(Maximos!H11,0,($O$1-1)*12) -> - | I26: =OFFSET(Maximos!I11,0,($O$1-1)*12) -> - | J26: =OFFSET(Maximos!J11,0,($O$1-1)*12) -> - | K26: =OFFSET(Maximos!K11,0,($O$1-1)*12) -> - | L26: =OFFSET(Maximos!L11,0,($O$1-1)*12) -> - | M26: =OFFSET(Maximos!M11,0,($O$1-1)*12) -> - | N26: =OFFSET(Maximos!N11,0,($O$1-1)*12) -> - | O26: =MAX(C26:N26) -> 834.729633
B27: Día | C27: =OFFSET(Maximos!C12,0,($O$1-1)*12) -> 18 | D27: =OFFSET(Maximos!D12,0,($O$1-1)*12) -> 10 | E27: =OFFSET(Maximos!E12,0,($O$1-1)*12) -> 24 | F27: =OFFSET(Maximos!F12,0,($O$1-1)*12) -> - | G27: =OFFSET(Maximos!G12,0,($O$1-1)*12) -> - | H27: =OFFSET(Maximos!H12,0,($O$1-1)*12) -> - | I27: =OFFSET(Maximos!I12,0,($O$1-1)*12) -> - | J27: =OFFSET(Maximos!J12,0,($O$1-1)*12) -> - | K27: =OFFSET(Maximos!K12,0,($O$1-1)*12) -> - | L27: =OFFSET(Maximos!L12,0,($O$1-1)*12) -> - | M27: =OFFSET(Maximos!M12,0,($O$1-1)*12) -> - | N27: =OFFSET(Maximos!N12,0,($O$1-1)*12) -> - | O27: =HLOOKUP($O$26,C26:N28,2,0)&" de "&HLOOKUP($O$26,C26:N28,3,0) -> 18 de enero
C28: enero | D28: febrero | E28: marzo | F28: abril | G28: mayo | H28: junio | I28: julio | J28: agosto | K28: septiembre | L28: octubre | M28: noviembre | N28: diciembre

Sheet Maximos anuales peninsular
L1: 6
K4: Sistema eléctrico
K5: Horizonte temporal
K6: Periodo
C8: =OFFSET(Maximos!C46,0,($L$1-1)*10) -> 2015 | D8: =OFFSET(#REF!,0,($L$1-1)*12) ->  | E8: =OFFSET(Maximos!E46,0,($L$1-1)*10) -> 2016 | F8: =OFFSET(#REF!,0,($L$1-1)*12) ->  | G8: =OFFSET(Maximos!G46,0,($L$1-1)*10) -> 2017 | H8: =OFFSET(#REF!,0,($L$1-1)*12) ->  | I8: =OFFSET(Maximos!I46,0,($L$1-1)*10) -> 2018 | J8: =OFFSET(#REF!,0,($L$1-1)*12) ->  | K8: =OFFSET(Maximos!K46,0,($L$1-1)*10) -> 2019
C10: Invierno | D10: Verano | E10: Invierno | F10: Verano | G10: Invierno | H10: Verano | I10: Invierno | J10: Verano | K10: Invierno | L10: Verano
B11: Potencia instantánea (MW) | C11: =OFFSET(Maximos!C48,0,($L$1-1)*10) -> 40726 | D11: =OFFSET(Maximos!D48,0,($L$1-1)*10) -> 40192 | E11: =OFFSET(Maximos!E48,0,($L$1-1)*10) -> 38464 | F11: =OFFSET(Maximos!F48,0,($L$1-1)*10) -> 40489 | G11: =OFFSET(Maximos!G48,0,($L$1-1)*10) -> 41381 | H11: =OFFSET(Maximos!H48,0,($L$1-1)*10) -> - | I11: =OFFSET(Maximos!I48,0,($L$1-1)*10) -> - | J11: =OFFSET(Maximos!J48,0,($L$1-1)*10) -> - | K11: =OFFSET(Maximos!K48,0,($L$1-1)*10) -> - | L11: =OFFSET(Maximos!L48,0,($L$1-1)*10) -> -
B12: Día | C12: =OFFSET(Maximos!C49,0,($L$1-1)*10) -> 4 de febrero | D12: =OFFSET(Maximos!D49,0,($L$1-1)*10) -> 21 de julio | E12: =OFFSET(Maximos!E49,0,($L$1-1)*10) -> 17 de febrero | F12: =OFFSET(Maximos!F49,0,($L$1-1)*10) -> 6 de septiembre | G12: =OFFSET(Maximos!G49,0,($L$1-1)*10) -> 18 de enero | H12: =OFFSET(Maximos!H49,0,($L$1-1)*10) -> - | I12: =OFFSET(Maximos!I49,0,($L$1-1)*10) -> - | J12: =OFFSET(Maximos!J49,0,($L$1-1)*10) -> - | K12: =OFFSET(Maximos!K49,0,($L$1-1)*10) -> - | L12: =OFFSET(Maximos!L49,0,($L$1-1)*10) -> -
B13: Hora | C13: =OFFSET(Maximos!C50,0,($L$1-1)*10) -> 19:56:00 | D13: =OFFSET(Maximos!D50,0,($L$1-1)*10) -> 13:33:00 | E13: =OFFSET(Maximos!E50,0,($L$1-1)*10) -> 20:37:00 | F13: =OFFSET(Maximos!F50,0,($L$1-1)*10) -> 13:32 | G13: =OFFSET(Maximos!G50,0,($L$1-1)*10) -> 19:50 | H13: =OFFSET(Maximos!H50,0,($L$1-1)*10) -> - | I13: =OFFSET(Maximos!I50,0,($L$1-1)*10) -> - | J13: =OFFSET(Maximos!J50,0,($L$1-1)*10) -> - | K13: =OFFSET(Maximos!K50,0,($L$1-1)*10) -> - | L13: =OFFSET(Maximos!L50,0,($L$1-1)*10) -> -
C17: =OFFSET(Maximos!C51,0,($L$1-1)*10) -> 2015 | D17: =OFFSET(Maximos!D48,0,($L$1-1)*12) -> 0 | E17: =OFFSET(Maximos!E51,0,($L$1-1)*10) -> 2016 | F17: =OFFSET(Maximos!F48,0,($L$1-1)*12) -> 0 | G17: =OFFSET(Maximos!G51,0,($L$1-1)*10) -> 2017 | H17: =OFFSET(Maximos!H48,0,($L$1-1)*12) -> 0 | I17: =OFFSET(Maximos!I51,0,($L$1-1)*10) -> 2018 | J17: =OFFSET(Maximos!J48,0,($L$1-1)*12) -> 0 | K17: =OFFSET(Maximos!K51,0,($L$1-1)*10) -> 2019 | L17: =OFFSET(Maximos!L48,0,($L$1-1)*12) -> 0
C19: Invierno | D19: Verano | E19: Invierno | F19: Verano | G19: Invierno | H19: Verano | I19: Invierno | J19: Verano | K19: Invierno | L19: Verano
B21: Demanda horaria (MWh) | C21: =OFFSET(Maximos!C53,0,($L$1-1)*10) -> 40323.77 | D21: =OFFSET(Maximos!D53,0,($L$1-1)*10) -> 39927.6 | E21: =OFFSET(Maximos!E53,0,($L$1-1)*10) -> 38239 | F21: =OFFSET(Maximos!F53,0,($L$1-1)*10) -> 40144 | G21: =OFFSET(Maximos!G53,0,($L$1-1)*10) -> 41015 | H21: =OFFSET(Maximos!H53,0,($L$1-1)*10) -> - | I21: =OFFSET(Maximos!I53,0,($L$1-1)*10) -> - | J21: =OFFSET(Maximos!J53,0,($L$1-1)*10) -> - | K21: =OFFSET(Maximos!K53,0,($L$1-1)*10) -> - | L21: =OFFSET(Maximos!L53,0,($L$1-1)*10) -> -
B22: Día | C22: =OFFSET(Maximos!C54,0,($L$1-1)*10) -> 4 de febrero | D22: =OFFSET(Maximos!D54,0,($L$1-1)*10) -> 21 de julio | E22: =OFFSET(Maximos!E54,0,($L$1-1)*10) -> 17 de febrero | F22: =OFFSET(Maximos!F54,0,($L$1-1)*10) -> 6 de septiembre | G22: =OFFSET(Maximos!G54,0,($L$1-1)*10) -> 18 de enero | H22: =OFFSET(Maximos!H54,0,($L$1-1)*10) -> - | I22: =OFFSET(Maximos!I54,0,($L$1-1)*10) -> - | J22: =OFFSET(Maximos!J54,0,($L$1-1)*10) -> - | K22: =OFFSET(Maximos!K54,0,($L$1-1)*10) -> - | L22: =OFFSET(Maximos!L54,0,($L$1-1)*10) -> -
B23: Hora | C23: =OFFSET(Maximos!C55,0,($L$1-1)*10) -> 21 | D23: =OFFSET(Maximos!D55,0,($L$1-1)*10) -> 14 | E23: =OFFSET(Maximos!E55,0,($L$1-1)*10) -> 21 | F23: =OFFSET(Maximos!F55,0,($L$1-1)*10) -> 14 | G23: =OFFSET(Maximos!G55,0,($L$1-1)*10) -> 21 | H23: =OFFSET(Maximos!H55,0,($L$1-1)*10) -> - | I23: =OFFSET(Maximos!I55,0,($L$1-1)*10) -> - | J23: =OFFSET(Maximos!J55,0,($L$1-1)*10) -> - | K23: =OFFSET(Maximos!K55,0,($L$1-1)*10) -> - | L23: =OFFSET(Maximos!L55,0,($L$1-1)*10) -> -
C27: =OFFSET(Maximos!C56,0,($L$1-1)*10) -> 2015 | D27: =OFFSET(#REF!,0,($L$1-1)*12) ->  | E27: =OFFSET(Maximos!E56,0,($L$1-1)*10) -> 2016 | F27: =OFFSET(#REF!,0,($L$1-1)*12) ->  | G27: =OFFSET(Maximos!G56,0,($L$1-1)*10) -> 2017 | H27: =OFFSET(#REF!,0,($L$1-1)*12) ->  | I27: =OFFSET(Maximos!I56,0,($L$1-1)*10) -> 2018 | J27: =OFFSET(#REF!,0,($L$1-1)*12) ->  | K27: =OFFSET(Maximos!K56,0,($L$1-1)*10) -> 2019 | L27: =OFFSET(#REF!,0,($L$1-1)*12) -> 
C29: Invierno | D29: Verano | E29: Invierno | F29: Verano | G29: Invierno | H29: Verano | I29: Invierno | J29: Verano | K29: Invierno | L29: Verano
B30: Demanda diaria (GWh) | C30: =OFFSET(Maximos!C58,0,($L$1-1)*10) -> 824.018176 | D30: =OFFSET(Maximos!D58,0,($L$1-1)*10) -> 813.987791 | E30: =OFFSET(Maximos!E58,0,($L$1-1)*10) -> 782.06323 | F30: =OFFSET(Maximos!F58,0,($L$1-1)*10) -> 816.260515 | G30: =OFFSET(Maximos!G58,0,($L$1-1)*10) -> 834.729633 | H30: =OFFSET(Maximos!H58,0,($L$1-1)*10) -> - | I30: =OFFSET(Maximos!I58,0,($L$1-1)*10) -> - | J30: =OFFSET(Maximos!J58,0,($L$1-1)*10) -> - | K30: =OFFSET(Maximos!K58,0,($L$1-1)*10) -> - | L30: =OFFSET(Maximos!L58,0,($L$1-1)*10) -> -
B31: Día | C31: =OFFSET(Maximos!C59,0,($L$1-1)*10) -> 4 de febrero | D31: =OFFSET(Maximos!D59,0,($L$1-1)*10) -> 21 de julio | E31: =OFFSET(Maximos!E59,0,($L$1-1)*10) -> 18 de febrero | F31: =OFFSET(Maximos!F59,0,($L$1-1)*10) -> 6 de septiembre | G31: =OFFSET(Maximos!G59,0,($L$1-1)*10) -> 18 de enero | H31: =OFFSET(Maximos!H59,0,($L$1-1)*10) -> - | I31: =OFFSET(Maximos!I59,0,($L$1-1)*10) -> - | J31: =OFFSET(Maximos!J59,0,($L$1-1)*10) -> - | K31: =OFFSET(Maximos!K59,0,($L$1-1)*10) -> - | L31: =OFFSET(Maximos!L59,0,($L$1-1)*10) -> -
B33: El periodo de invierno comprende los meses de enero a mayo y de octubre a diciembre. El periodo de verano comprende los meses de junio a septiembre. | C33: Verano (junio - septiembre)

Sheet Maximos mensuales Baleares
O1: 12
M4: Sistema eléctrico
M5: Horizonte temporal
M6: Periodo
C8: Ene. | D8: Feb. | E8: Mar. | F8: Abr. | G8: May. | H8: Jun. | I8: Jul. | J8: Ago. | K8: Sep. | L8: Oct. | M8: Nov. | N8: Dic. | O8: =OFFSET(Año!$B$18,($O$1-1),0) -> 2017
B10: Demanda horaria (MWh) | C10: =OFFSET(Maximos!C15,0,($O$1-1)*12) -> 973 | D10: =OFFSET(Maximos!D15,0,($O$1-1)*12) -> 839 | E10: =OFFSET(Maximos!E15,0,($O$1-1)*12) -> 799 | F10: =OFFSET(Maximos!F15,0,($O$1-1)*12) -> - | G10: =OFFSET(Maximos!G15,0,($O$1-1)*12) -> - | H10: =OFFSET(Maximos!H15,0,($O$1-1)*12) -> - | I10: =OFFSET(Maximos!I15,0,($O$1-1)*12) -> - | J10: =OFFSET(Maximos!J15,0,($O$1-1)*12) -> - | K10: =OFFSET(Maximos!K15,0,($O$1-1)*12) -> - | L10: =OFFSET(Maximos!L15,0,($O$1-1)*12) -> - | M10: =OFFSET(Maximos!M15,0,($O$1-1)*12) -> - | N10: =OFFSET(Maximos!N15,0,($O$1-1)*12) -> - | O10: =MAX(C10:N10) -> 973
B11: Día | C11: =OFFSET(Maximos!C16,0,($O$1-1)*12) -> 17 | D11: =OFFSET(Maximos!D16,0,($O$1-1)*12) -> 9 | E11: =OFFSET(Maximos!E16,0,($O$1-1)*12) -> 24 | F11: =OFFSET(Maximos!F16,0,($O$1-1)*12) -> - | G11: =OFFSET(Maximos!G16,0,($O$1-1)*12) -> - | H11: =OFFSET(Maximos!H16,0,($O$1-1)*12) -> - | I11: =OFFSET(Maximos!I16,0,($O$1-1)*12) -> - | J11: =OFFSET(Maximos!J16,0,($O$1-1)*12) -> - | K11: =OFFSET(Maximos!K16,0,($O$1-1)*12) -> - | L11: =OFFSET(Maximos!L16,0,($O$1-1)*12) -> - | M11: =OFFSET(Maximos!M16,0,($O$1-1)*12) -> - | N11: =OFFSET(Maximos!N16,0,($O$1-1)*12) -> - | O11: =HLOOKUP($O$10,C10:N13,2,0)&" de "&HLOOKUP($O$10,C10:N13,4,0) -> 17 de enero
B12: Hora | C12: =OFFSET(Maximos!C17,0,($O$1-1)*12) -> 21 | D12: =OFFSET(Maximos!D17,0,($O$1-1)*12) -> 21 | E12: =OFFSET(Maximos!E17,0,($O$1-1)*12) -> 21 | F12: =OFFSET(Maximos!F17,0,($O$1-1)*12) -> - | G12: =OFFSET(Maximos!G17,0,($O$1-1)*12) -> - | H12: =OFFSET(Maximos!H17,0,($O$1-1)*12) -> - | I12: =OFFSET(Maximos!I17,0,($O$1-1)*12) -> - | J12: =OFFSET(Maximos!J17,0,($O$1-1)*12) -> - | K12: =OFFSET(Maximos!K17,0,($O$1-1)*12) -> - | L12: =OFFSET(Maximos!L17,0,($O$1-1)*12) -> - | M12: =OFFSET(Maximos!M17,0,($O$1-1)*12) -> - | N12: =OFFSET(Maximos!N17,0,($O$1-1)*12) -> - | O12: =HLOOKUP($O$10,C10:N12,3,0) -> 21
C13: enero | D13: febrero | E13: marzo | F13: abril | G13: mayo | H13: junio | I13: julio | J13: agosto | K13: septiembre | L13: octubre | M13: noviembre | N13: diciembre
C16: Ene. | D16: Feb. | E16: Mar. | F16: Abr. | G16: May. | H16: Jun. | I16: Jul. | J16: Ago. | K16: Sep. | L16: Oct. | M16: Nov. | N16: Dic. | O16: =OFFSET(Año!$B$18,($O$1-1),0) -> 2017
B18: Demanda diaria (MWh) | C18: =OFFSET(Maximos!C19,0,($O$1-1)*12) -> 17758.978 | D18: =OFFSET(Maximos!D19,0,($O$1-1)*12) -> 15209.186 | E18: =OFFSET(Maximos!E19,0,($O$1-1)*12) -> 14738.481 | F18: =OFFSET(Maximos!F19,0,($O$1-1)*12) -> - | G18: =OFFSET(Maximos!G19,0,($O$1-1)*12) -> - | H18: =OFFSET(Maximos!H19,0,($O$1-1)*12) -> - | I18: =OFFSET(Maximos!I19,0,($O$1-1)*12) -> - | J18: =OFFSET(Maximos!J19,0,($O$1-1)*12) -> - | K18: =OFFSET(Maximos!K19,0,($O$1-1)*12) -> - | L18: =OFFSET(Maximos!L19,0,($O$1-1)*12) -> - | M18: =OFFSET(Maximos!M19,0,($O$1-1)*12) -> - | N18: =OFFSET(Maximos!N19,0,($O$1-1)*12) -> - | O18: =MAX(C18:N18) -> 17758.978
B19: Día | C19: =OFFSET(Maximos!C20,0,($O$1-1)*12) -> 18 | D19: =OFFSET(Maximos!D20,0,($O$1-1)*12) -> 10 | E19: =OFFSET(Maximos!E20,0,($O$1-1)*12) -> 24 | F19: =OFFSET(Maximos!F20,0,($O$1-1)*12) -> - | G19: =OFFSET(Maximos!G20,0,($O$1-1)*12) -> - | H19: =OFFSET(Maximos!H20,0,($O$1-1)*12) -> - | I19: =OFFSET(Maximos!I20,0,($O$1-1)*12) -> - | J19: =OFFSET(Maximos!J20,0,($O$1-1)*12) -> - | K19: =OFFSET(Maximos!K20,0,($O$1-1)*12) -> - | L19: =OFFSET(Maximos!L20,0,($O$1-1)*12) -> - | M19: =OFFSET(Maximos!M20,0,($O$1-1)*12) -> - | N19: =OFFSET(Maximos!N20,0,($O$1-1)*12) -> - | O19: =HLOOKUP($O$18,C18:N20,2,0)&" de "&HLOOKUP($O$18,C18:N20,3,0) -> 18 de enero
C20: enero | D20: febrero | E20: marzo | F20: abril | G20: mayo | H20: junio | I20: julio | J20: agosto | K20: septiembre | L20: octubre | M20: noviembre | N20: diciembre

Sheet Maximos anuales Baleares
L1: 3
K4: Sistema eléctrico
K5: Horizonte temporal
K6: Periodo
C8: =OFFSET(Maximos!C61,0,($L$1-1)*10) -> 2016 | D8: =OFFSET(Maximos!D48,0,($L$1-1)*12) -> - | E8: =OFFSET(Maximos!E61,0,($L$1-1)*10) -> 2017 | F8: =OFFSET(Maximos!F48,0,($L$1-1)*12) -> - | G8: =OFFSET(Maximos!G61,0,($L$1-1)*10) -> 2018 | H8: =OFFSET(Maximos!H48,0,($L$1-1)*12) -> - | I8: =OFFSET(Maximos!I61,0,($L$1-1)*10) -> 2019 | J8: =OFFSET(Maximos!J48,0,($L$1-1)*12) -> - | K8: =OFFSET(Maximos!K61,0,($L$1-1)*10) -> 2020 | L8: =OFFSET(Maximos!L48,0,($L$1-1)*12) -> 40778.8672
C10: Invierno | D10: Verano | E10: Invierno | F10: Verano | G10: Invierno | H10: Verano | I10: Invierno | J10: Verano | K10: Invierno | L10: Verano
B12: Demanda horaria (MWh) | C12: =OFFSET(Maximos!C63,0,($L$1-1)*10) -> 931 | D12: =OFFSET(Maximos!D63,0,($L$1-1)*10) -> 1148 | E12: =OFFSET(Maximos!E63,0,($L$1-1)*10) -> 973 | F12: =OFFSET(Maximos!F63,0,($L$1-1)*10) -> - | G12: =OFFSET(Maximos!G63,0,($L$1-1)*10) -> - | H12: =OFFSET(Maximos!H63,0,($L$1-1)*10) -> - | I12: =OFFSET(Maximos!I63,0,($L$1-1)*10) -> - | J12: =OFFSET(Maximos!J63,0,($L$1-1)*10) -> - | K12: =OFFSET(Maximos!K63,0,($L$1-1)*10) -> - | L12: =OFFSET(Maximos!L63,0,($L$1-1)*10) -> -
B13: Día | C13: =OFFSET(Maximos!C64,0,($L$1-1)*10) -> 4 de octubre | D13: =OFFSET(Maximos!D64,0,($L$1-1)*10) -> 4 de agosto | E13: =OFFSET(Maximos!E64,0,($L$1-1)*10) -> 17 de enero | F13: =OFFSET(Maximos!F64,0,($L$1-1)*10) -> - | G13: =OFFSET(Maximos!G64,0,($L$1-1)*10) -> - | H13: =OFFSET(Maximos!H64,0,($L$1-1)*10) -> - | I13: =OFFSET(Maximos!I64,0,($L$1-1)*10) -> - | J13: =OFFSET(Maximos!J64,0,($L$1-1)*10) -> - | K13: =OFFSET(Maximos!K64,0,($L$1-1)*10) -> - | L13: =OFFSET(Maximos!L64,0,($L$1-1)*10) -> -
B14: Hora | C14: =OFFSET(Maximos!C65,0,($L$1-1)*10) -> 21 | D14: =OFFSET(Maximos!D65,0,($L$1-1)*10) -> 22 | E14: =OFFSET(Maximos!E65,0,($L$1-1)*10) -> 21 | F14: =OFFSET(Maximos!F65,0,($L$1-1)*10) -> - | G14: =OFFSET(Maximos!G65,0,($L$1-1)*10) -> - | H14: =OFFSET(Maximos!H65,0,($L$1-1)*10) -> - | I14: =OFFSET(Maximos!I65,0,($L$1-1)*10) -> - | J14: =OFFSET(Maximos!J65,0,($L$1-1)*10) -> - | K14: =OFFSET(Maximos!K65,0,($L$1-1)*10) -> - | L14: =OFFSET(Maximos!L65,0,($L$1-1)*10) -> -
C18: =OFFSET(Maximos!C66,0,($L$1-1)*10) -> 2016 | D18: =OFFSET(#REF!,0,($L$1-1)*12) ->  | E18: =OFFSET(Maximos!E66,0,($L$1-1)*10) -> 2017 | F18: =OFFSET(#REF!,0,($L$1-1)*12) ->  | G18: =OFFSET(Maximos!G66,0,($L$1-1)*10) -> 2018 | H18: =OFFSET(#REF!,0,($L$1-1)*12) ->  | I18: =OFFSET(Maximos!I66,0,($L$1-1)*10) -> 2019 | J18: =OFFSET(#REF!,0,($L$1-1)*12) ->  | K18: =OFFSET(Maximos!K66,0,($L$1-1)*10) -> 2020 | L18: =OFFSET(#REF!,0,($L$1-1)*12) -> 
C20: Invierno | D20: Verano | E20: Invierno | F20: Verano | G20: Invierno | H20: Verano | I20: Invierno | J20: Verano | K20: Invierno | L20: Verano
B21: Demanda diaria (MWh) | C21: =OFFSET(Maximos!C68,0,($L$1-1)*10) -> 17452.96 | D21: =OFFSET(Maximos!D68,0,($L$1-1)*10) -> 23168.428 | E21: =OFFSET(Maximos!E68,0,($L$1-1)*10) -> 17758.978 | F21: =OFFSET(Maximos!F68,0,($L$1-1)*10) -> - | G21: =OFFSET(Maximos!G68,0,($L$1-1)*10) -> - | H21: =OFFSET(Maximos!H68,0,($L$1-1)*10) -> - | I21: =OFFSET(Maximos!I68,0,($L$1-1)*10) -> - | J21: =OFFSET(Maximos!J68,0,($L$1-1)*10) -> - | K21: =OFFSET(Maximos!K68,0,($L$1-1)*10) -> - | L21: =OFFSET(Maximos!L68,0,($L$1-1)*10) -> -
B22: Día | C22: =OFFSET(Maximos!C69,0,($L$1-1)*10) -> 5 de octubre | D22: =OFFSET(Maximos!D69,0,($L$1-1)*10) -> 4 de agosto | E22: =OFFSET(Maximos!E69,0,($L$1-1)*10) -> 18 de enero | F22: =OFFSET(Maximos!F69,0,($L$1-1)*10) -> - | G22: =OFFSET(Maximos!G69,0,($L$1-1)*10) -> - | H22: =OFFSET(Maximos!H69,0,($L$1-1)*10) -> - | I22: =OFFSET(Maximos!I69,0,($L$1-1)*10) -> - | J22: =OFFSET(Maximos!J69,0,($L$1-1)*10) -> - | K22: =OFFSET(Maximos!K69,0,($L$1-1)*10) -> - | L22: =OFFSET(Maximos!L69,0,($L$1-1)*10) -> -
B24: El periodo de invierno comprende los meses de enero a mayo y de octubre a diciembre. El periodo de verano comprende los meses de junio a septiembre. | C24: Verano (junio - septiembre)

Sheet Maximos mensuales Canarias
O1: 12
M4: Sistema eléctrico
M5: Horizonte temporal
M6: Periodo
C8: Ene. | D8: Feb. | E8: Mar. | F8: Abr. | G8: May. | H8: Jun. | I8: Jul. | J8: Ago. | K8: Sep. | L8: Oct. | M8: Nov. | N8: Dic. | O8: =OFFSET(Año!$B$18,($O$1-1),0) -> 2017
B10: Demanda horaria (MWh) | C10: =OFFSET(Maximos!C23,0,($O$1-1)*12) -> 1341 | D10: =OFFSET(Maximos!D23,0,($O$1-1)*12) -> 1332 | E10: =OFFSET(Maximos!E23,0,($O$1-1)*12) -> 1313 | F10: =OFFSET(Maximos!F23,0,($O$1-1)*12) -> - | G10: =OFFSET(Maximos!G23,0,($O$1-1)*12) -> - | H10: =OFFSET(Maximos!H23,0,($O$1-1)*12) -> - | I10: =OFFSET(Maximos!I23,0,($O$1-1)*12) -> - | J10: =OFFSET(Maximos!J23,0,($O$1-1)*12) -> - | K10: =OFFSET(Maximos!K23,0,($O$1-1)*12) -> - | L10: =OFFSET(Maximos!L23,0,($O$1-1)*12) -> - | M10: =OFFSET(Maximos!M23,0,($O$1-1)*12) -> - | N10: =OFFSET(Maximos!N23,0,($O$1-1)*12) -> - | O10: =MAX(C10:N10) -> 1341
B11: Día | C11: =OFFSET(Maximos!C24,0,($O$1-1)*12) -> 17 | D11: =OFFSET(Maximos!D24,0,($O$1-1)*12) -> 21 | E11: =OFFSET(Maximos!E24,0,($O$1-1)*12) -> 9 | F11: =OFFSET(Maximos!F24,0,($O$1-1)*12) -> - | G11: =OFFSET(Maximos!G24,0,($O$1-1)*12) -> - | H11: =OFFSET(Maximos!H24,0,($O$1-1)*12) -> - | I11: =OFFSET(Maximos!I24,0,($O$1-1)*12) -> - | J11: =OFFSET(Maximos!J24,0,($O$1-1)*12) -> - | K11: =OFFSET(Maximos!K24,0,($O$1-1)*12) -> - | L11: =OFFSET(Maximos!L24,0,($O$1-1)*12) -> - | M11: =OFFSET(Maximos!M24,0,($O$1-1)*12) -> - | N11: =OFFSET(Maximos!N24,0,($O$1-1)*12) -> - | O11: =HLOOKUP($O$10,C10:N13,2,0)&" de "&HLOOKUP($O$10,C10:N13,4,0) -> 17 de enero
B12: Hora | C12: =OFFSET(Maximos!C25,0,($O$1-1)*12) -> 21 | D12: =OFFSET(Maximos!D25,0,($O$1-1)*12) -> 21 | E12: =OFFSET(Maximos!E25,0,($O$1-1)*12) -> 21 | F12: =OFFSET(Maximos!F25,0,($O$1-1)*12) -> - | G12: =OFFSET(Maximos!G25,0,($O$1-1)*12) -> - | H12: =OFFSET(Maximos!H25,0,($O$1-1)*12) -> - | I12: =OFFSET(Maximos!I25,0,($O$1-1)*12) -> - | J12: =OFFSET(Maximos!J25,0,($O$1-1)*12) -> - | K12: =OFFSET(Maximos!K25,0,($O$1-1)*12) -> - | L12: =OFFSET(Maximos!L25,0,($O$1-1)*12) -> - | M12: =OFFSET(Maximos!M25,0,($O$1-1)*12) -> - | N12: =OFFSET(Maximos!N25,0,($O$1-1)*12) -> - | O12: =HLOOKUP($O$10,C10:N12,3,0) -> 21
C13: enero | D13: febrero | E13: marzo | F13: abril | G13: mayo | H13: junio | I13: julio | J13: agosto | K13: septiembre | L13: octubre | M13: noviembre | N13: diciembre
C16: Ene. | D16: Feb. | E16: Mar. | F16: Abr. | G16: May. | H16: Jun. | I16: Jul. | J16: Ago. | K16: Sep. | L16: Oct. | M16: Nov. | N16: Dic. | O16: =OFFSET(Año!$B$18,($O$1-1),0) -> 2017
B18: Demanda diaria (MWh) | C18: =OFFSET(Maximos!C27,0,($O$1-1)*12) -> 25131.681 | D18: =OFFSET(Maximos!D27,0,($O$1-1)*12) -> 24936.843 | E18: =OFFSET(Maximos!E27,0,($O$1-1)*12) -> 25273.014 | F18: =OFFSET(Maximos!F27,0,($O$1-1)*12) -> - | G18: =OFFSET(Maximos!G27,0,($O$1-1)*12) -> - | H18: =OFFSET(Maximos!H27,0,($O$1-1)*12) -> - | I18: =OFFSET(Maximos!I27,0,($O$1-1)*12) -> - | J18: =OFFSET(Maximos!J27,0,($O$1-1)*12) -> - | K18: =OFFSET(Maximos!K27,0,($O$1-1)*12) -> - | L18: =OFFSET(Maximos!L27,0,($O$1-1)*12) -> - | M18: =OFFSET(Maximos!M27,0,($O$1-1)*12) -> - | N18: =OFFSET(Maximos!N27,0,($O$1-1)*12) -> - | O18: =MAX(C18:N18) -> 25273.014
B19: Día | C19: =OFFSET(Maximos!C28,0,($O$1-1)*12) -> 5 | D19: =OFFSET(Maximos!D28,0,($O$1-1)*12) -> 22 | E19: =OFFSET(Maximos!E28,0,($O$1-1)*12) -> 4 | F19: =OFFSET(Maximos!F28,0,($O$1-1)*12) -> - | G19: =OFFSET(Maximos!G28,0,($O$1-1)*12) -> - | H19: =OFFSET(Maximos!H28,0,($O$1-1)*12) -> - | I19: =OFFSET(Maximos!I28,0,($O$1-1)*12) -> - | J19: =OFFSET(Maximos!J28,0,($O$1-1)*12) -> - | K19: =OFFSET(Maximos!K28,0,($O$1-1)*12) -> - | L19: =OFFSET(Maximos!L28,0,($O$1-1)*12) -> - | M19: =OFFSET(Maximos!M28,0,($O$1-1)*12) -> - | N19: =OFFSET(Maximos!N28,0,($O$1-1)*12) -> - | O19: =HLOOKUP($O$18,C18:N20,2,0)&" de "&HLOOKUP($O$18,C18:N20,3,0) -> 4 de marzo
C20: enero | D20: febrero | E20: marzo | F20: abril | G20: mayo | H20: junio | I20: julio | J20: agosto | K20: septiembre | L20: octubre | M20: noviembre | N20: diciembre

Sheet Maximos anuales Canarias
L1: 3
K4: Sistema eléctrico
K5: Horizonte temporal
K6: Periodo
C8: =OFFSET(Maximos!C71,0,($L$1-1)*10) -> 2016 | D8: =OFFSET(Maximos!D48,0,($L$1-1)*12) -> - | E8: =OFFSET(Maximos!E71,0,($L$1-1)*10) -> 2017 | F8: =OFFSET(Maximos!F48,0,($L$1-1)*12) -> - | G8: =OFFSET(Maximos!G71,0,($L$1-1)*10) -> 2018 | H8: =OFFSET(Maximos!H48,0,($L$1-1)*12) -> - | I8: =OFFSET(Maximos!I71,0,($L$1-1)*10) -> 2019 | J8: =OFFSET(Maximos!J48,0,($L$1-1)*12) -> - | K8: =OFFSET(Maximos!K71,0,($L$1-1)*10) -> 2020 | L8: =OFFSET(Maximos!L48,0,($L$1-1)*12) -> 40778.8672
C10: Invierno | D10: Verano | E10: Invierno | F10: Verano | G10: Invierno | H10: Verano | I10: Invierno | J10: Verano | K10: Invierno | L10: Verano
B12: Demanda horaria (MWh) | C12: =OFFSET(Maximos!C73,0,($L$1-1)*10) -> 1389 | D12: =OFFSET(Maximos!D73,0,($L$1-1)*10) -> 1384 | E12: =OFFSET(Maximos!E73,0,($L$1-1)*10) -> 1341 | F12: =OFFSET(Maximos!F73,0,($L$1-1)*10) -> - | G12: =OFFSET(Maximos!G73,0,($L$1-1)*10) -> - | H12: =OFFSET(Maximos!H73,0,($L$1-1)*10) -> - | I12: =OFFSET(Maximos!I73,0,($L$1-1)*10) -> - | J12: =OFFSET(Maximos!J73,0,($L$1-1)*10) -> - | K12: =OFFSET(Maximos!K73,0,($L$1-1)*10) -> - | L12: =OFFSET(Maximos!L73,0,($L$1-1)*10) -> -
B13: Día | C13: =OFFSET(Maximos!C74,0,($L$1-1)*10) -> 31 de diciembre | D13: =OFFSET(Maximos!D74,0,($L$1-1)*10) -> 10 de agosto | E13: =OFFSET(Maximos!E74,0,($L$1-1)*10) -> 17 de enero | F13: =OFFSET(Maximos!F74,0,($L$1-1)*10) -> - | G13: =OFFSET(Maximos!G74,0,($L$1-1)*10) -> - | H13: =OFFSET(Maximos!H74,0,($L$1-1)*10) -> - | I13: =OFFSET(Maximos!I74,0,($L$1-1)*10) -> - | J13: =OFFSET(Maximos!J74,0,($L$1-1)*10) -> - | K13: =OFFSET(Maximos!K74,0,($L$1-1)*10) -> - | L13: =OFFSET(Maximos!L74,0,($L$1-1)*10) -> -
B14: Hora | C14: =OFFSET(Maximos!C75,0,($L$1-1)*10) -> 20 | D14: =OFFSET(Maximos!D75,0,($L$1-1)*10) -> 14 | E14: =OFFSET(Maximos!E75,0,($L$1-1)*10) -> 21 | F14: =OFFSET(Maximos!F75,0,($L$1-1)*10) -> - | G14: =OFFSET(Maximos!G75,0,($L$1-1)*10) -> - | H14: =OFFSET(Maximos!H75,0,($L$1-1)*10) -> - | I14: =OFFSET(Maximos!I75,0,($L$1-1)*10) -> - | J14: =OFFSET(Maximos!J75,0,($L$1-1)*10) -> - | K14: =OFFSET(Maximos!K75,0,($L$1-1)*10) -> - | L14: =OFFSET(Maximos!L75,0,($L$1-1)*10) -> -
C18: =OFFSET(Maximos!C76,0,($L$1-1)*10) -> 2016 | D18: =OFFSET(#REF!,0,($L$1-1)*12) ->  | E18: =OFFSET(Maximos!E76,0,($L$1-1)*10) -> 2017 | F18: =OFFSET(#REF!,0,($L$1-1)*12) ->  | G18: =OFFSET(Maximos!G76,0,($L$1-1)*10) -> 2018 | H18: =OFFSET(#REF!,0,($L$1-1)*12) ->  | I18: =OFFSET(Maximos!I76,0,($L$1-1)*10) -> 2019 | J18: =OFFSET(#REF!,0,($L$1-1)*12) ->  | K18: =OFFSET(Maximos!K76,0,($L$1-1)*10) -> 2020 | L18: =OFFSET(#REF!,0,($L$1-1)*12) -> 
C20: Invierno | D20: Verano | E20: Invierno | F20: Verano | G20: Invierno | H20: Verano | I20: Invierno | J20: Verano | K20: Invierno | L20: Verano
B21: Demanda diaria (MWh) | C21: =OFFSET(Maximos!C78,0,($L$1-1)*10) -> 26243.809 | D21: =OFFSET(Maximos!D78,0,($L$1-1)*10) -> 28015.146 | E21: =OFFSET(Maximos!E78,0,($L$1-1)*10) -> 25273.014 | F21: =OFFSET(Maximos!F78,0,($L$1-1)*10) -> - | G21: =OFFSET(Maximos!G78,0,($L$1-1)*10) -> - | H21: =OFFSET(Maximos!H78,0,($L$1-1)*10) -> - | I21: =OFFSET(Maximos!I78,0,($L$1-1)*10) -> - | J21: =OFFSET(Maximos!J78,0,($L$1-1)*10) -> - | K21: =OFFSET(Maximos!K78,0,($L$1-1)*10) -> - | L21: =OFFSET(Maximos!L78,0,($L$1-1)*10) -> -
B22: Día | C22: =OFFSET(Maximos!C79,0,($L$1-1)*10) -> 18 de octubre | D22: =OFFSET(Maximos!D79,0,($L$1-1)*10) -> 10 de agosto | E22: =OFFSET(Maximos!E79,0,($L$1-1)*10) -> 4 de marzo | F22: =OFFSET(Maximos!F79,0,($L$1-1)*10) -> - | G22: =OFFSET(Maximos!G79,0,($L$1-1)*10) -> - | H22: =OFFSET(Maximos!H79,0,($L$1-1)*10) -> - | I22: =OFFSET(Maximos!I79,0,($L$1-1)*10) -> - | J22: =OFFSET(Maximos!J79,0,($L$1-1)*10) -> - | K22: =OFFSET(Maximos!K79,0,($L$1-1)*10) -> - | L22: =OFFSET(Maximos!L79,0,($L$1-1)*10) -> -
B24: El periodo de invierno comprende los meses de enero a mayo y de octubre a diciembre. El periodo de verano comprende los meses de junio a septiembre. | C24: Verano (junio - septiembre)

Sheet Maximos mensuales Ceuta
O1: 11
M4: Sistema eléctrico
M5: Horizonte temporal
M6: Periodo
C8: Ene. | D8: Feb. | E8: Mar. | F8: Abr. | G8: May. | H8: Jun. | I8: Jul. | J8: Ago. | K8: Sep. | L8: Oct. | M8: Nov. | N8: Dic. | O8: =OFFSET(Año!$B$19,($O$1-1),0) -> 2017
B10: Demanda horaria (MWh) | C10: =OFFSET(Maximos!C31,0,($O$1-1)*12) -> 39 | D10: =OFFSET(Maximos!D31,0,($O$1-1)*12) -> 33 | E10: =OFFSET(Maximos!E31,0,($O$1-1)*12) -> 31 | F10: =OFFSET(Maximos!F31,0,($O$1-1)*12) -> - | G10: =OFFSET(Maximos!G31,0,($O$1-1)*12) -> - | H10: =OFFSET(Maximos!H31,0,($O$1-1)*12) -> - | I10: =OFFSET(Maximos!I31,0,($O$1-1)*12) -> - | J10: =OFFSET(Maximos!J31,0,($O$1-1)*12) -> - | K10: =OFFSET(Maximos!K31,0,($O$1-1)*12) -> - | L10: =OFFSET(Maximos!L31,0,($O$1-1)*12) -> - | M10: =OFFSET(Maximos!M31,0,($O$1-1)*12) -> - | N10: =OFFSET(Maximos!N31,0,($O$1-1)*12) -> - | O10: =MAX(C10:N10) -> 39
B11: Día | C11: =OFFSET(Maximos!C32,0,($O$1-1)*12) -> 18 | D11: =OFFSET(Maximos!D32,0,($O$1-1)*12) -> 2 | E11: =OFFSET(Maximos!E32,0,($O$1-1)*12) -> 2 | F11: =OFFSET(Maximos!F32,0,($O$1-1)*12) -> - | G11: =OFFSET(Maximos!G32,0,($O$1-1)*12) -> - | H11: =OFFSET(Maximos!H32,0,($O$1-1)*12) -> - | I11: =OFFSET(Maximos!I32,0,($O$1-1)*12) -> - | J11: =OFFSET(Maximos!J32,0,($O$1-1)*12) -> - | K11: =OFFSET(Maximos!K32,0,($O$1-1)*12) -> - | L11: =OFFSET(Maximos!L32,0,($O$1-1)*12) -> - | M11: =OFFSET(Maximos!M32,0,($O$1-1)*12) -> - | N11: =OFFSET(Maximos!N32,0,($O$1-1)*12) -> - | O11: =HLOOKUP($O$10,C10:N13,2,0)&" de "&HLOOKUP($O$10,C10:N13,4,0) -> 18 de enero
B12: Hora | C12: =OFFSET(Maximos!C33,0,($O$1-1)*12) -> 21 | D12: =OFFSET(Maximos!D33,0,($O$1-1)*12) -> 21 | E12: =OFFSET(Maximos!E33,0,($O$1-1)*12) -> 21 | F12: =OFFSET(Maximos!F33,0,($O$1-1)*12) -> - | G12: =OFFSET(Maximos!G33,0,($O$1-1)*12) -> - | H12: =OFFSET(Maximos!H33,0,($O$1-1)*12) -> - | I12: =OFFSET(Maximos!I33,0,($O$1-1)*12) -> - | J12: =OFFSET(Maximos!J33,0,($O$1-1)*12) -> - | K12: =OFFSET(Maximos!K33,0,($O$1-1)*12) -> - | L12: =OFFSET(Maximos!L33,0,($O$1-1)*12) -> - | M12: =OFFSET(Maximos!M33,0,($O$1-1)*12) -> - | N12: =OFFSET(Maximos!N33,0,($O$1-1)*12) -> - | O12: =HLOOKUP($O$10,C10:N12,3,0) -> 21
C13: enero | D13: febrero | E13: marzo | F13: abril | G13: mayo | H13: junio | I13: julio | J13: agosto | K13: septiembre | L13: octubre | M13: noviembre | N13: diciembre
C16: Ene. | D16: Feb. | E16: Mar. | F16: Abr. | G16: May. | H16: Jun. | I16: Jul. | J16: Ago. | K16: Sep. | L16: Oct. | M16: Nov. | N16: Dic. | O16: =OFFSET(Año!$B$19,($O$1-1),0) -> 2017
B18: Demanda diaria (MWh) | C18: =OFFSET(Maximos!C35,0,($O$1-1)*12) -> 703.159 | D18: =OFFSET(Maximos!D35,0,($O$1-1)*12) -> 599.752 | E18: =OFFSET(Maximos!E35,0,($O$1-1)*12) -> 603.941 | F18: =OFFSET(Maximos!F35,0,($O$1-1)*12) -> - | G18: =OFFSET(Maximos!G35,0,($O$1-1)*12) -> - | H18: =OFFSET(Maximos!H35,0,($O$1-1)*12) -> - | I18: =OFFSET(Maximos!I35,0,($O$1-1)*12) -> - | J18: =OFFSET(Maximos!J35,0,($O$1-1)*12) -> - | K18: =OFFSET(Maximos!K35,0,($O$1-1)*12) -> - | L18: =OFFSET(Maximos!L35,0,($O$1-1)*12) -> - | M18: =OFFSET(Maximos!M35,0,($O$1-1)*12) -> - | N18: =OFFSET(Maximos!N35,0,($O$1-1)*12) -> - | O18: =MAX(C18:N18) -> 703.159
B19: Día | C19: =OFFSET(Maximos!C36,0,($O$1-1)*12) -> 18 | D19: =OFFSET(Maximos!D36,0,($O$1-1)*12) -> 10 | E19: =OFFSET(Maximos!E36,0,($O$1-1)*12) -> 1 | F19: =OFFSET(Maximos!F36,0,($O$1-1)*12) -> - | G19: =OFFSET(Maximos!G36,0,($O$1-1)*12) -> - | H19: =OFFSET(Maximos!H36,0,($O$1-1)*12) -> - | I19: =OFFSET(Maximos!I36,0,($O$1-1)*12) -> - | J19: =OFFSET(Maximos!J36,0,($O$1-1)*12) -> - | K19: =OFFSET(Maximos!K36,0,($O$1-1)*12) -> - | L19: =OFFSET(Maximos!L36,0,($O$1-1)*12) -> - | M19: =OFFSET(Maximos!M36,0,($O$1-1)*12) -> - | N19: =OFFSET(Maximos!N36,0,($O$1-1)*12) -> - | O19: =HLOOKUP($O$18,C18:N20,2,0)&" de "&HLOOKUP($O$18,C18:N20,3,0) -> 18 de enero
C20: enero | D20: febrero | E20: marzo | F20: abril | G20: mayo | H20: junio | I20: julio | J20: agosto | K20: septiembre | L20: octubre | M20: noviembre | N20: diciembre

Sheet Maximos anuales Ceuta
L1: 3
K4: Sistema eléctrico
K5: Horizonte temporal
K6: Periodo
C8: =OFFSET(Maximos!C81,0,($L$1-1)*10) -> 2017 | D8: =OFFSET(Maximos!D48,0,($L$1-1)*12) -> - | E8: =OFFSET(Maximos!E81,0,($L$1-1)*10) -> 2018 | F8: =OFFSET(Maximos!F48,0,($L$1-1)*12) -> - | G8: =OFFSET(Maximos!G81,0,($L$1-1)*10) -> 2019 | H8: =OFFSET(Maximos!H48,0,($L$1-1)*12) -> - | I8: =OFFSET(Maximos!I81,0,($L$1-1)*10) -> 2020 | J8: =OFFSET(Maximos!J48,0,($L$1-1)*12) -> - | K8: =OFFSET(Maximos!K81,0,($L$1-1)*10) -> 2021 | L8: =OFFSET(Maximos!L48,0,($L$1-1)*12) -> 40778.8672
C10: Invierno | D10: Verano | E10: Invierno | F10: Verano | G10: Invierno | H10: Verano | I10: Invierno | J10: Verano | K10: Invierno | L10: Verano
B12: Demanda horaria (MWh) | C12: =OFFSET(Maximos!C83,0,($L$1-1)*10) -> 39 | D12: =OFFSET(Maximos!D83,0,($L$1-1)*10) -> - | E12: =OFFSET(Maximos!E83,0,($L$1-1)*10) -> - | F12: =OFFSET(Maximos!F83,0,($L$1-1)*10) -> - | G12: =OFFSET(Maximos!G83,0,($L$1-1)*10) -> - | H12: =OFFSET(Maximos!H83,0,($L$1-1)*10) -> - | I12: =OFFSET(Maximos!I83,0,($L$1-1)*10) -> - | J12: =OFFSET(Maximos!J83,0,($L$1-1)*10) -> - | K12: =OFFSET(Maximos!K83,0,($L$1-1)*10) -> - | L12: =OFFSET(Maximos!L83,0,($L$1-1)*10) -> -
B13: Día | C13: =OFFSET(Maximos!C84,0,($L$1-1)*10) -> 18 de enero | D13: =OFFSET(Maximos!D84,0,($L$1-1)*10) -> - | E13: =OFFSET(Maximos!E84,0,($L$1-1)*10) -> - | F13: =OFFSET(Maximos!F84,0,($L$1-1)*10) -> - | G13: =OFFSET(Maximos!G84,0,($L$1-1)*10) -> - | H13: =OFFSET(Maximos!H84,0,($L$1-1)*10) -> - | I13: =OFFSET(Maximos!I84,0,($L$1-1)*10) -> - | J13: =OFFSET(Maximos!J84,0,($L$1-1)*10) -> - | K13: =OFFSET(Maximos!K84,0,($L$1-1)*10) -> - | L13: =OFFSET(Maximos!L84,0,($L$1-1)*10) -> -
B14: Hora | C14: =OFFSET(Maximos!C85,0,($L$1-1)*10) -> 21 | D14: =OFFSET(Maximos!D85,0,($L$1-1)*10) -> - | E14: =OFFSET(Maximos!E85,0,($L$1-1)*10) -> - | F14: =OFFSET(Maximos!F85,0,($L$1-1)*10) -> - | G14: =OFFSET(Maximos!G85,0,($L$1-1)*10) -> - | H14: =OFFSET(Maximos!H85,0,($L$1-1)*10) -> - | I14: =OFFSET(Maximos!I85,0,($L$1-1)*10) -> - | J14: =OFFSET(Maximos!J85,0,($L$1-1)*10) -> - | K14: =OFFSET(Maximos!K85,0,($L$1-1)*10) -> - | L14: =OFFSET(Maximos!L85,0,($L$1-1)*10) -> -
C18: =OFFSET(Maximos!C86,0,($L$1-1)*10) -> 2017 | D18: =OFFSET(#REF!,0,($L$1-1)*12) ->  | E18: =OFFSET(Maximos!E86,0,($L$1-1)*10) -> 2018 | F18: =OFFSET(#REF!,0,($L$1-1)*12) ->  | G18: =OFFSET(Maximos!G86,0,($L$1-1)*10) -> 2019 | H18: =OFFSET(#REF!,0,($L$1-1)*12) ->  | I18: =OFFSET(Maximos!I86,0,($L$1-1)*10) -> 2020 | J18: =OFFSET(#REF!,0,($L$1-1)*12) ->  | K18: =OFFSET(Maximos!K86,0,($L$1-1)*10) -> 2021 | L18: =OFFSET(#REF!,0,($L$1-1)*12) -> 
C20: Invierno | D20: Verano | E20: Invierno | F20: Verano | G20: Invierno | H20: Verano | I20: Invierno | J20: Verano | K20: Invierno | L20: Verano
B21: Demanda diaria (MWh) | C21: =OFFSET(Maximos!C88,0,($L$1-1)*10) -> 703.159 | D21: =OFFSET(Maximos!D88,0,($L$1-1)*10) -> - | E21: =OFFSET(Maximos!E88,0,($L$1-1)*10) -> - | F21: =OFFSET(Maximos!F88,0,($L$1-1)*10) -> - | G21: =OFFSET(Maximos!G88,0,($L$1-1)*10) -> - | H21: =OFFSET(Maximos!H88,0,($L$1-1)*10) -> - | I21: =OFFSET(Maximos!I88,0,($L$1-1)*10) -> - | J21: =OFFSET(Maximos!J88,0,($L$1-1)*10) -> - | K21: =OFFSET(Maximos!K88,0,($L$1-1)*10) -> - | L21: =OFFSET(Maximos!L88,0,($L$1-1)*10) -> -
B22: Día | C22: =OFFSET(Maximos!C89,0,($L$1-1)*10) -> 18 de enero | D22: =OFFSET(Maximos!D89,0,($L$1-1)*10) -> - | E22: =OFFSET(Maximos!E89,0,($L$1-1)*10) -> - | F22: =OFFSET(Maximos!F89,0,($L$1-1)*10) -> - | G22: =OFFSET(Maximos!G89,0,($L$1-1)*10) -> - | H22: =OFFSET(Maximos!H89,0,($L$1-1)*10) -> - | I22: =OFFSET(Maximos!I89,0,($L$1-1)*10) -> - | J22: =OFFSET(Maximos!J89,0,($L$1-1)*10) -> - | K22: =OFFSET(Maximos!K89,0,($L$1-1)*10) -> - | L22: =OFFSET(Maximos!L89,0,($L$1-1)*10) -> -
B24: El periodo de invierno comprende los meses de enero a mayo y de octubre a diciembre. El periodo de verano comprende los meses de junio a septiembre. | C24: Verano (junio - septiembre)

Sheet Maximos mensuales Melilla
O1: 11
M4: Sistema eléctrico
M5: Horizonte temporal
M6: Periodo
C8: Ene. | D8: Feb. | E8: Mar. | F8: Abr. | G8: May. | H8: Jun. | I8: Jul. | J8: Ago. | K8: Sep. | L8: Oct. | M8: Nov. | N8: Dic. | O8: =OFFSET(Año!$B$19,($O$1-1),0) -> 2017
B10: Demanda horaria (MWh) | C10: =OFFSET(Maximos!C39,0,($O$1-1)*12) -> 40 | D10: =OFFSET(Maximos!D39,0,($O$1-1)*12) -> 35 | E10: =OFFSET(Maximos!E39,0,($O$1-1)*12) -> 32 | F10: =OFFSET(Maximos!F39,0,($O$1-1)*12) -> - | G10: =OFFSET(Maximos!G39,0,($O$1-1)*12) -> - | H10: =OFFSET(Maximos!H39,0,($O$1-1)*12) -> - | I10: =OFFSET(Maximos!I39,0,($O$1-1)*12) -> - | J10: =OFFSET(Maximos!J39,0,($O$1-1)*12) -> - | K10: =OFFSET(Maximos!K39,0,($O$1-1)*12) -> - | L10: =OFFSET(Maximos!L39,0,($O$1-1)*12) -> - | M10: =OFFSET(Maximos!M39,0,($O$1-1)*12) -> - | N10: =OFFSET(Maximos!N39,0,($O$1-1)*12) -> - | O10: =MAX(C10:N10) -> 40
B11: Día | C11: =OFFSET(Maximos!C40,0,($O$1-1)*12) -> 19 | D11: =OFFSET(Maximos!D40,0,($O$1-1)*12) -> 2 | E11: =OFFSET(Maximos!E40,0,($O$1-1)*12) -> 23 | F11: =OFFSET(Maximos!F40,0,($O$1-1)*12) -> - | G11: =OFFSET(Maximos!G40,0,($O$1-1)*12) -> - | H11: =OFFSET(Maximos!H40,0,($O$1-1)*12) -> - | I11: =OFFSET(Maximos!I40,0,($O$1-1)*12) -> - | J11: =OFFSET(Maximos!J40,0,($O$1-1)*12) -> - | K11: =OFFSET(Maximos!K40,0,($O$1-1)*12) -> - | L11: =OFFSET(Maximos!L40,0,($O$1-1)*12) -> - | M11: =OFFSET(Maximos!M40,0,($O$1-1)*12) -> - | N11: =OFFSET(Maximos!N40,0,($O$1-1)*12) -> - | O11: =HLOOKUP($O$10,C10:N13,2,0)&" de "&HLOOKUP($O$10,C10:N13,4,0) -> 19 de enero
B12: Hora | C12: =OFFSET(Maximos!C41,0,($O$1-1)*12) -> 21 | D12: =OFFSET(Maximos!D41,0,($O$1-1)*12) -> 21 | E12: =OFFSET(Maximos!E41,0,($O$1-1)*12) -> 20 | F12: =OFFSET(Maximos!F41,0,($O$1-1)*12) -> - | G12: =OFFSET(Maximos!G41,0,($O$1-1)*12) -> - | H12: =OFFSET(Maximos!H41,0,($O$1-1)*12) -> - | I12: =OFFSET(Maximos!I41,0,($O$1-1)*12) -> - | J12: =OFFSET(Maximos!J41,0,($O$1-1)*12) -> - | K12: =OFFSET(Maximos!K41,0,($O$1-1)*12) -> - | L12: =OFFSET(Maximos!L41,0,($O$1-1)*12) -> - | M12: =OFFSET(Maximos!M41,0,($O$1-1)*12) -> - | N12: =OFFSET(Maximos!N41,0,($O$1-1)*12) -> - | O12: =HLOOKUP($O$10,C10:N12,3,0) -> 21
C13: enero | D13: febrero | E13: marzo | F13: abril | G13: mayo | H13: junio | I13: julio | J13: agosto | K13: septiembre | L13: octubre | M13: noviembre | N13: diciembre
C16: Ene. | D16: Feb. | E16: Mar. | F16: Abr. | G16: May. | H16: Jun. | I16: Jul. | J16: Ago. | K16: Sep. | L16: Oct. | M16: Nov. | N16: Dic. | O16: =OFFSET(Año!$B$19,($O$1-1),0) -> 2017
B18: Demanda diaria (MWh) | C18: =OFFSET(Maximos!C43,0,($O$1-1)*12) -> 712.866 | D18: =OFFSET(Maximos!D43,0,($O$1-1)*12) -> 602.146 | E18: =OFFSET(Maximos!E43,0,($O$1-1)*12) -> 614.277 | F18: =OFFSET(Maximos!F43,0,($O$1-1)*12) -> - | G18: =OFFSET(Maximos!G43,0,($O$1-1)*12) -> - | H18: =OFFSET(Maximos!H43,0,($O$1-1)*12) -> - | I18: =OFFSET(Maximos!I43,0,($O$1-1)*12) -> - | J18: =OFFSET(Maximos!J43,0,($O$1-1)*12) -> - | K18: =OFFSET(Maximos!K43,0,($O$1-1)*12) -> - | L18: =OFFSET(Maximos!L43,0,($O$1-1)*12) -> - | M18: =OFFSET(Maximos!M43,0,($O$1-1)*12) -> - | N18: =OFFSET(Maximos!N43,0,($O$1-1)*12) -> - | O18: =MAX(C18:N18) -> 712.866
B19: Día | C19: =OFFSET(Maximos!C44,0,($O$1-1)*12) -> 20 | D19: =OFFSET(Maximos!D44,0,($O$1-1)*12) -> 1 | E19: =OFFSET(Maximos!E44,0,($O$1-1)*12) -> 23 | F19: =OFFSET(Maximos!F44,0,($O$1-1)*12) -> - | G19: =OFFSET(Maximos!G44,0,($O$1-1)*12) -> - | H19: =OFFSET(Maximos!H44,0,($O$1-1)*12) -> - | I19: =OFFSET(Maximos!I44,0,($O$1-1)*12) -> - | J19: =OFFSET(Maximos!J44,0,($O$1-1)*12) -> - | K19: =OFFSET(Maximos!K44,0,($O$1-1)*12) -> - | L19: =OFFSET(Maximos!L44,0,($O$1-1)*12) -> - | M19: =OFFSET(Maximos!M44,0,($O$1-1)*12) -> - | N19: =OFFSET(Maximos!N44,0,($O$1-1)*12) -> - | O19: =HLOOKUP($O$18,C18:N20,2,0)&" de "&HLOOKUP($O$18,C18:N20,3,0) -> 20 de enero
C20: enero | D20: febrero | E20: marzo | F20: abril | G20: mayo | H20: junio | I20: julio | J20: agosto | K20: septiembre | L20: octubre | M20: noviembre | N20: diciembre

Sheet Maximos anuales Melilla
L1: 3
K4: Sistema eléctrico
K5: Horizonte temporal
K6: Periodo
C8: =OFFSET(Maximos!C91,0,($L$1-1)*10) -> 2017 | D8: =OFFSET(Maximos!D48,0,($L$1-1)*12) -> - | E8: =OFFSET(Maximos!E91,0,($L$1-1)*10) -> 2018 | F8: =OFFSET(Maximos!F48,0,($L$1-1)*12) -> - | G8: =OFFSET(Maximos!G91,0,($L$1-1)*10) -> 2019 | H8: =OFFSET(Maximos!H48,0,($L$1-1)*12) -> - | I8: =OFFSET(Maximos!I91,0,($L$1-1)*10) -> 2020 | J8: =OFFSET(Maximos!J48,0,($L$1-1)*12) -> - | K8: =OFFSET(Maximos!K91,0,($L$1-1)*10) -> 2021
C10: Invierno | D10: Verano | E10: Invierno | F10: Verano | G10: Invierno | H10: Verano | I10: Invierno | J10: Verano | K10: Invierno | L10: Verano
B12: Demanda horaria (MWh) | C12: =OFFSET(Maximos!C93,0,($L$1-1)*10) -> 40 | D12: =OFFSET(Maximos!D93,0,($L$1-1)*10) -> - | E12: =OFFSET(Maximos!E93,0,($L$1-1)*10) -> - | F12: =OFFSET(Maximos!F93,0,($L$1-1)*10) -> - | G12: =OFFSET(Maximos!G93,0,($L$1-1)*10) -> - | H12: =OFFSET(Maximos!H93,0,($L$1-1)*10) -> - | I12: =OFFSET(Maximos!I93,0,($L$1-1)*10) -> - | J12: =OFFSET(Maximos!J93,0,($L$1-1)*10) -> - | K12: =OFFSET(Maximos!K93,0,($L$1-1)*10) -> - | L12: =OFFSET(Maximos!L93,0,($L$1-1)*10) -> -
B13: Día | C13: =OFFSET(Maximos!C94,0,($L$1-1)*10) -> 19 de enero | D13: =OFFSET(Maximos!D94,0,($L$1-1)*10) -> - | E13: =OFFSET(Maximos!E94,0,($L$1-1)*10) -> - | F13: =OFFSET(Maximos!F94,0,($L$1-1)*10) -> - | G13: =OFFSET(Maximos!G94,0,($L$1-1)*10) -> - | H13: =OFFSET(Maximos!H94,0,($L$1-1)*10) -> - | I13: =OFFSET(Maximos!I94,0,($L$1-1)*10) -> - | J13: =OFFSET(Maximos!J94,0,($L$1-1)*10) -> - | K13: =OFFSET(Maximos!K94,0,($L$1-1)*10) -> - | L13: =OFFSET(Maximos!L94,0,($L$1-1)*10) -> -
B14: Hora | C14: =OFFSET(Maximos!C95,0,($L$1-1)*10) -> 21 | D14: =OFFSET(Maximos!D95,0,($L$1-1)*10) -> - | E14: =OFFSET(Maximos!E95,0,($L$1-1)*10) -> - | F14: =OFFSET(Maximos!F95,0,($L$1-1)*10) -> - | G14: =OFFSET(Maximos!G95,0,($L$1-1)*10) -> - | H14: =OFFSET(Maximos!H95,0,($L$1-1)*10) -> - | I14: =OFFSET(Maximos!I95,0,($L$1-1)*10) -> - | J14: =OFFSET(Maximos!J95,0,($L$1-1)*10) -> - | K14: =OFFSET(Maximos!K95,0,($L$1-1)*10) -> - | L14: =OFFSET(Maximos!L95,0,($L$1-1)*10) -> -
C18: =OFFSET(Maximos!C96,0,($L$1-1)*10) -> 2017 | D18: =OFFSET(#REF!,0,($L$1-1)*12) ->  | E18: =OFFSET(Maximos!E96,0,($L$1-1)*10) -> 2018 | F18: =OFFSET(#REF!,0,($L$1-1)*12) ->  | G18: =OFFSET(Maximos!G96,0,($L$1-1)*10) -> 2019 | H18: =OFFSET(#REF!,0,($L$1-1)*12) ->  | I18: =OFFSET(Maximos!I96,0,($L$1-1)*10) -> 2020 | J18: =OFFSET(#REF!,0,($L$1-1)*12) ->  | K18: =OFFSET(Maximos!K96,0,($L$1-1)*10) -> 2021 | L18: =OFFSET(#REF!,0,($L$1-1)*12) -> 
C20: Invierno | D20: Verano | E20: Invierno | F20: Verano | G20: Invierno | H20: Verano | I20: Invierno | J20: Verano | K20: Invierno | L20: Verano
B21: Demanda diaria (MWh) | C21: =OFFSET(Maximos!C98,0,($L$1-1)*10) -> 712.866 | D21: =OFFSET(Maximos!D98,0,($L$1-1)*10) -> - | E21: =OFFSET(Maximos!E98,0,($L$1-1)*10) -> - | F21: =OFFSET(Maximos!F98,0,($L$1-1)*10) -> - | G21: =OFFSET(Maximos!G98,0,($L$1-1)*10) -> - | H21: =OFFSET(Maximos!H98,0,($L$1-1)*10) -> - | I21: =OFFSET(Maximos!I98,0,($L$1-1)*10) -> - | J21: =OFFSET(Maximos!J98,0,($L$1-1)*10) -> - | K21: =OFFSET(Maximos!K98,0,($L$1-1)*10) -> - | L21: =OFFSET(Maximos!L98,0,($L$1-1)*10) -> -
B22: Día | C22: =OFFSET(Maximos!C99,0,($L$1-1)*10) -> 20 de enero | D22: =OFFSET(Maximos!D99,0,($L$1-1)*10) -> - | E22: =OFFSET(Maximos!E99,0,($L$1-1)*10) -> - | F22: =OFFSET(Maximos!F99,0,($L$1-1)*10) -> - | G22: =OFFSET(Maximos!G99,0,($L$1-1)*10) -> - | H22: =OFFSET(Maximos!H99,0,($L$1-1)*10) -> - | I22: =OFFSET(Maximos!I99,0,($L$1-1)*10) -> - | J22: =OFFSET(Maximos!J99,0,($L$1-1)*10) -> - | K22: =OFFSET(Maximos!K99,0,($L$1-1)*10) -> - | L22: =OFFSET(Maximos!L99,0,($L$1-1)*10) -> -
B24: El periodo de invierno comprende los meses de enero a mayo y de octubre a diciembre. El periodo de verano comprende los meses de junio a septiembre. | C24: Verano (junio - septiembre)

Sheet Maximos (hidden)
B2: Potencia máxima instantánea peninsular | C2: 1990-01-01 | D2: 1990-02-01 | E2: 1990-03-01 | F2: 1990-04-01 | G2: 1990-05-01 | H2: 1990-06-01 | I2: 1990-07-01 | J2: 1990-08-01 | K2: 1990-09-01 | L2: 1990-10-01 | M2: 1990-11-01 | N2: 1990-12-01 | O2: 1991-01-01 | P2: 1991-02-01 | Q2: 1991-03-01 | R2: 1991-04-01 | S2: 1991-05-01 | T2: 1991-06-01 | U2: 1991-07-01 | V2: 1991-08-01 | W2: 1991-09-01 | X2: 1991-10-01 | Y2: 1991-11-01 | Z2: 1991-12-01 | AA2: 1992-01-01 | AB2: 1992-02-01 | AC2: 1992-03-01 | AD2: 1992-04-01 | AE2: 1992-05-01 | AF2: 1992-06-01 | AG2: 1992-07-01 | AH2: 1992-08-01 | AI2: 1992-09-01 | AJ2: 1992-10-01 | AK2: 1992-11-01 | AL2: 1992-12-01 | AM2: 1993-01-01 | AN2: 1993-02-01 | AO2: 1993-03-01 | AP2: 1993-04-01 | AQ2: 1993-05-01 | AR2: 1993-06-01 | AS2: 1993-07-01 | AT2: 1993-08-01 | AU2: 1993-09-01 | AV2: 1993-10-01 | AW2: 1993-11-01 | AX2: 1993-12-01 | AY2: 1994-01-01 | AZ2: 1994-02-01 | BA2: 1994-03-01 | BB2: 1994-04-01 | BC2: 1994-05-01 | BD2: 1994-06-01 | BE2: 1994-07-01 | BF2: 1994-08-01 | BG2: 1994-09-01 | BH2: 1994-10-01 | BI2: 1994-11-01 | BJ2: 1994-12-01 | BK2: 1995-01-01 | BL2: 1995-02-01 | BM2: 1995-03-01 | BN2: 1995-04-01 | BO2: 1995-05-01 | BP2: 1995-06-01 | BQ2: 1995-07-01 | BR2: 1995-08-01 | BS2: 1995-09-01 | BT2: 1995-10-01 | BU2: 1995-11-01 | BV2: 1995-12-01 | BW2: 1996-01-01 | BX2: 1996-02-01 | BY2: 1996-03-01 | BZ2: 1996-04-01 | CA2: 1996-05-01 | CB2: 1996-06-01 | CC2: 1996-07-01 | CD2: 1996-08-01 | CE2: 1996-09-01 | CF2: 1996-10-01 | CG2: 1996-11-01 | CH2: 1996-12-01 | CI2: 1997-01-01 | CJ2: 1997-02-01 | CK2: 1997-03-01 | CL2: 1997-04-01 | CM2: 1997-05-01 | CN2: 1997-06-01 | CO2: 1997-07-01 | CP2: 1997-08-01 | CQ2: 1997-09-01 | CR2: 1997-10-01 | CS2: 1997-11-01 | CT2: 1997-12-01 | CU2: 1998-01-01 | CV2: 1998-02-01 | CW2: 1998-03-01 | CX2: 1998-04-01 | CY2: 1998-05-01 | CZ2: 1998-06-01 | DA2: 1998-07-01 | DB2: 1998-08-01 | DC2: 1998-09-01 | DD2: 1998-10-01 | DE2: 1998-11-01 | DF2: 1998-12-01 | DG2: 1999-01-01 | DH2: 1999-02-01 | DI2: 1999-03-01 | DJ2: 1999-04-01 | DK2: 1999-05-01 | DL2: 1999-06-01 | DM2: 1999-07-01 | DN2: 1999-08-01 | DO2: 1999-09-01 | DP2: 1999-10-01 | DQ2: 1999-11-01 | DR2: 1999-12-01 | DS2: 2000-01-01 | DT2: 2000-02-01 | DU2: 2000-03-01 | DV2: 2000-04-01 | DW2: 2000-05-01 | DX2: 2000-06-01 | DY2: 2000-07-01 | DZ2: 2000-08-01 | EA2: 2000-09-01 | EB2: 2000-10-01 | EC2: 2000-11-01 | ED2: 2000-12-01 | EE2: 2001-01-01 | EF2: 2001-02-01 | EG2: 2001-03-01 | EH2: 2001-04-01 | EI2: 2001-05-01 | EJ2: 2001-06-01 | EK2: 2001-07-01 | EL2: 2001-08-01 | EM2: 2001-09-01 | EN2: 2001-10-01 | EO2: 2001-11-01 | EP2: 2001-12-01 | EQ2: 2002-01-01 | ER2: 2002-02-01 | ES2: 2002-03-01 | ET2: 2002-04-01 | EU2: 2002-05-01 | EV2: 2002-06-01 | EW2: 2002-07-01 | EX2: 2002-08-01 | EY2: 2002-09-01 | EZ2: 2002-10-01 | FA2: 2002-11-01 | FB2: 2002-12-01 | FC2: 2003-01-01 | FD2: 2003-02-01 | FE2: 2003-03-01 | FF2: 2003-04-01 | FG2: 2003-05-01 | FH2: 2003-06-01 | FI2: 2003-07-01 | FJ2: 2003-08-01 | FK2: 2003-09-01 | FL2: 2003-10-01 | FM2: 2003-11-01 | FN2: 2003-12-01 | FO2: 2004-01-01 | FP2: 2004-02-01 | FQ2: 2004-03-01 | FR2: 2004-04-01 | FS2: 2004-05-01 | FT2: 2004-06-01 | FU2: 2004-07-01 | FV2: 2004-08-01 | FW2: 2004-09-01 | FX2: 2004-10-01 | FY2: 2004-11-01 | FZ2: 2004-12-01 | GA2: 2005-01-01 | GB2: 2005-02-01 | GC2: 2005-03-01 | GD2: 2005-04-01 | GE2: 2005-05-01 | GF2: 2005-06-01 | GG2: 2005-07-01 | GH2: 2005-08-01 | GI2: 2005-09-01 | GJ2: 2005-10-01 | GK2: 2005-11-01 | GL2: 2005-12-01 | GM2: 2006-01-01 | GN2: 2006-02-01 | GO2: 2006-03-01 | GP2: 2006-04-01 | GQ2: 2006-05-01 | GR2: 2006-06-01 | GS2: 2006-07-01 | GT2: 2006-08-01 | GU2: 2006-09-01 | GV2: 2006-10-01 | GW2: 2006-11-01 | GX2: 2006-12-01 | GY2: 2007-01-01 | GZ2: 2007-02-01 | HA2: 2007-03-01 | HB2: 2007-04-01 | HC2: 2007-05-01 | HD2: 2007-06-01 | HE2: 2007-07-01 | HF2: 2007-08-01 | HG2: 2007-09-01 | HH2: 2007-10-01 | HI2: 2007-11-01 | HJ2: 2007-12-01 | HK2: 2008-01-01 | HL2: 2008-02-01 | HM2: 2008-03-01 | HN2: 2008-04-01 | HO2: 2008-05-01 | HP2: 2008-06-01 | HQ2: 2008-07-01 | HR2: 2008-08-01 | HS2: 2008-09-01 | HT2: 2008-10-01 | HU2: 2008-11-01 | HV2: 2008-12-01 | HW2: 2009-01-01 | HX2: 2009-02-01 | HY2: 2009-03-01 | HZ2: 2009-04-01 | IA2: 2009-05-01 | IB2: 2009-06-01 | IC2: 2009-07-01 | ID2: 2009-08-01 | IE2: 2009-09-01 | IF2: 2009-10-01 | IG2: 2009-11-01 | IH2: 2009-12-01 | II2: 2010-01-01 | IJ2: 2010-02-01 | IK2: 2010-03-01 | IL2: 2010-04-01 | IM2: 2010-05-01 | IN2: 2010-06-01 | IO2: 2010-07-01 | IP2: 2010-08-01 | IQ2: 2010-09-01 | IR2: 2010-10-01 | IS2: 2010-11-01 | IT2: 2010-12-01 | IU2: 2011-01-01 | IV2: 2011-02-01 | IW2: 2011-03-01 | IX2: 2011-04-01 | IY2: 2011-05-01 | IZ2: 2011-06-01 | JA2: 2011-07-01 | JB2: 2011-08-01 | JC2: 2011-09-01 | JD2: 2011-10-01 | JE2: 2011-11-01 | JF2: 2011-12-01 | JG2: 2012-01-01 | JH2: 2012-02-01 | JI2: 2012-03-01 | JJ2: 2012-04-01 | JK2: 2012-05-01 | JL2: 2012-06-01 | JM2: 2012-07-01 | JN2: 2012-08-01 | JO2: 2012-09-01 | JP2: 2012-10-01 | JQ2: 2012-11-01 | JR2: 2012-12-01 | JS2: 2013-01-01 | JT2: 2013-02-01 | JU2: 2013-03-01 | JV2: 2013-04-01 | JW2: 2013-05-01 | JX2: 2013-06-01 | JY2: 2013-07-01 | JZ2: 2013-08-01 | KA2: 2013-09-01 | KB2: 2013-10-01 | KC2: 2013-11-01 | KD2: 2013-12-01 | KE2: 2014-01-01 | KF2: 2014-02-01 | KG2: 2014-03-01 | KH2: 2014-04-01 | KI2: 2014-05-01 | KJ2: 2014-06-01 | KK2: 2014-07-01 | KL2: 2014-08-01 | KM2: 2014-09-01 | KN2: 2014-10-01 | KO2: 2014-11-01 | KP2: 2014-12-01 | KQ2: 2015-01-01 | KR2: 2015-02-01 | KS2: 2015-03-01 | KT2: 2015-04-01 | KU2: 2015-05-01 | KV2: 2015-06-01 | KW2: 2015-07-01 | KX2: 2015-08-01 | KY2: 2015-09-01 | KZ2: 2015-10-01 | LA2: 2015-11-01 | LB2: 2015-12-01 | LC2: 2016-01-01 | LD2: 2016-02-01 | LE2: 2016-03-01 | LF2: 2016-04-01 | LG2: 2016-05-01 | LH2: 2016-06-01 | LI2: 2016-07-01 | LJ2: 2016-08-01 | LK2: 2016-09-01 | LL2: 2016-10-01 | LM2: 2016-11-01 | LN2: 2016-12-01 | LO2: 2017-01-01 | LP2: 2017-02-01 | LQ2: 2017-03-01 | LR2: 2017-04-01 | LS2: 2017-05-01 | LT2: 2017-06-01 | LU2: 2017-07-01 | LV2: 2017-08-01 | LW2: 2017-09-01 | LX2: 2017-10-01 | LY2: 2017-11-01 | LZ2: 2017-12-01 | MA2: 2018-01-01 | MB2: 2018-02-01 | MC2: 2018-03-01 | MD2: 2018-04-01 | ME2: 2018-05-01 | MF2: 2018-06-01 | MG2: 2018-07-01 | MH2: 2018-08-01 | MI2: 2018-09-01 | MJ2: 2018-10-01 | MK2: 2018-11-01 | ML2: 2018-12-01 | MM2: 2019-01-01 | MN2: 2019-02-01 | MO2: 2019-03-01 | MP2: 2019-04-01 | MQ2: 2019-05-01 | MR2: 2019-06-01 | MS2: 2019-07-01 | MT2: 2019-08-01 | MU2: 2019-09-01 | MV2: 2019-10-01 | MW2: 2019-11-01 | MX2: 2019-12-01
B3: Potencia instantánea (MW) | C3: - | D3: - | E3: - | F3: - | G3: - | H3: - | I3: - | J3: - | K3: - | L3: - | M3: - | N3: - | O3: - | P3: - | Q3: - | R3: - | S3: - | T3: - | U3: - | V3: - | W3: - | X3: - | Y3: - | Z3: - | AA3: - | AB3: - | AC3: - | AD3: - | AE3: - | AF3: - | AG3: - | AH3: - | AI3: - | AJ3: - | AK3: - | AL3: - | AM3: - | AN3: - | AO3: - | AP3: - | AQ3: - | AR3: - | AS3: - | AT3: - | AU3: - | AV3: - | AW3: - | AX3: - | AY3: - | AZ3: - | BA3: - | BB3: - | BC3: - | BD3: - | BE3: - | BF3: - | BG3: - | BH3: - | BI3: - | BJ3: - | BK3: - | BL3: - | BM3: - | BN3: - | BO3: - | BP3: - | BQ3: - | BR3: - | BS3: - | BT3: - | BU3: - | BV3: - | BW3: - | BX3: - | BY3: - | BZ3: - | CA3: - | CB3: - | CC3: - | CD3: - | CE3: - | CF3: - | CG3: - | CH3: - | CI3: - | CJ3: - | CK3: - | CL3: - | CM3: - | CN3: - | CO3: - | CP3: - | CQ3: - | CR3: - | CS3: - | CT3: - | CU3: - | CV3: - | CW3: - | CX3: - | CY3: - | CZ3: - | DA3: - | DB3: - | DC3: - | DD3: - | DE3: - | DF3: - | DG3: - | DH3: - | DI3: - | DJ3: - | DK3: - | DL3: - | DM3: - | DN3: - | DO3: - | DP3: - | DQ3: - | DR3: - | DS3: - | DT3: - | DU3: - | DV3: - | DW3: - | DX3: - | DY3: - | DZ3: - | EA3: - | EB3: - | EC3: - | ED3: - | EE3: - | EF3: - | EG3: - | EH3: - | EI3: - | EJ3: - | EK3: - | EL3: - | EM3: - | EN3: - | EO3: - | EP3: - | EQ3: - | ER3: - | ES3: - | ET3: - | EU3: - | EV3: - | EW3: - | EX3: - | EY3: - | EZ3: - | FA3: - | FB3: - | FC3: - | FD3: - | FE3: - | FF3: - | FG3: - | FH3: - | FI3: - | FJ3: - | FK3: - | FL3: - | FM3: - | FN3: - | FO3: - | FP3: - | FQ3: - | FR3: - | FS3: - | FT3: - | FU3: - | FV3: - | FW3: - | FX3: - | FY3: - | FZ3: - | GA3: - | GB3: - | GC3: - | GD3: - | GE3: - | GF3: - | GG3: - | GH3: - | GI3: - | GJ3: - | GK3: - | GL3: - | GM3: 42281.7891 | GN3: 40177.6758 | GO3: 39582.4102 | GP3: 34199.7578 | GQ3: 35721.1953 | GR3: 38380.2383 | GS3: 40778.8672 | GT3: 38617.8711 | GU3: 39513.5313 | GV3: 35949.3711 | GW3: 37580.9023 | GX3: 42429.8594 | GY3: 43471.6758 | GZ3: 41083.6406 | HA3: 39904.4492 | HB3: 37339.3242 | HC3: 36262.2773 | HD3: 37471.6367 | HE3: 39504.9727 | HF3: 39365.2109 | HG3: 38329.9961 | HH3: 37139.7344 | HI3: 41748.1484 | HJ3: 45450 | HK3: 41912.5195 | HL3: 40964.7148 | HM3: 40997.4414 | HN3: 37535 | HO3: 35721.0508 | HP3: 40315.2891 | HQ3: 40407.0586 | HR3: 39408.7813 | HS3: 38937.2695 | HT3: 38276.5742 | HU3: 42586.3828 | HV3: 43252.168 | HW3: 44495.9102 | HX3: 40052.043 | HY3: 39219.6445 | HZ3: 36086.2188 | IA3: 34450.0273 | IB3: 38710.7852 | IC3: 40267.7539 | ID3: 39030.6953 | IE3: 40487 | IF3: 36019.2461 | IG3: 39238.582 | IH3: 43567.125 | II3: 44486 | IJ3: 43866 | IK3: 42257 | IL3: 38602 | IM3: 36164 | IN3: 38200 | IO3: 41318 | IP3: 39297 | IQ3: 38394 | IR3: 36805 | IS3: 43849 | IT3: 43199 | IU3: 43969 | IV3: 42139 | IW3: 41719 | IX3: 34623 | IY3: 37041 | IZ3: 40139 | JA3: 38860 | JB3: 37810 | JC3: 37932 | JD3: 35939 | JE3: 38101 | JF3: 39725 | JG3: 40802 | JH3: 43527 | JI3: 38492 | JJ3: 36089 | JK3: 34624 | JL3: 39124 | JM3: 37829 | JN3: 38479 | JO3: 35849 | JP3: 35623 | JQ3: 38147 | JR3: 40131 | JS3: 40019 | JT3: 40277 | JU3: 38799 | JV3: 35200 | JW3: 32885 | JX3: 34861 | JY3: 37570 | JZ3: 36438 | KA3: 34870 | KB3: 34595 | KC3: 39748 | KD3: 39309 | KE3: 38674 | KF3: 38948 | KG3: 37286 | KH3: 34503 | KI3: 32312 | KJ3: 35176 | KK3: 37299 | KL3: 36625 | KM3: 37192 | KN3: 34078 | KO3: 36097 | KP3: 38268 | KQ3: 40613 | KR3: 40726 | KS3: 37058 | KT3: 33563 | KU3: 34629 | KV3: 37639 | KW3: 40192 | KX3: 36939 | KY3: 35873 | KZ3: 33523 | LA3: 37538 | LB3: 37002 | LC3: 38391 | LD3: 38464 | LE3: 38274 | LF3: 34947 | LG3: 32830 | LH3: 35973 | LI3: 38556 | LJ3: 37147 | LK3: 40489 | LL3: 34293 | LM3: 36881 | LN3: 38011 | LO3: 41381 | LP3: 36974 | LQ3: 35935 | LR3: - | LS3: - | LT3: - | LU3: - | LV3: - | LW3: - | LX3: - | LY3: - | LZ3: - | MA3: - | MB3: - | MC3: - | MD3: - | ME3: - | MF3: - | MG3: - | MH3: - | MI3: - | MJ3: - | MK3: - | ML3: - | MM3: - | MN3: - | MO3: - | MP3: - | MQ3: - | MR3: - | MS3: - | MT3: - | MU3: - | MV3: - | MW3: - | MX3: -
B4: Día | C4: - | D4: - | E4: - | F4: - | G4: - | H4: - | I4: - | J4: - | K4: - | L4: - | M4: - | N4: - | O4: - | P4: - | Q4: - | R4: - | S4: - | T4: - | U4: - | V4: - | W4: - | X4: - | Y4: - | Z4: - | AA4: - | AB4: - | AC4: - | AD4: - | AE4: - | AF4: - | AG4: - | AH4: - | AI4: - | AJ4: - | AK4: - | AL4: - | AM4: - | AN4: - | AO4: - | AP4: - | AQ4: - | AR4: - | AS4: - | AT4: - | AU4: - | AV4: - | AW4: - | AX4: - | AY4: - | AZ4: - | BA4: - | BB4: - | BC4: - | BD4: - | BE4: - | BF4: - | BG4: - | BH4: - | BI4: - | BJ4: - | BK4: - | BL4: - | BM4: - | BN4: - | BO4: - | BP4: - | BQ4: - | BR4: - | BS4: - | BT4: - | BU4: - | BV4: - | BW4: - | BX4: - | BY4: - | BZ4: - | CA4: - | CB4: - | CC4: - | CD4: - | CE4: - | CF4: - | CG4: - | CH4: - | CI4: - | CJ4: - | CK4: - | CL4: - | CM4: - | CN4: - | CO4: - | CP4: - | CQ4: - | CR4: - | CS4: - | CT4: - | CU4: - | CV4: - | CW4: - | CX4: - | CY4: - | CZ4: - | DA4: - | DB4: - | DC4: - | DD4: - | DE4: - | DF4: - | DG4: - | DH4: - | DI4: - | DJ4: - | DK4: - | DL4: - | DM4: - | DN4: - | DO4: - | DP4: - | DQ4: - | DR4: - | DS4: - | DT4: - | DU4: - | DV4: - | DW4: - | DX4: - | DY4: - | DZ4: - | EA4: - | EB4: - | EC4: - | ED4: - | EE4: - | EF4: - | EG4: - | EH4: - | EI4: - | EJ4: - | EK4: - | EL4: - | EM4: - | EN4: - | EO4: - | EP4: - | EQ4: - | ER4: - | ES4: - | ET4: - | EU4: - | EV4: - | EW4: - | EX4: - | EY4: - | EZ4: - | FA4: - | FB4: - | FC4: - | FD4: - | FE4: - | FF4: - | FG4: - | FH4: - | FI4: - | FJ4: - | FK4: - | FL4: - | FM4: - | FN4: - | FO4: - | FP4: - | FQ4: - | FR4: - | FS4: - | FT4: - | FU4: - | FV4: - | FW4: - | FX4: - | FY4: - | FZ4: - | GA4: - | GB4: - | GC4: - | GD4: - | GE4: - | GF4: - | GG4: - | GH4: - | GI4: - | GJ4: - | GK4: - | GL4: - | GM4: 30 | GN4: 23 | GO4: 1 | GP4: 5 | GQ4: 29 | GR4: 22 | GS4: 13 | GT4: 1 | GU4: 5 | GV4: 2 | GW4: 30 | GX4: 20 | GY4: 25 | GZ4: 1 | HA4: 21 | HB4: 2 | HC4: 18 | HD4: 29 | HE4: 27 | HF4: 1 | HG4: 5 | HH4: 25 | HI4: 29 | HJ4: 17 | HK4: 15 | HL4: 13 | HM4: 6 | HN4: 8 | HO4: 8 | HP4: 30 | HQ4: 1 | HR4: 5 | HS4: 2 | HT4: 30 | HU4: 27 | HV4: 15 | HW4: 13 | HX4: 3 | HY4: 3 | HZ4: 1 | IA4: 22 | IB4: 18 | IC4: 3 | ID4: 31 | IE4: 1 | IF4: 27 | IG4: 30 | IH4: 16 | II4: 12 | IJ4: 15 | IK4: 10 | IL4: 14 | IM4: 31 | IN4: 30 | IO4: 19 | IP4: 27 | IQ4: 1 | IR4: 27 | IS4: 29 | IT4: 16 | IU4: 24 | IV4: 1 | IW4: 3 | IX4: 6 | IY4: 26 | IZ4: 28 | JA4: 6 | JB4: 31 | JC4: 14 | JD4: 6 | JE4: 30 | JF4: 19 | JG4: 16 | JH4: 13 | JI4: 8 | JJ4: 18 | JK4: 31 | JL4: 28 | JM4: 19 | JN4: 22 | JO4: 7 | JP4: 10 | JQ4: 29 | JR4: 12 | JS4: 22 | JT4: 27 | JU4: 1 | JV4: 29 | JW4: 29 | JX4: 14 | JY4: 10 | JZ4: 2 | KA4: 4 | KB4: 3 | KC4: 28 | KD4: 2 | KE4: 21 | KF4: 4 | KG4: 4 | KH4: 3 | KI4: 21 | KJ4: 13 | KK4: 17 | KL4: 27 | KM4: 2 | KN4: 21 | KO4: 18 | KP4: 9 | KQ4: 20 | KR4: 4 | KS4: 23 | KT4: 9 | KU4: 14 | KV4: 30 | KW4: 21 | KX4: 31 | KY4: 1 | KZ4: 28 | LA4: 24 | LB4: 1 | LC4: 19 | LD4: 17 | LE4: 9 | LF4: 5 | LG4: 10 | LH4: 28 | LI4: 11 | LJ4: 3 | LK4: 6 | LL4: 4 | LM4: 29 | LN4: 19 | LO4: 18 | LP4: 9 | LQ4: 23 | LR4: - | LS4: - | LT4: - | LU4: - | LV4: - | LW4: - | LX4: - | LY4: - | LZ4: - | MA4: - | MB4: - | MC4: - | MD4: - | ME4: - | MF4: - | MG4: - | MH4: - | MI4: - | MJ4: - | MK4: - | ML4: - | MM4: - | MN4: - | MO4: - | MP4: - | MQ4: - | MR4: - | MS4: - | MT4: - | MU4: - | MV4: - | MW4: - | MX4: -
B5: Hora | C5: - | D5: - | E5: - | F5: - | G5: - | H5: - | I5: - | J5: - | K5: - | L5: - | M5: - | N5: - | O5: - | P5: - | Q5: - | R5: - | S5: - | T5: - | U5: - | V5: - | W5: - | X5: - | Y5: - | Z5: - | AA5: - | AB5: - | AC5: - | AD5: - | AE5: - | AF5: - | AG5: - | AH5: - | AI5: - | AJ5: - | AK5: - | AL5: - | AM5: - | AN5: - | AO5: - | AP5: - | AQ5: - | AR5: - | AS5: - | AT5: - | AU5: - | AV5: - | AW5: - | AX5: - | AY5: - | AZ5: - | BA5: - | BB5: - | BC5: - | BD5: - | BE5: - | BF5: - | BG5: - | BH5: - | BI5: - | BJ5: - | BK5: - | BL5: - | BM5: - | BN5: - | BO5: - | BP5: - | BQ5: - | BR5: - | BS5: - | BT5: - | BU5: - | BV5: - | BW5: - | BX5: - | BY5: - | BZ5: - | CA5: - | CB5: - | CC5: - | CD5: - | CE5: - | CF5: - | CG5: - | CH5: - | CI5: - | CJ5: - | CK5: - | CL5: - | CM5: - | CN5: - | CO5: - | CP5: - | CQ5: - | CR5: - | CS5: - | CT5: - | CU5: - | CV5: - | CW5: - | CX5: - | CY5: - | CZ5: - | DA5: - | DB5: - | DC5: - | DD5: - | DE5: - | DF5: - | DG5: - | DH5: - | DI5: - | DJ5: - | DK5: - | DL5: - | DM5: - | DN5: - | DO5: - | DP5: - | DQ5: - | DR5: - | DS5: - | DT5: - | DU5: - | DV5: - | DW5: - | DX5: - | DY5: - | DZ5: - | EA5: - | EB5: - | EC5: - | ED5: - | EE5: - | EF5: - | EG5: - | EH5: - | EI5: - | EJ5: - | EK5: - | EL5: - | EM5: - | EN5: - | EO5: - | EP5: - | EQ5: - | ER5: - | ES5: - | ET5: - | EU5: - | EV5: - | EW5: - | EX5: - | EY5: - | EZ5: - | FA5: - | FB5: - | FC5: - | FD5: - | FE5: - | FF5: - | FG5: - | FH5: - | FI5: - | FJ5: - | FK5: - | FL5: - | FM5: - | FN5: - | FO5: - | FP5: - | FQ5: - | FR5: - | FS5: - | FT5: - | FU5: - | FV5: - | FW5: - | FX5: - | FY5: - | FZ5: - | GA5: - | GB5: - | GC5: - | GD5: - | GE5: - | GF5: - | GG5: - | GH5: - | GI5: - | GJ5: - | GK5: - | GL5: - | GM5: 19:40:26 | GN5: 19:53:58 | GO5: 20:22:30 | GP5: 21:12:29 | GQ5: 12:53:28 | GR5: 17:33:59 | GS5: 13:27:29 | GT5: 13:31:27 | GU5: 13:24:04 | GV5: 20:38:57 | GW5: 18:46:52 | GX5: 18:58:16 | GY5: 19:36:56 | GZ5: 19:35:20 | HA5: 20:22:49 | HB5: 21:25:14 | HC5: 12:33:43 | HD5: 13:25:45 | HE5: 13:25:42 | HF5: 13:16:57 | HG5: 21:03:31 | HH5: 20:20:54 | HI5: 18:50:14 | HJ5: 18:53:00 | HK5: 18:54:25 | HL5: 20:01:29 | HM5: 20:21:35 | HN5: 21:12:18 | HO5: 12:57:34 | HP5: 13:24:39 | HQ5: 13:22:27 | HR5: 13:25:59 | HS5: 13:24:29 | HT5: 19:47:45 | HU5: 18:45:59 | HV5: 18:59:07 | HW5: 18:41:03 | HX5: 19:58:30 | HY5: 11:01:04 | HZ5: 21:10:35 | IA5: 12:51:18 | IB5: 12:31:46 | IC5: 13:26:47 | ID5: 13:22:04 | IE5: 12:55:00 | IF5: 19:45:43 | IG5: 19:24:04 | IH5: 18:33:28 | II5: 18:56:00 | IJ5: 19:32:00 | IK5: 20:18:00 | IL5: 11:03:00 | IM5: 12:52:00 | IN5: 13:20:00 | IO5: 13:26:00 | IP5: 13:27:00 | IQ5: 13:10:00 | IR5: 20:50:00 | IS5: 18:31:00 | IT5: 19:53:00 | IU5: 20:06:00 | IV5: 19:57:00 | IW5: 20:21:00 | IX5: 21:10:00 | IY5: 12:53:00 | IZ5: 13:24:00 | JA5: 13:26:00 | JB5: 13:21:00 | JC5: 13:27:00 | JD5: 20:26:00 | JE5: 18:37:00 | JF5: 19:51:00 | JG5: 19:48:00 | JH5: 20:21:00 | JI5: 20:24:00 | JJ5: 21:18:00 | JK5: 13:17:00 | JL5: 13:23:00 | JM5: 13:25:00 | JN5: 13:40:00 | JO5: 13:25:00 | JP5: 11:45:00 | JQ5: 19:48:00 | JR5: 19:35:00 | JS5: 19:54:00 | JT5: 20:42:00 | JU5: 10:44:00 | JV5: 12:43:00 | JW5: 12:48:00 | JX5: 12:56:00 | JY5: 13:32:00 | JZ5: 13:35:00 | KA5: 13:41:00 | KB5: 13:16:00 | KC5: 19:50:00 | KD5: 20:17:00 | KE5: 19:54:00 | KF5: 20:18:00 | KG5: 20:18:00 | KH5: 21:15:00 | KI5: 13:20:00 | KJ5: 13:24:00 | KK5: 13:21:00 | KL5: 13:46:00 | KM5: 13:27:00 | KN5: 20:23:00 | KO5: 19:52:00 | KP5: 19:56:00 | KQ5: 19:55:00 | KR5: 19:56:00 | KS5: 20:42:00 | KT5: 21:16:00 | KU5: 13:32:00 | KV5: 13:37:00 | KW5: 13:33:00 | KX5: 13:56:00 | KY5: 13:21:00 | KZ5: 19:58:00 | LA5: 19:55:00 | LB5: 20:19:00 | LC5: 19:47:00 | LD5: 20:37:00 | LE5: 20:18:00 | LF5: 21:17:00 | LG5: 13:29:00 | LH5: 13:38 | LI5: 13:24 | LJ5: 13:23 | LK5: 13:32 | LL5: 20:49 | LM5: 20:20 | LN5: 19:54 | LO5: 19:50 | LP5: 20:26 | LQ5: 20:33 | LR5: - | LS5: - | LT5: - | LU5: - | LV5: - | LW5: - | LX5: - | LY5: - | LZ5: - | MA5: - | MB5: - | MC5: - | MD5: - | ME5: - | MF5: - | MG5: - | MH5: - | MI5: - | MJ5: - | MK5: - | ML5: - | MM5: - | MN5: - | MO5: - | MP5: - | MQ5: - | MR5: - | MS5: - | MT5: - | MU5: - | MV5: - | MW5: - | MX5: -
B6: Demanda máxima horaria peninsular | C6: 1990-01-01 | D6: 1990-02-01 | E6: 1990-03-01 | F6: 1990-04-01 | G6: 1990-05-01 | H6: 1990-06-01 | I6: 1990-07-01 | J6: 1990-08-01 | K6: 1990-09-01 | L6: 1990-10-01 | M6: 1990-11-01 | N6: 1990-12-01 | O6: 1991-01-01 | P6: 1991-02-01 | Q6: 1991-03-01 | R6: 1991-04-01 | S6: 1991-05-01 | T6: 1991-06-01 | U6: 1991-07-01 | V6: 1991-08-01 | W6: 1991-09-01 | X6: 1991-10-01 | Y6: 1991-11-01 | Z6: 1991-12-01 | AA6: 1992-01-01 | AB6: 1992-02-01 | AC6: 1992-03-01 | AD6: 1992-04-01 | AE6: 1992-05-01 | AF6: 1992-06-01 | AG6: 1992-07-01 | AH6: 1992-08-01 | AI6: 1992-09-01 | AJ6: 1992-10-01 | AK6: 1992-11-01 | AL6: 1992-12-01 | AM6: 1993-01-01 | AN6: 1993-02-01 | AO6: 1993-03-01 | AP6: 1993-04-01 | AQ6: 1993-05-01 | AR6: 1993-06-01 | AS6: 1993-07-01 | AT6: 1993-08-01 | AU6: 1993-09-01 | AV6: 1993-10-01 | AW6: 1993-11-01 | AX6: 1993-12-01 | AY6: 1994-01-01 | AZ6: 1994-02-01 | BA6: 1994-03-01 | BB6: 1994-04-01 | BC6: 1994-05-01 | BD6: 1994-06-01 | BE6: 1994-07-01 | BF6: 1994-08-01 | BG6: 1994-09-01 | BH6: 1994-10-01 | BI6: 1994-11-01 | BJ6: 1994-12-01 | BK6: 1995-01-01 | BL6: 1995-02-01 | BM6: 1995-03-01 | BN6: 1995-04-01 | BO6: 1995-05-01 | BP6: 1995-06-01 | BQ6: 1995-07-01 | BR6: 1995-08-01 | BS6: 1995-09-01 | BT6: 1995-10-01 | BU6: 1995-11-01 | BV6: 1995-12-01 | BW6: 1996-01-01 | BX6: 1996-02-01 | BY6: 1996-03-01 | BZ6: 1996-04-01 | CA6: 1996-05-01 | CB6: 1996-06-01 | CC6: 1996-07-01 | CD6: 1996-08-01 | CE6: 1996-09-01 | CF6: 1996-10-01 | CG6: 1996-11-01 | CH6: 1996-12-01 | CI6: 1997-01-01 | CJ6: 1997-02-01 | CK6: 1997-03-01 | CL6: 1997-04-01 | CM6: 1997-05-01 | CN6: 1997-06-01 | CO6: 1997-07-01 | CP6: 1997-08-01 | CQ6: 1997-09-01 | CR6: 1997-10-01 | CS6: 1997-11-01 | CT6: 1997-12-01 | CU6: 1998-01-01 | CV6: 1998-02-01 | CW6: 1998-03-01 | CX6: 1998-04-01 | CY6: 1998-05-01 | CZ6: 1998-06-01 | DA6: 1998-07-01 | DB6: 1998-08-01 | DC6: 1998-09-01 | DD6: 1998-10-01 | DE6: 1998-11-01 | DF6: 1998-12-01 | DG6: 1999-01-01 | DH6: 1999-02-01 | DI6: 1999-03-01 | DJ6: 1999-04-01 | DK6: 1999-05-01 | DL6: 1999-06-01 | DM6: 1999-07-01 | DN6: 1999-08-01 | DO6: 1999-09-01 | DP6: 1999-10-01 | DQ6: 1999-11-01 | DR6: 1999-12-01 | DS6: 2000-01-01 | DT6: 2000-02-01 | DU6: 2000-03-01 | DV6: 2000-04-01 | DW6: 2000-05-01 | DX6: 2000-06-01 | DY6: 2000-07-01 | DZ6: 2000-08-01 | EA6: 2000-09-01 | EB6: 2000-10-01 | EC6: 2000-11-01 | ED6: 2000-12-01 | EE6: 2001-01-01 | EF6: 2001-02-01 | EG6: 2001-03-01 | EH6: 2001-04-01 | EI6: 2001-05-01 | EJ6: 2001-06-01 | EK6: 2001-07-01 | EL6: 2001-08-01 | EM6: 2001-09-01 | EN6: 2001-10-01 | EO6: 2001-11-01 | EP6: 2001-12-01 | EQ6: 2002-01-01 | ER6: 2002-02-01 | ES6: 2002-03-01 | ET6: 2002-04-01 | EU6: 2002-05-01 | EV6: 2002-06-01 | EW6: 2002-07-01 | EX6: 2002-08-01 | EY6: 2002-09-01 | EZ6: 2002-10-01 | FA6: 2002-11-01 | FB6: 2002-12-01 | FC6: 2003-01-01 | FD6: 2003-02-01 | FE6: 2003-03-01 | FF6: 2003-04-01 | FG6: 2003-05-01 | FH6: 2003-06-01 | FI6: 2003-07-01 | FJ6: 2003-08-01 | FK6: 2003-09-01 | FL6: 2003-10-01 | FM6: 2003-11-01 | FN6: 2003-12-01 | FO6: 2004-01-01 | FP6: 2004-02-01 | FQ6: 2004-03-01 | FR6: 2004-04-01 | FS6: 2004-05-01 | FT6: 2004-06-01 | FU6: 2004-07-01 | FV6: 2004-08-01 | FW6: 2004-09-01 | FX6: 2004-10-01 | FY6: 2004-11-01 | FZ6: 2004-12-01 | GA6: 2005-01-01 | GB6: 2005-02-01 | GC6: 2005-03-01 | GD6: 2005-04-01 | GE6: 2005-05-01 | GF6: 2005-06-01 | GG6: 2005-07-01 | GH6: 2005-08-01 | GI6: 2005-09-01 | GJ6: 2005-10-01 | GK6: 2005-11-01 | GL6: 2005-12-01 | GM6: 2006-01-01 | GN6: 2006-02-01 | GO6: 2006-03-01 | GP6: 2006-04-01 | GQ6: 2006-05-01 | GR6: 2006-06-01 | GS6: 2006-07-01 | GT6: 2006-08-01 | GU6: 2006-09-01 | GV6: 2006-10-01 | GW6: 2006-11-01 | GX6: 2006-12-01 | GY6: 2007-01-01 | GZ6: 2007-02-01 | HA6: 2007-03-01 | HB6: 2007-04-01 | HC6: 2007-05-01 | HD6: 2007-06-01 | HE6: 2007-07-01 | HF6: 2007-08-01 | HG6: 2007-09-01 | HH6: 2007-10-01 | HI6: 2007-11-01 | HJ6: 2007-12-01 | HK6: 2008-01-01 | HL6: 2008-02-01 | HM6: 2008-03-01 | HN6: 2008-04-01 | HO6: 2008-05-01 | HP6: 2008-06-01 | HQ6: 2008-07-01 | HR6: 2008-08-01 | HS6: 2008-09-01 | HT6: 2008-10-01 | HU6: 2008-11-01 | HV6: 2008-12-01 | HW6: 2009-01-01 | HX6: 2009-02-01 | HY6: 2009-03-01 | HZ6: 2009-04-01 | IA6: 2009-05-01 | IB6: 2009-06-01 | IC6: 2009-07-01 | ID6: 2009-08-01 | IE6: 2009-09-01 | IF6: 2009-10-01 | IG6: 2009-11-01 | IH6: 2009-12-01 | II6: 2010-01-01 | IJ6: 2010-02-01 | IK6: 2010-03-01 | IL6: 2010-04-01 | IM6: 2010-05-01 | IN6: 2010-06-01 | IO6: 2010-07-01 | IP6: 2010-08-01 | IQ6: 2010-09-01 | IR6: 2010-10-01 | IS6: 2010-11-01 | IT6: 2010-12-01 | IU6: 2011-01-01 | IV6: 2011-02-01 | IW6: 2011-03-01 | IX6: 2011-04-01 | IY6: 2011-05-01 | IZ6: 2011-06-01 | JA6: 2011-07-01 | JB6: 2011-08-01 | JC6: 2011-09-01 | JD6: 2011-10-01 | JE6: 2011-11-01 | JF6: 2011-12-01 | JG6: 2012-01-01 | JH6: 2012-02-01 | JI6: 2012-03-01 | JJ6: 2012-04-01 | JK6: 2012-05-01 | JL6: 2012-06-01 | JM6: 2012-07-01 | JN6: 2012-08-01 | JO6: 2012-09-01 | JP6: 2012-10-01 | JQ6: 2012-11-01 | JR6: 2012-12-01 | JS6: 2013-01-01 | JT6: 2013-02-01 | JU6: 2013-03-01 | JV6: 2013-04-01 | JW6: 2013-05-01 | JX6: 2013-06-01 | JY6: 2013-07-01 | JZ6: 2013-08-01 | KA6: 2013-09-01 | KB6: 2013-10-01 | KC6: 2013-11-01 | KD6: 2013-12-01 | KE6: 2014-01-01 | KF6: 2014-02-01 | KG6: 2014-03-01 | KH6: 2014-04-01 | KI6: 2014-05-01 | KJ6: 2014-06-01 | KK6: 2014-07-01 | KL6: 2014-08-01 | KM6: 2014-09-01 | KN6: 2014-10-01 | KO6: 2014-11-01 | KP6: 2014-12-01 | KQ6: 2015-01-01 | KR6: 2015-02-01 | KS6: 2015-03-01 | KT6: 2015-04-01 | KU6: 2015-05-01 | KV6: 2015-06-01 | KW6: 2015-07-01 | KX6: 2015-08-01 | KY6: 2015-09-01 | KZ6: 2015-10-01 | LA6: 2015-11-01 | LB6: 2015-12-01 | LC6: 2016-01-01 | LD6: 2016-02-01 | LE6: 2016-03-01 | LF6: 2016-04-01 | LG6: 2016-05-01 | LH6: 2016-06-01 | LI6: 2016-07-01 | LJ6: 2016-08-01 | LK6: 2016-09-01 | LL6: 2016-10-01 | LM6: 2016-11-01 | LN6: 2016-12-01 | LO6: 2017-01-01 | LP6: 2017-02-01 | LQ6: 2017-03-01 | LR6: 2017-04-01 | LS6: 2017-05-01 | LT6: 2017-06-01 | LU6: 2017-07-01 | LV6: 2017-08-01 | LW6: 2017-09-01 | LX6: 2017-10-01 | LY6: 2017-11-01 | LZ6: 2017-12-01 | MA6: 2018-01-01 | MB6: 2018-02-01 | MC6: 2018-03-01 | MD6: 2018-04-01 | ME6: 2018-05-01 | MF6: 2018-06-01 | MG6: 2018-07-01 | MH6: 2018-08-01 | MI6: 2018-09-01 | MJ6: 2018-10-01 | MK6: 2018-11-01 | ML6: 2018-12-01 | MM6: 2019-01-01 | MN6: 2019-02-01 | MO6: 2019-03-01 | MP6: 2019-04-01 | MQ6: 2019-05-01 | MR6: 2019-06-01 | MS6: 2019-07-01 | MT6: 2019-08-01 | MU6: 2019-09-01 | MV6: 2019-10-01 | MW6: 2019-11-01 | MX6: 2019-12-01
B7: Demanda horaria (MWh) | C7: 23011 | D7: 21835 | E7: 20777 | F7: 19333 | G7: 18113 | H7: 19800 | I7: 20185 | J7: 17940 | K7: 19388 | L7: 19519 | M7: 23378 | N7: 25160 | O7: 24395 | P7: 23924 | Q7: 20865 | R7: 19341 | S7: 19479 | T7: 20331 | U7: 20792 | V7: 18159 | W7: 20112 | X7: 21017 | Y7: 22287 | Z7: 23022 | AA7: 25336 | AB7: 23612 | AC7: 21403 | AD7: 21001 | AE7: 19120 | AF7: 18739 | AG7: 20347 | AH7: 18381 | AI7: 20068 | AJ7: 20788 | AK7: 20542 | AL7: 22427 | AM7: 23459 | AN7: 22884 | AO7: 23990 | AP7: 19094 | AQ7: 18593 | AR7: 19775 | AS7: 20355 | AT7: 18388 | AU7: 19392 | AV7: 21727 | AW7: 23010 | AX7: 23404 | AY7: 24764 | AZ7: 23460 | BA7: 20964 | BB7: 21194 | BC7: 19954 | BD7: 21405 | BE7: 21879 | BF7: 20836 | BG7: 21259 | BH7: 20995 | BI7: 22147 | BJ7: 24135 | BK7: 25067 | BL7: 22679 | BM7: 22963 | BN7: 21656 | BO7: 20914 | BP7: 22594 | BQ7: 23334 | BR7: 20798 | BS7: 21203 | BT7: 21377 | BU7: 23426 | BV7: 25813 | BW7: 23852 | BX7: 24913 | BY7: 23579 | BZ7: 20288 | CA7: 21243 | CB7: 22810 | CC7: 23025 | CD7: 21376 | CE7: 21273 | CF7: 21826 | CG7: 25132 | CH7: 25357 | CI7: 27301 | CJ7: 24074 | CK7: 22280 | CL7: 21726 | CM7: 21832 | CN7: 22893 | CO7: 23292 | CP7: 22946 | CQ7: 23788 | CR7: 23434 | CS7: 24422 | CT7: 27369 | CU7: 27893 | CV7: 26068 | CW7: 24627 | CX7: 24363 | CY7: 22865 | CZ7: 25363 | DA7: 25710 | DB7: 24166 | DC7: 25064 | DD7: 24850 | DE7: 28180 | DF7: 29796 | DG7: 29769 | DH7: 28915 | DI7: 26234 | DJ7: 24631 | DK7: 25021 | DL7: 26824 | DM7: 27792 | DN7: 26665 | DO7: 27317 | DP7: 30564.5 | DQ7: 31127.5 | DR7: 31318 | DS7: 33236 | DT7: 29586 | DU7: 28014 | DV7: 27216 | DW7: 27370 | DX7: 29388 | DY7: 28875 | DZ7: 27933 | EA7: 28926 | EB7: 28420 | EC7: 30382 | ED7: 32430 | EE7: 32002 | EF7: 31323 | EG7: 32136 | EH7: 27644 | EI7: 29925 | EJ7: 31238 | EK7: 31226 | EL7: 29459 | EM7: 29690 | EN7: 30068 | EO7: 33267 | EP7: 35186 | EQ7: 34336 | ER7: 32077 | ES7: 32633 | ET7: 30052 | EU7: 29075 | EV7: 32304 | EW7: 31281 | EX7: 28191 | EY7: 30016 | EZ7: 30072 | FA7: 32475 | FB7: 33970 | FC7: 37163 | FD7: 37212 | FE7: 31742 | FF7: 30257 | FG7: 30784 | FH7: 34661 | FI7: 34219 | FJ7: 33239 | FK7: 31257 | FL7: 33372 | FM7: 33990 | FN7: 37459 | FO7: 36755 | FP7: 35981 | FQ7: 37724 | FR7: 32846 | FS7: 31554 | FT7: 36619 | FU7: 36525 | FV7: 33320 | FW7: 34511.7 | FX7: 33619.9 | FY7: 36854.4 | FZ7: 37668.5 | GA7: 43377.6 | GB7: 41776.6 | GC7: 40574.5 | GD7: 33144.8 | GE7: 33248.3 | GF7: 38405.4 | GG7: 38542.1 | GH7: 36429.9 | GI7: 36298.8 | GJ7: 33800.3 | GK7: 40223.5 | GL7: 41619.6 | GM7: 42152.9 | GN7: 39962.7 | GO7: 39346.4 | GP7: 33965.5 | GQ7: 35164.6 | GR7: 37841.2 | GS7: 40524.3 | GT7: 38829 | GU7: 38991.3 | GV7: 35506.8 | GW7: 37192.6 | GX7: 41890.1 | GY7: 43368.5 | GZ7: 40686.2 | HA7: 39761 | HB7: 36576.3 | HC7: 35938.2 | HD7: 36926 | HE7: 39038 | HF7: 38900.7 | HG7: 37360.2 | HH7: 37042.5 | HI7: 41512.2 | HJ7: 44876.1 | HK7: 41796.9 | HL7: 40705.9 | HM7: 41322.4 | HN7: 37739.9 | HO7: 35494.9 | HP7: 39848.7 | HQ7: 40156 | HR7: 39399.5 | HS7: 38489.2 | HT7: 38048.3 | HU7: 42207 | HV7: 42961.1 | HW7: 44440.3 | HX7: 39899.4 | HY7: 38885 | HZ7: 35668.5 | IA7: 34045.2 | IB7: 38522.4 | IC7: 40065.6 | ID7: 39054.9 | IE7: 40225.7 | IF7: 35866.8 | IG7: 39021.9 | IH7: 43877.5 | II7: 44122.4 | IJ7: 43847.8 | IK7: 41555.4 | IL7: 36236.3 | IM7: 36032.9 | IN7: 37696 | IO7: 40934.3 | IP7: 39140.3 | IQ7: 38037.6 | IR7: 36773 | IS7: 44104.1 | IT7: 43185.4 | IU7: 44106.7 | IV7: 42095 | IW7: 40979.2 | IX7: 34182.2 | IY7: 36509.3 | IZ7: 39537.1 | JA7: 38481 | JB7: 37640.3 | JC7: 37751.7 | JD7: 35361.8 | JE7: 37711.7 | JF7: 39687.5 | JG7: 40539.2 | JH7: 43010.2 | JI7: 37704 | JJ7: 35617.2 | JK7: 34681.6 | JL7: 39273.4 | JM7: 37832 | JN7: 38292.8 | JO7: 35655.2 | JP7: 35248.8 | JQ7: 38180 | JR7: 39609.2 | JS7: 39786.8 | JT7: 39963.3 | JU7: 38321.6 | JV7: 34838.2 | JW7: 32650.5 | JX7: 34826 | JY7: 37399.4 | JZ7: 36446.1 | KA7: 34848.1 | KB7: 34281.3 | KC7: 39741.7 | KD7: 39423.6 | KE7: 38291.45 | KF7: 38666.29 | KG7: 36957.87 | KH7: 33921.17 | KI7: 31830.21 | KJ7: 34774.51 | KK7: 37019.73 | KL7: 36278.76 | KM7: 36866.68 | KN7: 33609.53 | KO7: 35734.39 | KP7: 37844.76 | KQ7: 40231.69 | KR7: 40323.77 | KS7: 36679.41 | KT7: 32994.78 | KU7: 34142.59 | KV7: 37259.25 | KW7: 39927.6 | KX7: 36645.17 | KY7: 35524.2 | KZ7: 33176.07 | LA7: 37201 | LB7: 36704 | LC7: 38071 | LD7: 38239 | LE7: 37925 | LF7: 34481 | LG7: 32485 | LH7: 35697 | LI7: 38213 | LJ7: 36910 | LK7: 40144 | LL7: 33708 | LM7: 36572 | LN7: 37749 | LO7: 41015 | LP7: 36732 | LQ7: 35575 | LR7: - | LS7: - | LT7: - | LU7: - | LV7: - | LW7: - | LX7: - | LY7: - | LZ7: - | MA7: - | MB7: - | MC7: - | MD7: - | ME7: - | MF7: - | MG7: - | MH7: - | MI7: - | MJ7: - | MK7: - | ML7: - | MM7: - | MN7: - | MO7: - | MP7: - | MQ7: - | MR7: - | MS7: - | MT7: - | MU7: - | MV7: - | MW7: - | MX7: -
B8: Día | C8: 23 | D8: 1 | E8: 5 | F8: 10 | G8: 31 | H8: 28 | I8: 19 | J8: 30 | K8: 6 | L8: 25 | M8: 29 | N8: 10 | O8: 16 | P8: 14 | Q8: 6 | R8: 5 | S8: 9 | T8: 27 | U8: 18 | V8: 29 | W8: 19 | X8: 22 | Y8: 21 | Z8: 12 | AA8: 23 | AB8: 19 | AC8: 26 | AD8: 1 | AE8: 19 | AF8: 30 | AG8: 28 | AH8: 27 | AI8: 17 | AJ8: 22 | AK8: 30 | AL8: 15 | AM8: 11 | AN8: 25 | AO8: 2 | AP8: 14 | AQ8: 19 | AR8: 18 | AS8: 29 | AT8: 5 | AU8: 30 | AV8: 26 | AW8: 22 | AX8: 14 | AY8: 19 | AZ8: 7 | BA8: 2 | BB8: 15 | BC8: 31 | BD8: 29 | BE8: 15 | BF8: 31 | BG8: 7 | BH8: 25 | BI8: 29 | BJ8: 21 | BK8: 16 | BL8: 1 | BM8: 8 | BN8: 25 | BO8: 29 | BP8: 22 | BQ8: 21 | BR8: 1 | BS8: 28 | BT8: 26 | BU8: 29 | BV8: 14 | BW8: 23 | BX8: 22 | BY8: 6 | BZ8: 2 | CA8: 29 | CB8: 14 | CC8: 24 | CD8: 1 | CE8: 30 | CF8: 17 | CG8: 19 | CH8: 11 | CI8: 7 | CJ8: 4 | CK8: 12 | CL8: 8 | CM8: 29 | CN8: 13 | CO8: 30 | CP8: 1 | CQ8: 10 | CR8: 27 | CS8: 25 | CT8: 16 | CU8: 26 | CV8: 4 | CW8: 12 | CX8: 15 | CY8: 4 | CZ8: 30 | DA8: 23 | DB8: 31 | DC8: 2 | DD8: 28 | DE8: 23 | DF8: 2 | DG8: 12 | DH8: 15 | DI8: 8 | DJ8: 16 | DK8: 26 | DL8: 16 | DM8: 2 | DN8: 31 | DO8: 2 | DP8: 31 | DQ8: 25 | DR8: 21 | DS8: 25 | DT8: 1 | DU8: 22 | DV8: 4 | DW8: 31 | DX8: 30 | DY8: 21 | DZ8: 1 | EA8: 15 | EB8: 30 | EC8: 20 | ED8: 20 | EE8: 16 | EF8: 27 | EG8: 1 | EH8: 4 | EI8: 29 | EJ8: 25 | EK8: 2 | EL8: 1 | EM8: 4 | EN8: 30 | EO8: 26 | EP8: 19 | EQ8: 9 | ER8: 19 | ES8: 5 | ET8: 11 | EU8: 8 | EV8: 18 | EW8: 29 | EX8: 5 | EY8: 19 | EZ8: 30 | FA8: 21 | FB8: 17 | FC8: 15 | FD8: 18 | FE8: 27 | FF8: 2 | FG8: 29 | FH8: 27 | FI8: 11 | FJ8: 1 | FK8: 25 | FL8: 27 | FM8: 27 | FN8: 4 | FO8: 20 | FP8: 20 | FQ8: 2 | FR8: 1 | FS8: 11 | FT8: 30 | FU8: 23 | FV8: 25 | FW8: 10 | FX8: 5 | FY8: 30 | FZ8: 9 | GA8: 27 | GB8: 1 | GC8: 1 | GD8: 12 | GE8: 27 | GF8: 22 | GG8: 21 | GH8: 31 | GI8: 2 | GJ8: 27 | GK8: 28 | GL8: 12 | GM8: 30 | GN8: 23 | GO8: 1 | GP8: 6 | GQ8: 29 | GR8: 23 | GS8: 13 | GT8: 1 | GU8: 5 | GV8: 2 | GW8: 28 | GX8: 20 | GY8: 25 | GZ8: 1 | HA8: 21 | HB8: 3 | HC8: 18 | HD8: 25 | HE8: 31 | HF8: 1 | HG8: 7 | HH8: 25 | HI8: 29 | HJ8: 17 | HK8: 15 | HL8: 14 | HM8: 6 | HN8: 1 | HO8: 8 | HP8: 27 | HQ8: 1 | HR8: 5 | HS8: 2 | HT8: 29 | HU8: 26 | HV8: 15 | HW8: 13 | HX8: 2 | HY8: 4 | HZ8: 1 | IA8: 22 | IB8: 18 | IC8: 22 | ID8: 31 | IE8: 1 | IF8: 29 | IG8: 30 | IH8: 16 | II8: 11 | IJ8: 15 | IK8: 11 | IL8: 13 | IM8: 31 | IN8: 30 | IO8: 19 | IP8: 26 | IQ8: 1 | IR8: 26 | IS8: 29 | IT8: 16 | IU8: 24 | IV8: 1 | IW8: 3 | IX8: 6 | IY8: 26 | IZ8: 27 | JA8: 5 | JB8: 31 | JC8: 14 | JD8: 5 | JE8: 29 | JF8: 19 | JG8: 16 | JH8: 13 | JI8: 20 | JJ8: 18 | JK8: 31 | JL8: 27 | JM8: 19 | JN8: 22 | JO8: 12 | JP8: 30 | JQ8: 29 | JR8: 12 | JS8: 22 | JT8: 27 | JU8: 4 | JV8: 9 | JW8: 29 | JX8: 14 | JY8: 10 | JZ8: 2 | KA8: 4 | KB8: 3 | KC8: 28 | KD8: 2 | KE8: 21 | KF8: 4 | KG8: 4 | KH8: 2 | KI8: 28 | KJ8: 13 | KK8: 17 | KL8: 27 | KM8: 2 | KN8: 21 | KO8: 18 | KP8: 9 | KQ8: 20 | KR8: 4 | KS8: 23 | KT8: 9 | KU8: 14 | KV8: 30 | KW8: 21 | KX8: 31 | KY8: 1 | KZ8: 28 | LA8: 24 | LB8: 1 | LC8: 19 | LD8: 17 | LE8: 9 | LF8: 4 | LG8: 10 | LH8: 28 | LI8: 11 | LJ8: 3 | LK8: 6 | LL8: 4 | LM8: 29 | LN8: 19 | LO8: 18 | LP8: 9 | LQ8: 23 | LR8: - | LS8: - | LT8: - | LU8: - | LV8: - | LW8: - | LX8: - | LY8: - | LZ8: - | MA8: - | MB8: - | MC8: - | MD8: - | ME8: - | MF8: - | MG8: - | MH8: - | MI8: - | MJ8: - | MK8: - | ML8: - | MM8: - | MN8: - | MO8: - | MP8: - | MQ8: - | MR8: - | MS8: - | MT8: - | MU8: - | MV8: - | MW8: - | MX8: -
B9: Hora | C9: 20 | D9: 20 | E9: 21 | F9: 12 | G9: 13 | H9: 13 | I9: 13 | J9: 13 | K9: 13 | L9: 20 | M9: 20 | N9: 19 | O9: 20 | P9: 20 | Q9: 21 | R9: 12 | S9: 12 | T9: 13 | U9: 13 | V9: 13 | W9: 13 | X9: 20 | Y9: 19 | Z9: 19 | AA9: 20 | AB9: 20 | AC9: 21 | AD9: 22 | AE9: 13 | AF9: 13 | AG9: 13 | AH9: 13 | AI9: 13 | AJ9: 20 | AK9: 20 | AL9: 19 | AM9: 20 | AN9: 21 | AO9: 21 | AP9: 12 | AQ9: 12 | AR9: 13 | AS9: 13 | AT9: 13 | AU9: 20 | AV9: 20 | AW9: 20 | AX9: 20 | AY9: 20 | AZ9: 20 | BA9: 21 | BB9: 12 | BC9: 13 | BD9: 13 | BE9: 13 | BF9: 13 | BG9: 13 | BH9: 20 | BI9: 20 | BJ9: 20 | BK9: 20 | BL9: 20 | BM9: 21 | BN9: 22 | BO9: 13 | BP9: 13 | BQ9: 13 | BR9: 13 | BS9: 21 | BT9: 20 | BU9: 19 | BV9: 20 | BW9: 20 | BX9: 21 | BY9: 21 | BZ9: 22 | CA9: 13 | CB9: 13 | CC9: 13 | CD9: 13 | CE9: 21 | CF9: 21 | CG9: 20 | CH9: 19 | CI9: 20 | CJ9: 20 | CK9: 21 | CL9: 22 | CM9: 13 | CN9: 13 | CO9: 13 | CP9: 13 | CQ9: 13 | CR9: 20 | CS9: 19 | CT9: 19 | CU9: 20 | CV9: 20 | CW9: 21 | CX9: 12 | CY9: 22 | CZ9: 13 | DA9: 11 | DB9: 14 | DC9: 13 | DD9: 20 | DE9: 20 | DF9: 19 | DG9: 20 | DH9: 20 | DI9: 21 | DJ9: 22 | DK9: 13 | DL9: 13 | DM9: 13 | DN9: 14 | DO9: 13 | DP9: 3 | DQ9: 20 | DR9: 20 | DS9: 20 | DT9: 20 | DU9: 21 | DV9: 22 | DW9: 11 | DX9: 11 | DY9: 13 | DZ9: 13 | EA9: 13 | EB9: 20 | EC9: 20 | ED9: 19 | EE9: 20 | EF9: 21 | EG9: 21 | EH9: 22 | EI9: 18 | EJ9: 18 | EK9: 13 | EL9: 13 | EM9: 12 | EN9: 20 | EO9: 20 | EP9: 19 | EQ9: 20 | ER9: 21 | ES9: 21 | ET9: 22 | EU9: 13 | EV9: 13 | EW9: 11 | EX9: 14 | EY9: 13 | EZ9: 20 | FA9: 20 | FB9: 19 | FC9: 20 | FD9: 20 | FE9: 21 | FF9: 22 | FG9: 13 | FH9: 13 | FI9: 14 | FJ9: 14 | FK9: 22 | FL9: 20 | FM9: 20 | FN9: 19 | FO9: 20 | FP9: 20 | FQ9: 21 | FR9: 22 | FS9: 13 | FT9: 14 | FU9: 13 | FV9: 14 | FW9: 13 | FX9: 21 | FY9: 19 | FZ9: 20 | GA9: 20 | GB9: 20 | GC9: 13 | GD9: 22 | GE9: 13 | GF9: 18 | GG9: 14 | GH9: 14 | GI9: 14 | GJ9: 21 | GK9: 19 | GL9: 19 | GM9: 20 | GN9: 20 | GO9: 21 | GP9: 22 | GQ9: 13 | GR9: 13 | GS9: 14 | GT9: 14 | GU9: 14 | GV9: 21 | GW9: 19 | GX9: 20 | GY9: 20 | GZ9: 21 | HA9: 21 | HB9: 22 | HC9: 13 | HD9: 14 | HE9: 18 | HF9: 14 | HG9: 14 | HH9: 21 | HI9: 20 | HJ9: 20 | HK9: 20 | HL9: 20 | HM9: 21 | HN9: 22 | HO9: 13 | HP9: 14 | HQ9: 14 | HR9: 14 | HS9: 13 | HT9: 20 | HU9: 19 | HV9: 20 | HW9: 20 | HX9: 20 | HY9: 12 | HZ9: 22 | IA9: 13 | IB9: 14 | IC9: 14 | ID9: 14 | IE9: 14 | IF9: 20 | IG9: 20 | IH9: 19 | II9: 20 | IJ9: 20 | IK9: 21 | IL9: 22 | IM9: 14 | IN9: 13 | IO9: 14 | IP9: 14 | IQ9: 14 | IR9: 21 | IS9: 19 | IT9: 20 | IU9: 20 | IV9: 20 | IW9: 21 | IX9: 13 | IY9: 14 | IZ9: 14 | JA9: 14 | JB9: 14 | JC9: 14 | JD9: 21 | JE9: 20 | JF9: 20 | JG9: 20 | JH9: 21 | JI9: 21 | JJ9: 22 | JK9: 14 | JL9: 14 | JM9: 14 | JN9: 14 | JO9: 13 | JP9: 20 | JQ9: 20 | JR9: 20 | JS9: 21 | JT9: 21 | JU9: 21 | JV9: 13 | JW9: 13 | JX9: 14 | JY9: 14 | JZ9: 14 | KA9: 14 | KB9: 14 | KC9: 21 | KD9: 21 | KE9: 20 | KF9: 21 | KG9: 21 | KH9: 13 | KI9: 13 | KJ9: 14 | KK9: 14 | KL9: 14 | KM9: 14 | KN9: 21 | KO9: 21 | KP9: 20 | KQ9: 20 | KR9: 21 | KS9: 21 | KT9: 22 | KU9: 14 | KV9: 14 | KW9: 14 | KX9: 14 | KY9: 14 | KZ9: 20 | LA9: 20 | LB9: 21 | LC9: 21 | LD9: 21 | LE9: 21 | LF9: 13 | LG9: 13 | LH9: 14 | LI9: 14 | LJ9: 14 | LK9: 14 | LL9: 21 | LM9: 21 | LN9: 20 | LO9: 21 | LP9: 21 | LQ9: 21 | LR9: - | LS9: - | LT9: - | LU9: - | LV9: - | LW9: - | LX9: - | LY9: - | LZ9: - | MA9: - | MB9: - | MC9: - | MD9: - | ME9: - | MF9: - | MG9: - | MH9: - | MI9: - | MJ9: - | MK9: - | ML9: - | MM9: - | MN9: - | MO9: - | MP9: - | MQ9: - | MR9: - | MS9: - | MT9: - | MU9: - | MV9: - | MW9: - | MX9: -
B10: Demanda máxima diaria peninsular | C10: 1990-01-01 | D10: 1990-02-01 | E10: 1990-03-01 | F10: 1990-04-01 | G10: 1990-05-01 | H10: 1990-06-01 | I10: 1990-07-01 | J10: 1990-08-01 | K10: 1990-09-01 | L10: 1990-10-01 | M10: 1990-11-01 | N10: 1990-12-01 | O10: 1991-01-01 | P10: 1991-02-01 | Q10: 1991-03-01 | R10: 1991-04-01 | S10: 1991-05-01 | T10: 1991-06-01 | U10: 1991-07-01 | V10: 1991-08-01 | W10: 1991-09-01 | X10: 1991-10-01 | Y10: 1991-11-01 | Z10: 1991-12-01 | AA10: 1992-01-01 | AB10: 1992-02-01 | AC10: 1992-03-01 | AD10: 1992-04-01 | AE10: 1992-05-01 | AF10: 1992-06-01 | AG10: 1992-07-01 | AH10: 1992-08-01 | AI10: 1992-09-01 | AJ10: 1992-10-01 | AK10: 1992-11-01 | AL10: 1992-12-01 | AM10: 1993-01-01 | AN10: 1993-02-01 | AO10: 1993-03-01 | AP10: 1993-04-01 | AQ10: 1993-05-01 | AR10: 1993-06-01 | AS10: 1993-07-01 | AT10: 1993-08-01 | AU10: 1993-09-01 | AV10: 1993-10-01 | AW10: 1993-11-01 | AX10: 1993-12-01 | AY10: 1994-01-01 | AZ10: 1994-02-01 | BA10: 1994-03-01 | BB10: 1994-04-01 | BC10: 1994-05-01 | BD10: 1994-06-01 | BE10: 1994-07-01 | BF10: 1994-08-01 | BG10: 1994-09-01 | BH10: 1994-10-01 | BI10: 1994-11-01 | BJ10: 1994-12-01 | BK10: 1995-01-01 | BL10: 1995-02-01 | BM10: 1995-03-01 | BN10: 1995-04-01 | BO10: 1995-05-01 | BP10: 1995-06-01 | BQ10: 1995-07-01 | BR10: 1995-08-01 | BS10: 1995-09-01 | BT10: 1995-10-01 | BU10: 1995-11-01 | BV10: 1995-12-01 | BW10: 1996-01-01 | BX10: 1996-02-01 | BY10: 1996-03-01 | BZ10: 1996-04-01 | CA10: 1996-05-01 | CB10: 1996-06-01 | CC10: 1996-07-01 | CD10: 1996-08-01 | CE10: 1996-09-01 | CF10: 1996-10-01 | CG10: 1996-11-01 | CH10: 1996-12-01 | CI10: 1997-01-01 | CJ10: 1997-02-01 | CK10: 1997-03-01 | CL10: 1997-04-01 | CM10: 1997-05-01 | CN10: 1997-06-01 | CO10: 1997-07-01 | CP10: 1997-08-01 | CQ10: 1997-09-01 | CR10: 1997-10-01 | CS10: 1997-11-01 | CT10: 1997-12-01 | CU10: 1998-01-01 | CV10: 1998-02-01 | CW10: 1998-03-01 | CX10: 1998-04-01 | CY10: 1998-05-01 | CZ10: 1998-06-01 | DA10: 1998-07-01 | DB10: 1998-08-01 | DC10: 1998-09-01 | DD10: 1998-10-01 | DE10: 1998-11-01 | DF10: 1998-12-01 | DG10: 1999-01-01 | DH10: 1999-02-01 | DI10: 1999-03-01 | DJ10: 1999-04-01 | DK10: 1999-05-01 | DL10: 1999-06-01 | DM10: 1999-07-01 | DN10: 1999-08-01 | DO10: 1999-09-01 | DP10: 1999-10-01 | DQ10: 1999-11-01 | DR10: 1999-12-01 | DS10: 2000-01-01 | DT10: 2000-02-01 | DU10: 2000-03-01 | DV10: 2000-04-01 | DW10: 2000-05-01 | DX10: 2000-06-01 | DY10: 2000-07-01 | DZ10: 2000-08-01 | EA10: 2000-09-01 | EB10: 2000-10-01 | EC10: 2000-11-01 | ED10: 2000-12-01 | EE10: 2001-01-01 | EF10: 2001-02-01 | EG10: 2001-03-01 | EH10: 2001-04-01 | EI10: 2001-05-01 | EJ10: 2001-06-01 | EK10: 2001-07-01 | EL10: 2001-08-01 | EM10: 2001-09-01 | EN10: 2001-10-01 | EO10: 2001-11-01 | EP10: 2001-12-01 | EQ10: 2002-01-01 | ER10: 2002-02-01 | ES10: 2002-03-01 | ET10: 2002-04-01 | EU10: 2002-05-01 | EV10: 2002-06-01 | EW10: 2002-07-01 | EX10: 2002-08-01 | EY10: 2002-09-01 | EZ10: 2002-10-01 | FA10: 2002-11-01 | FB10: 2002-12-01 | FC10: 2003-01-01 | FD10: 2003-02-01 | FE10: 2003-03-01 | FF10: 2003-04-01 | FG10: 2003-05-01 | FH10: 2003-06-01 | FI10: 2003-07-01 | FJ10: 2003-08-01 | FK10: 2003-09-01 | FL10: 2003-10-01 | FM10: 2003-11-01 | FN10: 2003-12-01 | FO10: 2004-01-01 | FP10: 2004-02-01 | FQ10: 2004-03-01 | FR10: 2004-04-01 | FS10: 2004-05-01 | FT10: 2004-06-01 | FU10: 2004-07-01 | FV10: 2004-08-01 | FW10: 2004-09-01 | FX10: 2004-10-01 | FY10: 2004-11-01 | FZ10: 2004-12-01 | GA10: 2005-01-01 | GB10: 2005-02-01 | GC10: 2005-03-01 | GD10: 2005-04-01 | GE10: 2005-05-01 | GF10: 2005-06-01 | GG10: 2005-07-01 | GH10: 2005-08-01 | GI10: 2005-09-01 | GJ10: 2005-10-01 | GK10: 2005-11-01 | GL10: 2005-12-01 | GM10: 2006-01-01 | GN10: 2006-02-01 | GO10: 2006-03-01 | GP10: 2006-04-01 | GQ10: 2006-05-01 | GR10: 2006-06-01 | GS10: 2006-07-01 | GT10: 2006-08-01 | GU10: 2006-09-01 | GV10: 2006-10-01 | GW10: 2006-11-01 | GX10: 2006-12-01 | GY10: 2007-01-01 | GZ10: 2007-02-01 | HA10: 2007-03-01 | HB10: 2007-04-01 | HC10: 2007-05-01 | HD10: 2007-06-01 | HE10: 2007-07-01 | HF10: 2007-08-01 | HG10: 2007-09-01 | HH10: 2007-10-01 | HI10: 2007-11-01 | HJ10: 2007-12-01 | HK10: 2008-01-01 | HL10: 2008-02-01 | HM10: 2008-03-01 | HN10: 2008-04-01 | HO10: 2008-05-01 | HP10: 2008-06-01 | HQ10: 2008-07-01 | HR10: 2008-08-01 | HS10: 2008-09-01 | HT10: 2008-10-01 | HU10: 2008-11-01 | HV10: 2008-12-01 | HW10: 2009-01-01 | HX10: 2009-02-01 | HY10: 2009-03-01 | HZ10: 2009-04-01 | IA10: 2009-05-01 | IB10: 2009-06-01 | IC10: 2009-07-01 | ID10: 2009-08-01 | IE10: 2009-09-01 | IF10: 2009-10-01 | IG10: 2009-11-01 | IH10: 2009-12-01 | II10: 2010-01-01 | IJ10: 2010-02-01 | IK10: 2010-03-01 | IL10: 2010-04-01 | IM10: 2010-05-01 | IN10: 2010-06-01 | IO10: 2010-07-01 | IP10: 2010-08-01 | IQ10: 2010-09-01 | IR10: 2010-10-01 | IS10: 2010-11-01 | IT10: 2010-12-01 | IU10: 2011-01-01 | IV10: 2011-02-01 | IW10: 2011-03-01 | IX10: 2011-04-01 | IY10: 2011-05-01 | IZ10: 2011-06-01 | JA10: 2011-07-01 | JB10: 2011-08-01 | JC10: 2011-09-01 | JD10: 2011-10-01 | JE10: 2011-11-01 | JF10: 2011-12-01 | JG10: 2012-01-01 | JH10: 2012-02-01 | JI10: 2012-03-01 | JJ10: 2012-04-01 | JK10: 2012-05-01 | JL10: 2012-06-01 | JM10: 2012-07-01 | JN10: 2012-08-01 | JO10: 2012-09-01 | JP10: 2012-10-01 | JQ10: 2012-11-01 | JR10: 2012-12-01 | JS10: 2013-01-01 | JT10: 2013-02-01 | JU10: 2013-03-01 | JV10: 2013-04-01 | JW10: 2013-05-01 | JX10: 2013-06-01 | JY10: 2013-07-01 | JZ10: 2013-08-01 | KA10: 2013-09-01 | KB10: 2013-10-01 | KC10: 2013-11-01 | KD10: 2013-12-01 | KE10: 2014-01-01 | KF10: 2014-02-01 | KG10: 2014-03-01 | KH10: 2014-04-01 | KI10: 2014-05-01 | KJ10: 2014-06-01 | KK10: 2014-07-01 | KL10: 2014-08-01 | KM10: 2014-09-01 | KN10: 2014-10-01 | KO10: 2014-11-01 | KP10: 2014-12-01 | KQ10: 2015-01-01 | KR10: 2015-02-01 | KS10: 2015-03-01 | KT10: 2015-04-01 | KU10: 2015-05-01 | KV10: 2015-06-01 | KW10: 2015-07-01 | KX10: 2015-08-01 | KY10: 2015-09-01 | KZ10: 2015-10-01 | LA10: 2015-11-01 | LB10: 2015-12-01 | LC10: 2016-01-01 | LD10: 2016-02-01 | LE10: 2016-03-01 | LF10: 2016-04-01 | LG10: 2016-05-01 | LH10: 2016-06-01 | LI10: 2016-07-01 | LJ10: 2016-08-01 | LK10: 2016-09-01 | LL10: 2016-10-01 | LM10: 2016-11-01 | LN10: 2016-12-01 | LO10: 2017-01-01 | LP10: 2017-02-01 | LQ10: 2017-03-01 | LR10: 2017-04-01 | LS10: 2017-05-01 | LT10: 2017-06-01 | LU10: 2017-07-01 | LV10: 2017-08-01 | LW10: 2017-09-01 | LX10: 2017-10-01 | LY10: 2017-11-01 | LZ10: 2017-12-01 | MA10: 2018-01-01 | MB10: 2018-02-01 | MC10: 2018-03-01 | MD10: 2018-04-01 | ME10: 2018-05-01 | MF10: 2018-06-01 | MG10: 2018-07-01 | MH10: 2018-08-01 | MI10: 2018-09-01 | MJ10: 2018-10-01 | MK10: 2018-11-01 | ML10: 2018-12-01 | MM10: 2019-01-01 | MN10: 2019-02-01 | MO10: 2019-03-01 | MP10: 2019-04-01 | MQ10: 2019-05-01 | MR10: 2019-06-01 | MS10: 2019-07-01 | MT10: 2019-08-01 | MU10: 2019-09-01 | MV10: 2019-10-01 | MW10: 2019-11-01 | MX10: 2019-12-01
B11: Demanda diaria (GWh) | C11: 454.303 | D11: 434.59 | E11: 415.337 | F11: 406.509 | G11: 748.033 | H11: 410.912 | I11: 415.592 | J11: 371.076 | K11: 403.277 | L11: 387.923 | M11: 460.896 | N11: 481.936 | O11: 487.525 | P11: 479.367 | Q11: 436.58 | R11: 408.586 | S11: 415.291 | T11: 431.684 | U11: 434.53 | V11: 377.492 | W11: 426.466 | X11: 423.218 | Y11: 451.673 | Z11: 464.019 | AA11: 505.553 | AB11: 478.76 | AC11: 446.354 | AD11: 448.182 | AE11: 408.217 | AF11: 394.185 | AG11: 427.723 | AH11: 386.174 | AI11: 422.743 | AJ11: 418.411 | AK11: 419.691 | AL11: 456.513 | AM11: 470.875 | AN11: 466.516 | AO11: 489.562 | AP11: 407.091 | AQ11: 395.477 | AR11: 412.19 | AS11: 422.608 | AT11: 385.11 | AU11: 406.296 | AV11: 441.553 | AW11: 466.761 | AX11: 471.337 | AY11: 499.651 | AZ11: 479.288 | BA11: 432.043 | BB11: 442.188 | BC11: 411.628 | BD11: 447.661 | BE11: 452.598 | BF11: 428.381 | BG11: 441.854 | BH11: 425.691 | BI11: 449.078 | BJ11: 488.742 | BK11: 503.83 | BL11: 462.833 | BM11: 471.841 | BN11: 455.286 | BO11: 435.379 | BP11: 466.279 | BQ11: 483.253 | BR11: 438.572 | BS11: 441.133 | BT11: 433.915 | BU11: 473.987 | BV11: 519.211 | BW11: 491.634 | BX11: 512.632 | BY11: 493.368 | BZ11: 435.672 | CA11: 451.303 | CB11: 480.373 | CC11: 484.15 | CD11: 448.295 | CE11: 449.871 | CF11: 444.692 | CG11: 504.52 | CH11: 515.561 | CI11: 541.106 | CJ11: 492.698 | CK11: 459.901 | CL11: 460.839 | CM11: 465.727 | CN11: 481.712 | CO11: 490.386 | CP11: 478.453 | CQ11: 501.386 | CR11: 476.519 | CS11: 518.766 | CT11: 561.453 | CU11: 572.845 | CV11: 527.223 | CW11: 511.786 | CX11: 513.816 | CY11: 484.784 | CZ11: 524.036 | DA11: 538.245 | DB11: 501.551 | DC11: 531.469 | DD11: 500.699 | DE11: 562.238 | DF11: 593.594 | DG11: 594.183 | DH11: 584.136 | DI11: 546.814 | DJ11: 522.242 | DK11: 519.858 | DL11: 555.492 | DM11: 570.865 | DN11: 539.94 | DO11: 563.974 | DP11: 527.89 | DQ11: 626.848 | DR11: 624.356 | DS11: 654.197 | DT11: 599.546 | DU11: 583.81 | DV11: 543.879 | DW11: 573.836 | DX11: 610.563 | DY11: 588.179 | DZ11: 565.036 | EA11: 593.815 | EB11: 566.818 | EC11: 628.926 | ED11: 647.901 | EE11: 661.444 | EF11: 642.835 | EG11: 658.651 | EH11: 584.287 | EI11: 615.112 | EJ11: 671.532 | EK11: 636.263 | EL11: 599.759 | EM11: 612.055 | EN11: 589.15 | EO11: 675.115 | EP11: 697.857 | EQ11: 694.75 | ER11: 667.001 | ES11: 661.05 | ET11: 632.717 | EU11: 626.415 | EV11: 674.664 | EW11: 651.591 | EX11: 592.339 | EY11: 627.702 | EZ11: 631.184 | FA11: 665.154 | FB11: 699.617 | FC11: 763.93 | FD11: 759.328 | FE11: 657.119 | FF11: 640.122 | FG11: 654.061 | FH11: 731.425 | FI11: 706.375 | FJ11: 701.58 | FK11: 703.597 | FL11: 676.93 | FM11: 701.313 | FN11: 739.055 | FO11: 743.712 | FP11: 744.961 | FQ11: 754.655 | FR11: 715.949 | FS11: 661.585 | FT11: 757.322 | FU11: 746.142 | FV11: 694.663 | FW11: 700.387 | FX11: 686.783 | FY11: 745.063 | FZ11: 773.234 | GA11: 835.19 | GB11: 826.305 | GC11: 831.727 | GD11: 690.643 | GE11: 684.501 | GF11: 765.821 | GG11: 776.941 | GH11: 724.271 | GI11: 745.246 | GJ11: 677.347 | GK11: 801.217 | GL11: 839.923 | GM11: 853.101 | GN11: 887.266 | GO11: 894.76 | GP11: 742.853 | GQ11: 737.906 | GR11: 792.209 | GS11: 821.819 | GT11: 790.512 | GU11: 803.649 | GV11: 726.153 | GW11: 766.462 | GX11: 862.742 | GY11: 876.807 | GZ11: 847.347 | HA11: 812.993 | HB11: 767.122 | HC11: 740.899 | HD11: 763.781 | HE11: 801.101 | HF11: 796.68 | HG11: 775.478 | HH11: 742.93 | HI11: 847.573 | HJ11: 905.949 | HK11: 859.496 | HL11: 848.897 | HM11: 823.26 | HN11: 779.785 | HO11: 738.74 | HP11: 814.894 | HQ11: 821.637 | HR11: 794.918 | HS11: 786.68 | HT11: 768.022 | HU11: 836.453 | HV11: 852.654 | HW11: 891.406 | HX11: 816.988 | HY11: 794.267 | HZ11: 732.463 | IA11: 694.54 | IB11: 767.828 | IC11: 782.072 | ID11: 758.416 | IE11: 789.554 | IF11: 723.003 | IG11: 762.832 | IH11: 879.16 | II11: 898.364623 | IJ11: 872.72824 | IK11: 845.785375 | IL11: 737.633114 | IM11: 712.774566 | IN11: 760.877768 | IO11: 812.494902 | IP11: 781.525513 | IQ11: 768.986256 | IR11: 730.3656 | IS11: 862.136376 | IT11: 856.484946 | IU11: 884.980577 | IV11: 852.505565 | IW11: 833.54718 | IX11: 713.470302 | IY11: 731.961446 | IZ11: 790.991487 | JA11: 781.257803 | JB11: 758.575574 | JC11: 773.61345 | JD11: 722.594526 | JE11: 762.284325 | JF11: 800.246255 | JG11: 821.965681 | JH11: 870.555586 | JI11: 765.773671 | JJ11: 729.711831 | JK11: 705.687664 | JL11: 792.68336 | JM11: 769.892321 | JN11: 764.687208 | JO11: 721.740147 | JP11: 704.301678 | JQ11: 767.525398 | JR11: 797.704423 | JS11: 809.868437 | JT11: 799.344706 | JU11: 786.282958 | JV11: 722.562842 | JW11: 664.704383 | JX11: 697.933943 | JY11: 760.675465 | JZ11: 732.1814 | KA11: 709.748535 | KB11: 707.815967 | KC11: 799.077155 | KD11: 784.869331 | KE11: 783.33252 | KF11: 797.358623 | KG11: 746.698916 | KH11: 706.935498 | KI11: 677.846276 | KJ11: 715.768735 | KK11: 755.255479 | KL11: 737.003646 | KM11: 753.914932 | KN11: 675.471533 | KO11: 720.290553 | KP11: 764.926291 | KQ11: 819.025278 | KR11: 824.018176 | KS11: 754.168729 | KT11: 684.817113 | KU11: 712.266167 | KV11: 781.403352 | KW11: 813.987791 | KX11: 774.988985 | KY11: 727.837717 | KZ11: 680.049836 | LA11: 748.93821 | LB11: 743.953734 | LC11: 767.747524 | LD11: 782.06323 | LE11: 773.930887 | LF11: 719.302551 | LG11: 682.219931 | LH11: 737.894567 | LI11: 770.439962 | LJ11: 750.910016 | LK11: 816.260515 | LL11: 693.495515 | LM11: 749.380743 | LN11: 769.377492 | LO11: 834.729633 | LP11: 767.353001 | LQ11: 734.5814 | LR11: - | LS11: - | LT11: - | LU11: - | LV11: - | LW11: - | LX11: - | LY11: - | LZ11: - | MA11: - | MB11: - | MC11: - | MD11: - | ME11: - | MF11: - | MG11: - | MH11: - | MI11: - | MJ11: - | MK11: - | ML11: - | MM11: - | MN11: - | MO11: - | MP11: - | MQ11: - | MR11: - | MS11: - | MT11: - | MU11: - | MV11: - | MW11: - | MX11: -
B12: Día | C12: 23 | D12: 1 | E12: 8 | F12: 5 | G12: 31 | H12: 28 | I12: 19 | J12: 29 | K12: 6 | L12: 26 | M12: 29 | N12: 19 | O12: 16 | P12: 15 | Q12: 1 | R12: 25 | S12: 9 | T12: 27 | U12: 18 | V12: 29 | W12: 19 | X12: 24 | Y12: 22 | Z12: 12 | AA12: 23 | AB12: 19 | AC12: 4 | AD12: 1 | AE12: 19 | AF12: 30 | AG12: 23 | AH12: 27 | AI12: 17 | AJ12: 22 | AK12: 25 | AL12: 15 | AM12: 28 | AN12: 25 | AO12: 2 | AP12: 15 | AQ12: 4 | AR12: 17 | AS12: 29 | AT12: 5 | AU12: 3 | AV12: 27 | AW12: 23 | AX12: 14 | AY12: 19 | AZ12: 4 | BA12: 2 | BB12: 19 | BC12: 4 | BD12: 30 | BE12: 5 | BF12: 31 | BG12: 7 | BH12: 27 | BI12: 29 | BJ12: 21 | BK12: 17 | BL12: 8 | BM12: 8 | BN12: 11 | BO12: 30 | BP12: 22 | BQ12: 20 | BR12: 31 | BS12: 7 | BT12: 4 | BU12: 29 | BV12: 15 | BW12: 24 | BX12: 22 | BY12: 7 | BZ12: 17 | CA12: 30 | CB12: 13 | CC12: 24 | CD12: 1 | CE12: 5 | CF12: 30 | CG12: 19 | CH12: 11 | CI12: 8 | CJ12: 5 | CK12: 12 | CL12: 9 | CM12: 29 | CN12: 13 | CO12: 30 | CP12: 1 | CQ12: 10 | CR12: 2 | CS12: 25 | CT12: 16 | CU12: 27 | CV12: 3 | CW12: 13 | CX12: 15 | CY12: 5 | CZ12: 30 | DA12: 17 | DB12: 26 | DC12: 2 | DD12: 30 | DE12: 25 | DF12: 2 | DG12: 13 | DH12: 3 | DI12: 4 | DJ12: 16 | DK12: 28 | DL12: 30 | DM12: 2 | DN12: 31 | DO12: 2 | DP12: 14 | DQ12: 25 | DR12: 21 | DS12: 13 | DT12: 1 | DU12: 30 | DV12: 5 | DW12: 31 | DX12: 30 | DY12: 21 | DZ12: 30 | EA12: 13 | EB12: 26 | EC12: 15 | ED12: 20 | EE12: 16 | EF12: 27 | EG12: 1 | EH12: 4 | EI12: 29 | EJ12: 25 | EK12: 3 | EL12: 29 | EM12: 4 | EN12: 30 | EO12: 27 | EP12: 19 | EQ12: 9 | ER12: 19 | ES12: 5 | ET12: 11 | EU12: 8 | EV12: 18 | EW12: 18 | EX12: 30 | EY12: 19 | EZ12: 1 | FA12: 26 | FB12: 10 | FC12: 15 | FD12: 18 | FE12: 6 | FF12: 3 | FG12: 23 | FH12: 26 | FI12: 11 | FJ12: 1 | FK12: 1 | FL12: 28 | FM12: 28 | FN12: 4 | FO12: 20 | FP12: 20 | FQ12: 2 | FR12: 1 | FS12: 11 | FT12: 30 | FU12: 23 | FV12: 26 | FW12: 9 | FX12: 7 | FY12: 17 | FZ12: 15 | GA12: 28 | GB12: 1 | GC12: 1 | GD12: 12 | GE12: 25 | GF12: 21 | GG12: 21 | GH12: 31 | GI12: 2 | GJ12: 27 | GK12: 30 | GL12: 14 | GM12: 31 | GN12: 1 | GO12: 1 | GP12: 7 | GQ12: 16 | GR12: 22 | GS12: 20 | GT12: 1 | GU12: 6 | GV12: 3 | GW12: 30 | GX12: 20 | GY12: 26 | GZ12: 2 | HA12: 21 | HB12: 3 | HC12: 18 | HD12: 28 | HE12: 31 | HF12: 1 | HG12: 4 | HH12: 30 | HI12: 29 | HJ12: 18 | HK12: 15 | HL12: 1 | HM12: 7 | HN12: 1 | HO12: 8 | HP12: 27 | HQ12: 1 | HR12: 5 | HS12: 2 | HT12: 30 | HU12: 28 | HV12: 3 | HW12: 13 | HX12: 5 | HY12: 4 | HZ12: 1 | IA12: 20 | IB12: 18 | IC12: 22 | ID12: 31 | IE12: 1 | IF12: 7 | IG12: 30 | IH12: 16 | II12: 12 | IJ12: 15 | IK12: 12 | IL12: 14 | IM12: 5 | IN12: 30 | IO12: 7 | IP12: 27 | IQ12: 1 | IR12: 28 | IS12: 30 | IT12: 16 | IU12: 25 | IV12: 1 | IW12: 3 | IX12: 6 | IY12: 26 | IZ12: 28 | JA12: 1 | JB12: 31 | JC12: 15 | JD12: 6 | JE12: 30 | JF12: 20 | JG12: 12 | JH12: 8 | JI12: 21 | JJ12: 19 | JK12: 31 | JL12: 28 | JM12: 19 | JN12: 21 | JO12: 7 | JP12: 30 | JQ12: 30 | JR12: 12 | JS12: 23 | JT12: 27 | JU12: 1 | JV12: 9 | JW12: 7 | JX12: 13 | JY12: 10 | JZ12: 1 | KA12: 4 | KB12: 3 | KC12: 28 | KD12: 10 | KE12: 21 | KF12: 11 | KG12: 4 | KH12: 3 | KI12: 13 | KJ12: 13 | KK12: 17 | KL12: 27 | KM12: 2 | KN12: 16 | KO12: 18 | KP12: 10 | KQ12: 21 | KR12: 4 | KS12: 24 | KT12: 9 | KU12: 14 | KV12: 30 | KW12: 21 | KX12: 31 | KY12: 1 | KZ12: 6 | LA12: 25 | LB12: 15 | LC12: 18 | LD12: 18 | LE12: 9 | LF12: 5 | LG12: 10 | LH12: 30 | LI12: 27 | LJ12: 3 | LK12: 6 | LL12: 5 | LM12: 25 | LN12: 20 | LO12: 18 | LP12: 10 | LQ12: 24 | LR12: - | LS12: - | LT12: - | LU12: - | LV12: - | LW12: - | LX12: - | LY12: - | LZ12: - | MA12: - | MB12: - | MC12: - | MD12: - | ME12: - | MF12: - | MG12: - | MH12: - | MI12: - | MJ12: - | MK12: - | ML12: - | MM12: - | MN12: - | MO12: - | MP12: - | MQ12: - | MR12: - | MS12: - | MT12: - | MU12: - | MV12: - | MW12: - | MX12: -
C13: enero | D13: febrero | E13: marzo | F13: abril | G13: mayo | H13: junio | I13: julio | J13: agosto | K13: septiembre | L13: octubre | M13: noviembre | N13: diciembre | O13: enero | P13: febrero | Q13: marzo | R13: abril | S13: mayo | T13: junio | U13: julio | V13: agosto | W13: septiembre | X13: octubre | Y13: noviembre | Z13: diciembre | AA13: enero | AB13: febrero | AC13: marzo | AD13: abril | AE13: mayo | AF13: junio | AG13: julio | AH13: agosto | AI13: septiembre | AJ13: octubre | AK13: noviembre | AL13: diciembre | AM13: enero | AN13: febrero | AO13: marzo | AP13: abril | AQ13: mayo | AR13: junio | AS13: julio | AT13: agosto | AU13: septiembre | AV13: octubre | AW13: noviembre | AX13: diciembre | AY13: enero | AZ13: febrero | BA13: marzo | BB13: abril | BC13: mayo | BD13: junio | BE13: julio | BF13: agosto | BG13: septiembre | BH13: octubre | BI13: noviembre | BJ13: diciembre | BK13: enero | BL13: febrero | BM13: marzo | BN13: abril | BO13: mayo | BP13: junio | BQ13: julio | BR13: agosto | BS13: septiembre | BT13: octubre | BU13: noviembre | BV13: diciembre | BW13: enero | BX13: febrero | BY13: marzo | BZ13: abril | CA13: mayo | CB13: junio | CC13: julio | CD13: agosto | CE13: septiembre | CF13: octubre | CG13: noviembre | CH13: diciembre | CI13: enero | CJ13: febrero | CK13: marzo | CL13: abril | CM13: mayo | CN13: junio | CO13: julio | CP13: agosto | CQ13: septiembre | CR13: octubre | CS13: noviembre | CT13: diciembre | CU13: enero | CV13: febrero | CW13: marzo | CX13: abril | CY13: mayo | CZ13: junio | DA13: julio | DB13: agosto | DC13: septiembre | DD13: octubre | DE13: noviembre | DF13: diciembre | DG13: enero | DH13: febrero | DI13: marzo | DJ13: abril | DK13: mayo | DL13: junio | DM13: julio | DN13: agosto | DO13: septiembre | DP13: octubre | DQ13: noviembre | DR13: diciembre | DS13: enero | DT13: febrero | DU13: marzo | DV13: abril | DW13: mayo | DX13: junio | DY13: julio | DZ13: agosto | EA13: septiembre | EB13: octubre | EC13: noviembre | ED13: diciembre | EE13: enero | EF13: febrero | EG13: marzo | EH13: abril | EI13: mayo | EJ13: junio | EK13: julio | EL13: agosto | EM13: septiembre | EN13: octubre | EO13: noviembre | EP13: diciembre | EQ13: enero | ER13: febrero | ES13: marzo | ET13: abril | EU13: mayo | EV13: junio | EW13: julio | EX13: agosto | EY13: septiembre | EZ13: octubre | FA13: noviembre | FB13: diciembre | FC13: enero | FD13: febrero | FE13: marzo | FF13: abril | FG13: mayo | FH13: junio | FI13: julio | FJ13: agosto | FK13: septiembre | FL13: octubre | FM13: noviembre | FN13: diciembre | FO13: enero | FP13: febrero | FQ13: marzo | FR13: abril | FS13: mayo | FT13: junio | FU13: julio | FV13: agosto | FW13: septiembre | FX13: octubre | FY13: noviembre | FZ13: diciembre | GA13: enero | GB13: febrero | GC13: marzo | GD13: abril | GE13: mayo | GF13: junio | GG13: julio | GH13: agosto | GI13: septiembre | GJ13: octubre | GK13: noviembre | GL13: diciembre | GM13: enero | GN13: febrero | GO13: marzo | GP13: abril | GQ13: mayo | GR13: junio | GS13: julio | GT13: agosto | GU13: septiembre | GV13: octubre | GW13: noviembre | GX13: diciembre | GY13: enero | GZ13: febrero | HA13: marzo | HB13: abril | HC13: mayo | HD13: junio | HE13: julio | HF13: agosto | HG13: septiembre | HH13: octubre | HI13: noviembre | HJ13: diciembre | HK13: enero | HL13: febrero | HM13: marzo | HN13: abril | HO13: mayo | HP13: junio | HQ13: julio | HR13: agosto | HS13: septiembre | HT13: octubre | HU13: noviembre | HV13: diciembre | HW13: enero | HX13: febrero | HY13: marzo | HZ13: abril | IA13: mayo | IB13: junio | IC13: julio | ID13: agosto | IE13: septiembre | IF13: octubre | IG13: noviembre | IH13: diciembre | II13: enero | IJ13: febrero | IK13: marzo | IL13: abril | IM13: mayo | IN13: junio | IO13: julio | IP13: agosto | IQ13: septiembre | IR13: octubre | IS13: noviembre | IT13: diciembre | IU13: enero | IV13: febrero | IW13: marzo | IX13: abril | IY13: mayo | IZ13: junio | JA13: julio | JB13: agosto | JC13: septiembre | JD13: octubre | JE13: noviembre | JF13: diciembre | JG13: enero | JH13: febrero | JI13: marzo | JJ13: abril | JK13: mayo | JL13: junio | JM13: julio | JN13: agosto | JO13: septiembre | JP13: octubre | JQ13: noviembre | JR13: diciembre | JS13: enero | JT13: febrero | JU13: marzo | JV13: abril | JW13: mayo | JX13: junio | JY13: julio | JZ13: agosto | KA13: septiembre | KB13: octubre | KC13: noviembre | KD13: diciembre | KE13: enero | KF13: febrero | KG13: marzo | KH13: abril | KI13: mayo | KJ13: junio | KK13: julio | KL13: agosto | KM13: septiembre | KN13: octubre | KO13: noviembre | KP13: diciembre | KQ13: enero | KR13: febrero | KS13: marzo | KT13: abril | KU13: mayo | KV13: junio | KW13: julio | KX13: agosto | KY13: septiembre | KZ13: octubre | LA13: noviembre | LB13: diciembre | LC13: enero | LD13: febrero | LE13: marzo | LF13: abril | LG13: mayo | LH13: junio | LI13: julio | LJ13: agosto | LK13: septiembre | LL13: octubre | LM13: noviembre | LN13: diciembre | LO13: enero | LP13: febrero | LQ13: marzo | LR13: abril | LS13: mayo | LT13: junio | LU13: julio | LV13: agosto | LW13: septiembre | LX13: octubre | LY13: noviembre | LZ13: diciembre | MA13: enero | MB13: febrero | MC13: marzo | MD13: abril | ME13: mayo | MF13: junio | MG13: julio | MH13: agosto | MI13: septiembre | MJ13: octubre | MK13: noviembre | ML13: diciembre | MM13: enero | MN13: febrero | MO13: marzo | MP13: abril | MQ13: mayo | MR13: junio | MS13: julio | MT13: agosto | MU13: septiembre | MV13: octubre | MW13: noviembre | MX13: diciembre
B14: Demanda máxima horaria Islas Baleares | C14: 2006-01-01 | D14: 2006-02-01 | E14: 2006-03-01 | F14: 2006-04-01 | G14: 2006-05-01 | H14: 2006-06-01 | I14: 2006-07-01 | J14: 2006-08-01 | K14: 2006-09-01 | L14: 2006-10-01 | M14: 2006-11-01 | N14: 2006-12-01 | O14: 2007-01-01 | P14: 2007-02-01 | Q14: 2007-03-01 | R14: 2007-04-01 | S14: 2007-05-01 | T14: 2007-06-01 | U14: 2007-07-01 | V14: 2007-08-01 | W14: 2007-09-01 | X14: 2007-10-01 | Y14: 2007-11-01 | Z14: 2007-12-01 | AA14: 2008-01-01 | AB14: 2008-02-01 | AC14: 2008-03-01 | AD14: 2008-04-01 | AE14: 2008-05-01 | AF14: 2008-06-01 | AG14: 2008-07-01 | AH14: 2008-08-01 | AI14: 2008-09-01 | AJ14: 2008-10-01 | AK14: 2008-11-01 | AL14: 2008-12-01 | AM14: 2009-01-01 | AN14: 2009-02-01 | AO14: 2009-03-01 | AP14: 2009-04-01 | AQ14: 2009-05-01 | AR14: 2009-06-01 | AS14: 2009-07-01 | AT14: 2009-08-01 | AU14: 2009-09-01 | AV14: 2009-10-01 | AW14: 2009-11-01 | AX14: 2009-12-01 | AY14: 2010-01-01 | AZ14: 2010-02-01 | BA14: 2010-03-01 | BB14: 2010-04-01 | BC14: 2010-05-01 | BD14: 2010-06-01 | BE14: 2010-07-01 | BF14: 2010-08-01 | BG14: 2010-09-01 | BH14: 2010-10-01 | BI14: 2010-11-01 | BJ14: 2010-12-01 | BK14: 2011-01-01 | BL14: 2011-02-01 | BM14: 2011-03-01 | BN14: 2011-04-01 | BO14: 2011-05-01 | BP14: 2011-06-01 | BQ14: 2011-07-01 | BR14: 2011-08-01 | BS14: 2011-09-01 | BT14: 2011-10-01 | BU14: 2011-11-01 | BV14: 2011-12-01 | BW14: 2012-01-01 | BX14: 2012-02-01 | BY14: 2012-03-01 | BZ14: 2012-04-01 | CA14: 2012-05-01 | CB14: 2012-06-01 | CC14: 2012-07-01 | CD14: 2012-08-01 | CE14: 2012-09-01 | CF14: 2012-10-01 | CG14: 2012-11-01 | CH14: 2012-12-01 | CI14: 2013-01-01 | CJ14: 2013-02-01 | CK14: 2013-03-01 | CL14: 2013-04-01 | CM14: 2013-05-01 | CN14: 2013-06-01 | CO14: 2013-07-01 | CP14: 2013-08-01 | CQ14: 2013-09-01 | CR14: 2013-10-01 | CS14: 2013-11-01 | CT14: 2013-12-01 | CU14: 2014-01-01 | CV14: 2014-02-01 | CW14: 2014-03-01 | CX14: 2014-04-01 | CY14: 2014-05-01 | CZ14: 2014-06-01 | DA14: 2014-07-01 | DB14: 2014-08-01 | DC14: 2014-09-01 | DD14: 2014-10-01 | DE14: 2014-11-01 | DF14: 2014-12-01 | DG14: 2015-01-01 | DH14: 2015-02-01 | DI14: 2015-03-01 | DJ14: 2015-04-01 | DK14: 2015-05-01 | DL14: 2015-06-01 | DM14: 2015-07-01 | DN14: 2015-08-01 | DO14: 2015-09-01 | DP14: 2015-10-01 | DQ14: 2015-11-01 | DR14: 2015-12-01 | DS14: 2016-01-01 | DT14: 2016-02-01 | DU14: 2016-03-01 | DV14: 2016-04-01 | DW14: 2016-05-01 | DX14: 2016-06-01 | DY14: 2016-07-01 | DZ14: 2016-08-01 | EA14: 2016-09-01 | EB14: 2016-10-01 | EC14: 2016-11-01 | ED14: 2016-12-01 | EE14: 2017-01-01 | EF14: 2017-02-01 | EG14: 2017-03-01 | EH14: 2017-04-01 | EI14: 2017-05-01 | EJ14: 2017-06-01 | EK14: 2017-07-01 | EL14: 2017-08-01 | EM14: 2017-09-01 | EN14: 2017-10-01 | EO14: 2017-11-01 | EP14: 2017-12-01 | EQ14: 2018-01-01 | ER14: 2018-02-01 | ES14: 2018-03-01 | ET14: 2018-04-01 | EU14: 2018-05-01 | EV14: 2018-06-01 | EW14: 2018-07-01 | EX14: 2018-08-01 | EY14: 2018-09-01 | EZ14: 2018-10-01 | FA14: 2018-11-01 | FB14: 2018-12-01 | FC14: 2019-01-01 | FD14: 2019-02-01 | FE14: 2019-03-01 | FF14: 2019-04-01 | FG14: 2019-05-01 | FH14: 2019-06-01 | FI14: 2019-07-01 | FJ14: 2019-08-01 | FK14: 2019-09-01 | FL14: 2019-10-01 | FM14: 2019-11-01 | FN14: 2019-12-01 | FO14: 2020-01-01 | FP14: 2020-02-01 | FQ14: 2020-03-01 | FR14: 2020-04-01 | FS14: 2020-05-01 | FT14: 2020-06-01 | FU14: 2020-07-01 | FV14: 2020-08-01 | FW14: 2020-09-01 | FX14: 2020-10-01 | FY14: 2020-11-01 | FZ14: 2020-12-01
B15: Demanda horaria (MWh) | C15: 968.99 | D15: 1046 | E15: 954.39 | F15: 752.3 | G15: 849.76 | H15: 1024 | I15: 1202.3 | J15: 1182.2 | K15: 1031.4 | L15: 951.4 | M15: 757 | N15: 938.2 | O15: 972.8 | P15: 921.4 | Q15: 969.8 | R15: 875.7 | S15: 870.6 | T15: 1023 | U15: 1105.8 | V15: 1145 | W15: 1068.5 | X15: 941.5 | Y15: 925.8 | Z15: 1046.6 | AA15: 964.5 | AB15: 992.6 | AC15: 1016.8 | AD15: 842 | AE15: 833.2 | AF15: 1043.8 | AG15: 1183.5 | AH15: 1225.7 | AI15: 1186.2 | AJ15: 910.7 | AK15: 961.8 | AL15: 1060.2 | AM15: 1110.8 | AN15: 999.4 | AO15: 987.9 | AP15: 932.5 | AQ15: 843.2 | AR15: 994.1 | AS15: 1207.4 | AT15: 1186.3 | AU15: 1143.3 | AV15: 901.6 | AW15: 796.6 | AX15: 958.3 | AY15: 1028.8 | AZ15: 1065.5 | BA15: 1104.4 | BB15: 818.2 | BC15: 810.6 | BD15: 913 | BE15: 1114.1 | BF15: 1157.3 | BG15: 1015 | BH15: 904.6 | BI15: 920.9 | BJ15: 992.7 | BK15: 1025.6 | BL15: 968 | BM15: 959.8 | BN15: 746.7 | BO15: 820.3 | BP15: 980 | BQ15: 1112.3 | BR15: 1159.4 | BS15: 1091.5 | BT15: 892.8 | BU15: 726.6 | BV15: 856.9 | BW15: 950 | BX15: 1100.1 | BY15: 905.3 | BZ15: 807.3 | CA15: 810 | CB15: 1065 | CC15: 1074.8 | CD15: 1205.8 | CE15: 997.3 | CF15: 875.7 | CG15: 790.7 | CH15: 884.3 | CI15: 893.1 | CJ15: 975.9 | CK15: 869.3 | CL15: 796.7 | CM15: 775.9 | CN15: 904.3 | CO15: 1123.9 | CP15: 1187.4 | CQ15: 956.6 | CR15: 967.1 | CS15: 912.4 | CT15: 874.1 | CU15: 836.2 | CV15: 840.1 | CW15: 811.6 | CX15: 741.2 | CY15: 759.7 | CZ15: 926.1 | DA15: 1056.8 | DB15: 1150.2 | DC15: 1088 | DD15: 877.1 | DE15: 695.5 | DF15: 906.1 | DG15: 913.4 | DH15: 968.9 | DI15: 887 | DJ15: 766.6 | DK15: 801.3 | DL15: 1032.1 | DM15: 1204.8 | DN15: 1201.9 | DO15: 1106.8 | DP15: 889.6 | DQ15: 812.2 | DR15: 785.8 | DS15: 816 | DT15: 840 | DU15: 928 | DV15: 796 | DW15: 815 | DX15: 968 | DY15: 1127 | DZ15: 1148 | EA15: 1138 | EB15: 931 | EC15: 750 | ED15: 860 | EE15: 973 | EF15: 839 | EG15: 799 | EH15: - | EI15: - | EJ15: - | EK15: - | EL15: - | EM15: - | EN15: - | EO15: - | EP15: - | EQ15: - | ER15: - | ES15: - | ET15: - | EU15: - | EV15: - | EW15: - | EX15: - | EY15: - | EZ15: - | FA15: - | FB15: - | FC15: - | FD15: - | FE15: - | FF15: - | FG15: - | FH15: - | FI15: - | FJ15: - | FK15: - | FL15: - | FM15: - | FN15: - | FO15: - | FP15: - | FQ15: - | FR15: - | FS15: - | FT15: - | FU15: - | FV15: - | FW15: - | FX15: - | FY15: - | FZ15: -
B16: Día | C16: 31 | D16: 2 | E16: 1 | F16: 24 | G16: 29 | H16: 30 | I16: 28 | J16: 1 | K16: 7 | L16: 2 | M16: 30 | N16: 20 | O16: 26 | P16: 5 | Q16: 28 | R16: 10 | S16: 24 | T16: 25 | U16: 31 | V16: 2 | W16: 17 | X16: 2 | Y16: 16 | Z16: 17 | AA16: 31 | AB16: 12 | AC16: 5 | AD16: 1 | AE16: 28 | AF16: 26 | AG16: 31 | AH16: 12 | AI16: 10 | AJ16: 2 | AK16: 27 | AL16: 15 | AM16: 8 | AN16: 16 | AO16: 5 | AP16: 1 | AQ16: 21 | AR16: 16 | AS16: 24 | AT16: 20 | AU16: 3 | AV16: 7 | AW16: 30 | AX16: 21 | AY16: 11 | AZ16: 15 | BA16: 10 | BB16: 13 | BC16: 31 | BD16: 30 | BE16: 22 | BF16: 27 | BG16: 7 | BH16: 7 | BI16: 29 | BJ16: 16 | BK16: 25 | BL16: 1 | BM16: 3 | BN16: 19 | BO16: 26 | BP16: 28 | BQ16: 12 | BR16: 22 | BS16: 1 | BT16: 5 | BU16: 28 | BV16: 31 | BW16: 30 | BX16: 14 | BY16: 8 | BZ16: 16 | CA16: 31 | CB16: 29 | CC16: 27 | CD16: 23 | CE16: 12 | CF16: 4 | CG16: 30 | CH16: 12 | CI16: 23 | CJ16: 26 | CK16: 14 | CL16: 29 | CM16: 21 | CN16: 17 | CO16: 26 | CP16: 7 | CQ16: 6 | CR16: 2 | CS16: 27 | CT16: 2 | CU16: 22 | CV16: 3 | CW16: 26 | CX16: 3 | CY16: 28 | CZ16: 27 | DA16: 28 | DB16: 11 | DC16: 11 | DD16: 2 | DE16: 11 | DF16: 31 | DG16: 22 | DH16: 6 | DI16: 16 | DJ16: 8 | DK16: 14 | DL16: 30 | DM16: 29 | DN16: 7 | DO16: 1 | DP16: 5 | DQ16: 24 | DR16: 2 | DS16: 21 | DT16: 17 | DU16: 10 | DV16: 8 | DW16: 26 | DX16: 30 | DY16: 29 | DZ16: 4 | EA16: 5 | EB16: 4 | EC16: 30 | ED16: 31 | EE16: 17 | EF16: 9 | EG16: 24 | EH16: - | EI16: - | EJ16: - | EK16: - | EL16: - | EM16: - | EN16: - | EO16: - | EP16: - | EQ16: - | ER16: - | ES16: - | ET16: - | EU16: - | EV16: - | EW16: - | EX16: - | EY16: - | EZ16: - | FA16: - | FB16: - | FC16: - | FD16: - | FE16: - | FF16: - | FG16: - | FH16: - | FI16: - | FJ16: - | FK16: - | FL16: - | FM16: - | FN16: - | FO16: - | FP16: - | FQ16: - | FR16: - | FS16: - | FT16: - | FU16: - | FV16: - | FW16: - | FX16: - | FY16: - | FZ16: -
B17: Hora | C17: 20 | D17: 20 | E17: 21 | F17: 22 | G17: 22 | H17: 13 | I17: 19 | J17: 22 | K17: 21 | L17: 21 | M17: 20 | N17: 20 | O17: 20 | P17: 21 | Q17: 21 | R17: 22 | S17: 22 | T17: 19 | U17: 22 | V17: 22 | W17: 21 | X17: 21 | Y17: 20 | Z17: 21 | AA17: 21 | AB17: 21 | AC17: 21 | AD17: 22 | AE17: 22 | AF17: 20 | AG17: 22 | AH17: 22 | AI17: 21 | AJ17: 21 | AK17: 20 | AL17: 20 | AM17: 20 | AN17: 21 | AO17: 21 | AP17: 21 | AQ17: 22 | AR17: 20 | AS17: 20 | AT17: 22 | AU17: 22 | AV17: 21 | AW17: 21 | AX17: 20 | AY17: 21 | AZ17: 21 | BA17: 21 | BB17: 22 | BC17: 22 | BD17: 22 | BE17: 22 | BF17: 22 | BG17: 21 | BH17: 21 | BI17: 20 | BJ17: 21 | BK17: 21 | BL17: 21 | BM17: 21 | BN17: 22 | BO17: 22 | BP17: 20 | BQ17: 22 | BR17: 22 | BS17: 22 | BT17: 21 | BU17: 20 | BV17: 20 | BW17: 21 | BX17: 21 | BY17: 21 | BZ17: 22 | CA17: 22 | CB17: 14 | CC17: 14 | CD17: 22 | CE17: 21 | CF17: 21 | CG17: 21 | CH17: 21 | CI17: 21 | CJ17: 21 | CK17: 21 | CL17: 22 | CM17: 22 | CN17: 22 | CO17: 20 | CP17: 22 | CQ17: 21 | CR17: 21 | CS17: 21 | CT17: 21 | CU17: 21 | CV17: 21 | CW17: 21 | CX17: 22 | CY17: 22 | CZ17: 14 | DA17: 14 | DB17: 22 | DC17: 21 | DD17: 21 | DE17: 20 | DF17: 20 | DG17: 21 | DH17: 21 | DI17: 21 | DJ17: 22 | DK17: 22 | DL17: 14 | DM17: 14 | DN17: 22 | DO17: 14 | DP17: 21 | DQ17: 21 | DR17: 21 | DS17: 21 | DT17: 21 | DU17: 21 | DV17: 22 | DW17: 22 | DX17: 20 | DY17: 14 | DZ17: 22 | EA17: 21 | EB17: 21 | EC17: 21 | ED17: 20 | EE17: 21 | EF17: 21 | EG17: 21 | EH17: - | EI17: - | EJ17: - | EK17: - | EL17: - | EM17: - | EN17: - | EO17: - | EP17: - | EQ17: - | ER17: - | ES17: - | ET17: - | EU17: - | EV17: - | EW17: - | EX17: - | EY17: - | EZ17: - | FA17: - | FB17: - | FC17: - | FD17: - | FE17: - | FF17: - | FG17: - | FH17: - | FI17: - | FJ17: - | FK17: - | FL17: - | FM17: - | FN17: - | FO17: - | FP17: - | FQ17: - | FR17: - | FS17: - | FT17: - | FU17: - | FV17: - | FW17: - | FX17: - | FY17: - | FZ17: -
B18: Demanda máxima diaria Islas Baleares
B19: Demanda diaria (MWh) | C19: 18042 | D19: 18052 | E19: 18972 | F19: 13960 | G19: 16603 | H19: 20307 | I19: 23966 | J19: 23779 | K19: 19789 | L19: 17450 | M19: 13323 | N19: 17087 | O19: 17512 | P19: 16634 | Q19: 17639 | R19: 16179 | S19: 17097 | T19: 19939 | U19: 21925 | V19: 22774 | W19: 19939 | X19: 17567 | Y19: 16476 | Z19: 18497 | AA19: 17215 | AB19: 17493 | AC19: 18387 | AD19: 15498 | AE19: 16622 | AF19: 20715 | AG19: 24452 | AH19: 23895 | AI19: 22692 | AJ19: 16310 | AK19: 17253 | AL19: 18907 | AM19: 20030 | AN19: 17415 | AO19: 17127 | AP19: 17522 | AQ19: 16669 | AR19: 20070 | AS19: 24270 | AT19: 22834 | AU19: 22140 | AV19: 16567 | AW19: 13960 | AX19: 18028 | AY19: 18705.932 | AZ19: 19479.773 | BA19: 19663.083 | BB19: 15100.522 | BC19: 15325.415 | BD19: 17961.365 | BE19: 22555.181 | BF19: 22416.985 | BG19: 19773.493 | BH19: 16747.555 | BI19: 16391.778 | BJ19: 17625.646 | BK19: 18574.423 | BL19: 17562.536 | BM19: 17161.186 | BN19: 14112.747 | BO19: 16419.051 | BP19: 19818.412 | BQ19: 22222.9 | BR19: 22781.76 | BS19: 21568.856 | BT19: 16312.784 | BU19: 13456.58 | BV19: 15037.617 | BW19: 16884.931 | BX19: 20014.073 | BY19: 16151.096 | BZ19: 15039.414 | CA19: 16123.44 | CB19: 21582.748 | CC19: 21740.693 | CD19: 23528.983 | CE19: 19198.361 | CF19: 16250.586 | CG19: 14319.52 | CH19: 15955.927 | CI19: 16063.029 | CJ19: 17389.991 | CK19: 15308.442 | CL19: 15503.749 | CM19: 15182.387 | CN19: 18142.801 | CO19: 22341.287 | CP19: 23304.775 | CQ19: 18587.189 | CR19: 18275.119 | CS19: 16196.739 | CT19: 15973.217 | CU19: 15483.487 | CV19: 15204.481 | CW19: 14502.263 | CX19: 14449.443 | CY19: 15125.411 | CZ19: 18476.345 | DA19: 21483.233 | DB19: 23152.337 | DC19: 21289.874 | DD19: 16520.982 | DE19: 13146.26 | DF19: 15368.208 | DG19: 16180.674 | DH19: 18316.426 | DI19: 16390.466 | DJ19: 14123.84 | DK19: 15605.751 | DL19: 20414.963 | DM19: 24551.732 | DN19: 24163.928 | DO19: 21227.05 | DP19: 16689.951 | DQ19: 14030.129 | DR19: 14198 | DS19: 14936.622 | DT19: 15146.067 | DU19: 16869.565 | DV19: 15036.718 | DW19: 16541.958 | DX19: 19522.914 | DY19: 22705.04 | DZ19: 23168.428 | EA19: 22232.591 | EB19: 17452.96 | EC19: 13771.888 | ED19: 15111.696 | EE19: 17758.978 | EF19: 15209.186 | EG19: 14738.481 | EH19: - | EI19: - | EJ19: - | EK19: - | EL19: - | EM19: - | EN19: - | EO19: - | EP19: - | EQ19: - | ER19: - | ES19: - | ET19: - | EU19: - | EV19: - | EW19: - | EX19: - | EY19: - | EZ19: - | FA19: - | FB19: - | FC19: - | FD19: - | FE19: - | FF19: - | FG19: - | FH19: - | FI19: - | FJ19: - | FK19: - | FL19: - | FM19: - | FN19: - | FO19: - | FP19: - | FQ19: - | FR19: - | FS19: - | FT19: - | FU19: - | FV19: - | FW19: - | FX19: - | FY19: - | FZ19: -
B20: Día | C20: 30 | D20: 24 | E20: 7 | F20: 27 | G20: 29 | H20: 30 | I20: 28 | J20: 1 | K20: 7 | L20: 3 | M20: 29 | N20: 20 | O20: 26 | P20: 1 | Q20: 28 | R20: 10 | S20: 24 | T20: 25 | U20: 20 | V20: 2 | W20: 14 | X20: 3 | Y20: 28 | Z20: 18 | AA20: 3 | AB20: 13 | AC20: 7 | AD20: 1 | AE20: 28 | AF20: 30 | AG20: 31 | AH20: 7 | AI20: 10 | AJ20: 2 | AK20: 27 | AL20: 16 | AM20: 8 | AN20: 16 | AO20: 5 | AP20: 2 | AQ20: 22 | AR20: 16 | AS20: 24 | AT20: 20 | AU20: 4 | AV20: 1 | AW20: 30 | AX20: 21 | AY20: 12 | AZ20: 15 | BA20: 10 | BB20: 13 | BC20: 31 | BD20: 30 | BE20: 22 | BF20: 27 | BG20: 07 | BH20: 08 | BI20: 29 | BJ20: 16 | BK20: 27 | BL20: 01 | BM20: 03 | BN20: 20 | BO20: 27 | BP20: 29 | BQ20: 12 | BR20: 23 | BS20: 02 | BT20: 05 | BU20: 28 | BV20: 29 | BW20: 31 | BX20: 08 | BY20: 09 | BZ20: 16 | CA20: 31 | CB20: 29 | CC20: 27 | CD20: 24 | CE20: 12 | CF20: 11 | CG20: 30 | CH20: 12 | CI20: 23 | CJ20: 28 | CK20: 14 | CL20: 29 | CM20: 27 | CN20: 17 | CO20: 26 | CP20: 07 | CQ20: 06 | CR20: 04 | CS20: 29 | CT20: 02 | CU20: 22 | CV20: 03 | CW20: 27 | CX20: 03 | CY20: 30 | CZ20: 23 | DA20: 28 | DB20: 11 | DC20: 11 | DD20: 01 | DE20: 04 | DF20: 30 | DG20: 26 | DH20: 6 | DI20: 20 | DJ20: 16 | DK20: 29 | DL20: 30 | DM20: 29 | DN20: 7 | DO20: 1 | DP20: 6 | DQ20: 24 | DR20: 2 | DS20: 18 | DT20: 29 | DU20: 10 | DV20: 8 | DW20: 31 | DX20: 30 | DY20: 29 | DZ20: 4 | EA20: 5 | EB20: 5 | EC20: 14 | ED20: 21 | EE20: 18 | EF20: 10 | EG20: 24 | EH20: - | EI20: - | EJ20: - | EK20: - | EL20: - | EM20: - | EN20: - | EO20: - | EP20: - | EQ20: - | ER20: - | ES20: - | ET20: - | EU20: - | EV20: - | EW20: - | EX20: - | EY20: - | EZ20: - | FA20: - | FB20: - | FC20: - | FD20: - | FE20: - | FF20: - | FG20: - | FH20: - | FI20: - | FJ20: - | FK20: - | FL20: - | FM20: - | FN20: - | FO20: - | FP20: - | FQ20: - | FR20: - | FS20: - | FT20: - | FU20: - | FV20: - | FW20: - | FX20: - | FY20: - | FZ20: -
C21: enero | D21: febrero | E21: marzo | F21: abril | G21: mayo | H21: junio | I21: julio | J21: agosto | K21: septiembre | L21: octubre | M21: noviembre | N21: diciembre | O21: enero | P21: febrero | Q21: marzo | R21: abril | S21: mayo | T21: junio | U21: julio | V21: agosto | W21: septiembre | X21: octubre | Y21: noviembre | Z21: diciembre | AA21: enero | AB21: febrero | AC21: marzo | AD21: abril | AE21: mayo | AF21: junio | AG21: julio | AH21: agosto | AI21: septiembre | AJ21: octubre | AK21: noviembre | AL21: diciembre | AM21: enero | AN21: febrero | AO21: marzo | AP21: abril | AQ21: mayo | AR21: junio | AS21: julio | AT21: agosto | AU21: septiembre | AV21: octubre | AW21: noviembre | AX21: diciembre | AY21: enero | AZ21: febrero | BA21: marzo | BB21: abril | BC21: mayo | BD21: junio | BE21: julio | BF21: agosto | BG21: septiembre | BH21: octubre | BI21: noviembre | BJ21: diciembre | BK21: enero | BL21: febrero | BM21: marzo | BN21: abril | BO21: mayo | BP21: junio | BQ21: julio | BR21: agosto | BS21: septiembre | BT21: octubre | BU21: noviembre | BV21: diciembre | BW21: enero | BX21: febrero | BY21: marzo | BZ21: abril | CA21: mayo | CB21: junio | CC21: julio | CD21: agosto | CE21: septiembre | CF21: octubre | CG21: noviembre | CH21: diciembre | CI21: enero | CJ21: febrero | CK21: marzo | CL21: abril | CM21: mayo | CN21: junio | CO21: julio | CP21: agosto | CQ21: septiembre | CR21: octubre | CS21: noviembre | CT21: diciembre | CU21: enero | CV21: febrero | CW21: marzo | CX21: abril | CY21: mayo | CZ21: junio | DA21: julio | DB21: agosto | DC21: septiembre | DD21: octubre | DE21: noviembre | DF21: diciembre | DG21: enero | DH21: febrero | DI21: marzo | DJ21: abril | DK21: mayo | DL21: junio | DM21: julio | DN21: agosto | DO21: septiembre | DP21: octubre | DQ21: noviembre | DR21: diciembre | DS21: enero | DT21: febrero | DU21: marzo | DV21: abril | DW21: mayo | DX21: junio | DY21: julio | DZ21: agosto | EA21: septiembre | EB21: octubre | EC21: noviembre | ED21: diciembre | EE21: enero | EF21: febrero | EG21: marzo | EH21: abril | EI21: mayo | EJ21: junio | EK21: julio | EL21: agosto | EM21: septiembre | EN21: octubre | EO21: noviembre | EP21: diciembre | EQ21: enero | ER21: febrero | ES21: marzo | ET21: abril | EU21: mayo | EV21: junio | EW21: julio | EX21: agosto | EY21: septiembre | EZ21: octubre | FA21: noviembre | FB21: diciembre | FC21: enero | FD21: febrero | FE21: marzo | FF21: abril | FG21: mayo | FH21: junio | FI21: julio | FJ21: agosto | FK21: septiembre | FL21: octubre | FM21: noviembre | FN21: diciembre | FO21: enero | FP21: febrero | FQ21: marzo | FR21: abril | FS21: mayo | FT21: junio | FU21: julio | FV21: agosto | FW21: septiembre | FX21: octubre | FY21: noviembre | FZ21: diciembre
B22: Demanda máxima horaria Islas Canarias | C22: 2006-01-01 | D22: 2006-02-01 | E22: 2006-03-01 | F22: 2006-04-01 | G22: 2006-05-01 | H22: 2006-06-01 | I22: 2006-07-01 | J22: 2006-08-01 | K22: 2006-09-01 | L22: 2006-10-01 | M22: 2006-11-01 | N22: 2006-12-01 | O22: 2007-01-01 | P22: 2007-02-01 | Q22: 2007-03-01 | R22: 2007-04-01 | S22: 2007-05-01 | T22: 2007-06-01 | U22: 2007-07-01 | V22: 2007-08-01 | W22: 2007-09-01 | X22: 2007-10-01 | Y22: 2007-11-01 | Z22: 2007-12-01 | AA22: 2008-01-01 | AB22: 2008-02-01 | AC22: 2008-03-01 | AD22: 2008-04-01 | AE22: 2008-05-01 | AF22: 2008-06-01 | AG22: 2008-07-01 | AH22: 2008-08-01 | AI22: 2008-09-01 | AJ22: 2008-10-01 | AK22: 2008-11-01 | AL22: 2008-12-01 | AM22: 2009-01-01 | AN22: 2009-02-01 | AO22: 2009-03-01 | AP22: 2009-04-01 | AQ22: 2009-05-01 | AR22: 2009-06-01 | AS22: 2009-07-01 | AT22: 2009-08-01 | AU22: 2009-09-01 | AV22: 2009-10-01 | AW22: 2009-11-01 | AX22: 2009-12-01 | AY22: 2010-01-01 | AZ22: 2010-02-01 | BA22: 2010-03-01 | BB22: 2010-04-01 | BC22: 2010-05-01 | BD22: 2010-06-01 | BE22: 2010-07-01 | BF22: 2010-08-01 | BG22: 2010-09-01 | BH22: 2010-10-01 | BI22: 2010-11-01 | BJ22: 2010-12-01 | BK22: 2011-01-01 | BL22: 2011-02-01 | BM22: 2011-03-01 | BN22: 2011-04-01 | BO22: 2011-05-01 | BP22: 2011-06-01 | BQ22: 2011-07-01 | BR22: 2011-08-01 | BS22: 2011-09-01 | BT22: 2011-10-01 | BU22: 2011-11-01 | BV22: 2011-12-01 | BW22: 2012-01-01 | BX22: 2012-02-01 | BY22: 2012-03-01 | BZ22: 2012-04-01 | CA22: 2012-05-01 | CB22: 2012-06-01 | CC22: 2012-07-01 | CD22: 2012-08-01 | CE22: 2012-09-01 | CF22: 2012-10-01 | CG22: 2012-11-01 | CH22: 2012-12-01 | CI22: 2013-01-01 | CJ22: 2013-02-01 | CK22: 2013-03-01 | CL22: 2013-04-01 | CM22: 2013-05-01 | CN22: 2013-06-01 | CO22: 2013-07-01 | CP22: 2013-08-01 | CQ22: 2013-09-01 | CR22: 2013-10-01 | CS22: 2013-11-01 | CT22: 2013-12-01 | CU22: 2014-01-01 | CV22: 2014-02-01 | CW22: 2014-03-01 | CX22: 2014-04-01 | CY22: 2014-05-01 | CZ22: 2014-06-01 | DA22: 2014-07-01 | DB22: 2014-08-01 | DC22: 2014-09-01 | DD22: 2014-10-01 | DE22: 2014-11-01 | DF22: 2014-12-01 | DG22: 2015-01-01 | DH22: 2015-02-01 | DI22: 2015-03-01 | DJ22: 2015-04-01 | DK22: 2015-05-01 | DL22: 2015-06-01 | DM22: 2015-07-01 | DN22: 2015-08-01 | DO22: 2015-09-01 | DP22: 2015-10-01 | DQ22: 2015-11-01 | DR22: 2015-12-01 | DS22: 2016-01-01 | DT22: 2016-02-01 | DU22: 2016-03-01 | DV22: 2016-04-01 | DW22: 2016-05-01 | DX22: 2016-06-01 | DY22: 2016-07-01 | DZ22: 2016-08-01 | EA22: 2016-09-01 | EB22: 2016-10-01 | EC22: 2016-11-01 | ED22: 2016-12-01 | EE22: 2017-01-01 | EF22: 2017-02-01 | EG22: 2017-03-01 | EH22: 2017-04-01 | EI22: 2017-05-01 | EJ22: 2017-06-01 | EK22: 2017-07-01 | EL22: 2017-08-01 | EM22: 2017-09-01 | EN22: 2017-10-01 | EO22: 2017-11-01 | EP22: 2017-12-01 | EQ22: 2018-01-01 | ER22: 2018-02-01 | ES22: 2018-03-01 | ET22: 2018-04-01 | EU22: 2018-05-01 | EV22: 2018-06-01 | EW22: 2018-07-01 | EX22: 2018-08-01 | EY22: 2018-09-01 | EZ22: 2018-10-01 | FA22: 2018-11-01 | FB22: 2018-12-01 | FC22: 2019-01-01 | FD22: 2019-02-01 | FE22: 2019-03-01 | FF22: 2019-04-01 | FG22: 2019-05-01 | FH22: 2019-06-01 | FI22: 2019-07-01 | FJ22: 2019-08-01 | FK22: 2019-09-01 | FL22: 2019-10-01 | FM22: 2019-11-01 | FN22: 2019-12-01 | FO22: 2020-01-01 | FP22: 2020-02-01 | FQ22: 2020-03-01 | FR22: 2020-04-01 | FS22: 2020-05-01 | FT22: 2020-06-01 | FU22: 2020-07-01 | FV22: 2020-08-01 | FW22: 2020-09-01 | FX22: 2020-10-01 | FY22: 2020-11-01 | FZ22: 2020-12-01
B23: Demanda horaria (MWh) | C23: 1367.54 | D23: 1341.42 | E23: 1328.37 | F23: 1332.35 | G23: 1423.86 | H23: 1257.7 | I23: 1354.8 | J23: 1364.2 | K23: 1432.4 | L23: 1418.1 | M23: 1426.6 | N23: 1414.3 | O23: 1414.6 | P23: 1404.5 | Q23: 1391 | R23: 1328.6 | S23: 1334.5 | T23: 1306 | U23: 1486 | V23: 1424.3 | W23: 1427.7 | X23: 1475.1 | Y23: 1495.5 | Z23: 1485.6 | AA23: 1445.4 | AB23: 1453.2 | AC23: 1430.8 | AD23: 1398 | AE23: 1350.4 | AF23: 1350.2 | AG23: 1366.8 | AH23: 1399.3 | AI23: 1426.6 | AJ23: 1435.1 | AK23: 1438.7 | AL23: 1461.7 | AM23: 1443 | AN23: 1418.7 | AO23: 1405 | AP23: 1378.2 | AQ23: 1295.8 | AR23: 1314.6 | AS23: 1460.1 | AT23: 1383.7 | AU23: 1373.6 | AV23: 1447.1 | AW23: 1434.7 | AX23: 1413.2 | AY23: 1399.4 | AZ23: 1372.8 | BA23: 1374.1 | BB23: 1309.4 | BC23: 1281.8 | BD23: 1325.9 | BE23: 1320.6 | BF23: 1435.7 | BG23: 1395.6 | BH23: 1385.3 | BI23: 1386 | BJ23: 1410.6 | BK23: 1370.6 | BL23: 1389.8 | BM23: 1399.5 | BN23: 1301.3 | BO23: 1278.6 | BP23: 1430.2 | BQ23: 1312.6 | BR23: 1351.1 | BS23: 1393.5 | BT23: 1427.7 | BU23: 1410.7 | BV23: 1450.4 | BW23: 1404.4 | BX23: 1439.3 | BY23: 1380.2 | BZ23: 1289.6 | CA23: 1337.5 | CB23: 1362.7 | CC23: 1334.3 | CD23: 1395 | CE23: 1402.1 | CF23: 1399.2 | CG23: 1387.5 | CH23: 1396.1 | CI23: 1337.3 | CJ23: 1332.4 | CK23: 1306.7 | CL23: 1264.4 | CM23: 1249.6 | CN23: 1226.9 | CO23: 1269 | CP23: 1332.1 | CQ23: 1336 | CR23: 1352.3 | CS23: 1331.5 | CT23: 1377.5 | CU23: 1329.8 | CV23: 1341.3 | CW23: 1300 | CX23: 1240.6 | CY23: 1222.1 | CZ23: 1225.6 | DA23: 1237.8 | DB23: 1291.9 | DC23: 1322 | DD23: 1364.7 | DE23: 1331.1 | DF23: 1377.3 | DG23: 1333.5 | DH23: 1355 | DI23: 1305.2 | DJ23: 1239.4 | DK23: 1266 | DL23: 1207.2 | DM23: 1328.8 | DN23: 1372.5 | DO23: 1361 | DP23: 1399.6 | DQ23: 1331.5 | DR23: 1379 | DS23: 1299 | DT23: 1322 | DU23: 1325 | DV23: 1266 | DW23: 1227 | DX23: 1268 | DY23: 1353 | DZ23: 1384 | EA23: 1349 | EB23: 1387 | EC23: 1335 | ED23: 1389 | EE23: 1341 | EF23: 1332 | EG23: 1313 | EH23: - | EI23: - | EJ23: - | EK23: - | EL23: - | EM23: - | EN23: - | EO23: - | EP23: - | EQ23: - | ER23: - | ES23: - | ET23: - | EU23: - | EV23: - | EW23: - | EX23: - | EY23: - | EZ23: - | FA23: - | FB23: - | FC23: - | FD23: - | FE23: - | FF23: - | FG23: - | FH23: - | FI23: - | FJ23: - | FK23: - | FL23: - | FM23: - | FN23: - | FO23: - | FP23: - | FQ23: - | FR23: - | FS23: - | FT23: - | FU23: - | FV23: - | FW23: - | FX23: - | FY23: - | FZ23: -
B24: Día | C24: 9 | D24: 6 | E24: 1 | F24: 6 | G24: 23 | H24: 6 | I24: 24 | J24: 9 | K24: 5 | L24: 24 | M24: 14 | N24: 28 | O24: 11 | P24: 6 | Q24: 20 | R24: 10 | S24: 10 | T24: 21 | U24: 30 | V24: 1 | W24: 27 | X24: 23 | Y24: 8 | Z24: 31 | AA24: 3 | AB24: 12 | AC24: 26 | AD24: 28 | AE24: 8 | AF24: 30 | AG24: 29 | AH24: 7 | AI24: 24 | AJ24: 28 | AK24: 18 | AL24: 31 | AM24: 15 | AN24: 18 | AO24: 3 | AP24: 2 | AQ24: 7 | AR24: 30 | AS24: 31 | AT24: 20 | AU24: 30 | AV24: 28 | AW24: 5 | AX24: 31 | AY24: 28 | AZ24: 3 | BA24: 9 | BB24: 5 | BC24: 4 | BD24: 3 | BE24: 12 | BF24: 12 | BG24: 27 | BH24: 28 | BI24: 3 | BJ24: 31 | BK24: 31 | BL24: 9 | BM24: 16 | BN24: 7 | BO24: 12 | BP24: 23 | BQ24: 28 | BR24: 16 | BS24: 29 | BT24: 4 | BU24: 3 | BV24: 31 | BW24: 25 | BX24: 15 | BY24: 1 | BZ24: 9 | CA24: 15 | CB24: 27 | CC24: 18 | CD24: 21 | CE24: 25 | CF24: 10 | CG24: 6 | CH24: 31 | CI24: 29 | CJ24: 18 | CK24: 5 | CL24: 22 | CM24: 8 | CN24: 28 | CO24: 12 | CP24: 22 | CQ24: 30 | CR24: 2 | CS24: 5 | CT24: 31 | CU24: 30 | CV24: 17 | CW24: 11 | CX24: 3 | CY24: 21 | CZ24: 30 | DA24: 23 | DB24: 29 | DC24: 16 | DD24: 23 | DE24: 3 | DF24: 31 | DG24: 29 | DH24: 10 | DI24: 24 | DJ24: 7 | DK24: 14 | DL24: 30 | DM24: 24 | DN24: 12 | DO24: 24 | DP24: 5 | DQ24: 12 | DR24: 31 | DS24: 21 | DT24: 18 | DU24: 1 | DV24: 7 | DW24: 5 | DX24: 23 | DY24: 27 | DZ24: 10 | EA24: 29 | EB24: 18 | EC24: 2 | ED24: 31 | EE24: 17 | EF24: 21 | EG24: 9 | EH24: - | EI24: - | EJ24: - | EK24: - | EL24: - | EM24: - | EN24: - | EO24: - | EP24: - | EQ24: - | ER24: - | ES24: - | ET24: - | EU24: - | EV24: - | EW24: - | EX24: - | EY24: - | EZ24: - | FA24: - | FB24: - | FC24: - | FD24: - | FE24: - | FF24: - | FG24: - | FH24: - | FI24: - | FJ24: - | FK24: - | FL24: - | FM24: - | FN24: - | FO24: - | FP24: - | FQ24: - | FR24: - | FS24: - | FT24: - | FU24: - | FV24: - | FW24: - | FX24: - | FY24: - | FZ24: -
B25: Hora | C25: 21 | D25: 21 | E25: 21 | F25: 22 | G25: 22 | H25: 22 | I25: 13 | J25: 11 | K25: 13 | L25: 21 | M25: 20 | N25: 20 | O25: 21 | P25: 21 | Q25: 21 | R25: 22 | S25: 22 | T25: 13 | U25: 13 | V25: 14 | W25: 21 | X25: 21 | Y25: 20 | Z25: 20 | AA25: 20 | AB25: 21 | AC25: 21 | AD25: 22 | AE25: 22 | AF25: 13 | AG25: 22 | AH25: 22 | AI25: 21 | AJ25: 20 | AK25: 21 | AL25: 20 | AM25: 21 | AN25: 21 | AO25: 21 | AP25: 22 | AQ25: 22 | AR25: 22 | AS25: 13 | AT25: 22 | AU25: 21 | AV25: 20 | AW25: 20 | AX25: 20 | AY25: 21 | AZ25: 21 | BA25: 21 | BB25: 22 | BC25: 22 | BD25: 22 | BE25: 14 | BF25: 22 | BG25: 22 | BH25: 21 | BI25: 20 | BJ25: 20 | BK25: 21 | BL25: 21 | BM25: 21 | BN25: 22 | BO25: 22 | BP25: 14 | BQ25: 22 | BR25: 22 | BS25: 21 | BT25: 21 | BU25: 20 | BV25: 20 | BW25: 21 | BX25: 21 | BY25: 21 | BZ25: 22 | CA25: 22 | CB25: 14 | CC25: 14 | CD25: 22 | CE25: 21 | CF25: 21 | CG25: 20 | CH25: 20 | CI25: 21 | CJ25: 21 | CK25: 21 | CL25: 22 | CM25: 22 | CN25: 14 | CO25: 14 | CP25: 22 | CQ25: 21 | CR25: 21 | CS25: 20 | CT25: 20 | CU25: 21 | CV25: 21 | CW25: 21 | CX25: 22 | CY25: 22 | CZ25: 14 | DA25: 14 | DB25: 14 | DC25: 21 | DD25: 21 | DE25: 20 | DF25: 20 | DG25: 21 | DH25: 21 | DI25: 21 | DJ25: 22 | DK25: 14 | DL25: 22 | DM25: 14 | DN25: 14 | DO25: 21 | DP25: 21 | DQ25: 20 | DR25: 20 | DS25: 21 | DT25: 21 | DU25: 21 | DV25: 22 | DW25: 22 | DX25: 14 | DY25: 14 | DZ25: 14 | EA25: 21 | EB25: 21 | EC25: 20 | ED25: 20 | EE25: 21 | EF25: 21 | EG25: 21 | EH25: - | EI25: - | EJ25: - | EK25: - | EL25: - | EM25: - | EN25: - | EO25: - | EP25: - | EQ25: - | ER25: - | ES25: - | ET25: - | EU25: - | EV25: - | EW25: - | EX25: - | EY25: - | EZ25: - | FA25: - | FB25: - | FC25: - | FD25: - | FE25: - | FF25: - | FG25: - | FH25: - | FI25: - | FJ25: - | FK25: - | FL25: - | FM25: - | FN25: - | FO25: - | FP25: - | FQ25: - | FR25: - | FS25: - | FT25: - | FU25: - | FV25: - | FW25: - | FX25: - | FY25: - | FZ25: -
B26: Demanda máxima diaria Islas Canarias
B27: Demanda diaria (MWh) | C27: 26375 | D27: 24922 | E27: 25461 | F27: 25309 | G27: 25938 | H27: 33490 | I27: 25092 | J27: 25961 | K27: 27193 | L27: 26251 | M27: 25776 | N27: 25652 | O27: 26411 | P27: 26524 | Q27: 26693 | R27: 26176 | S27: 27378 | T27: 26724 | U27: 29918 | V27: 31549 | W27: 28254 | X27: 27974 | Y27: 27696 | Z27: 27523 | AA27: 26948 | AB27: 26944 | AC27: 27287 | AD27: 27944 | AE27: 27068 | AF27: 27949 | AG27: 27449 | AH27: 27757 | AI27: 28320 | AJ27: 27382 | AK27: 26599 | AL27: 27113 | AM27: 26234 | AN27: 26435 | AO27: 25396 | AP27: 25397 | AQ27: 25224 | AR27: 26398 | AS27: 30250 | AT27: 28351 | AU27: 27372 | AV27: 27355 | AW27: 26849 | AX27: 26052 | AY27: 25702.626 | AZ27: 25422.52 | BA27: 26729.811 | BB27: 25062.512 | BC27: 24675.822 | BD27: 26678.153 | BE27: 26269.755 | BF27: 28363.362 | BG27: 27450.645 | BH27: 26111.637 | BI27: 25860.175 | BJ27: 25391.769 | BK27: 25121.776 | BL27: 25089.013 | BM27: 25572.839 | BN27: 24529.187 | BO27: 24399.152 | BP27: 27628.317 | BQ27: 26128.572 | BR27: 26262.97 | BS27: 27259.915 | BT27: 26758.317 | BU27: 25963.307 | BV27: 25506.353 | BW27: 25365.638 | BX27: 25545.647 | BY27: 24984.3 | BZ27: 24179.722 | CA27: 26068.661 | CB27: 27076.762 | CC27: 27038.441 | CD27: 27768.04 | CE27: 27013.996 | CF27: 26257.205 | CG27: 25769.753 | CH27: 25354.689 | CI27: 24601.532 | CJ27: 24589.05 | CK27: 24346.385 | CL27: 24722.35 | CM27: 24248.933 | CN27: 24513.296 | CO27: 25588.448 | CP27: 26810.411 | CQ27: 25405.999 | CR27: 25684.02 | CS27: 24721.81 | CT27: 24389.048 | CU27: 24699.017 | CV27: 24568.088 | CW27: 24445.68 | CX27: 23740.119 | CY27: 23844.967 | CZ27: 24241.42 | DA27: 24959.584 | DB27: 25693.126 | DC27: 26091.274 | DD27: 26418.67 | DE27: 24961.051 | DF27: 24606.127 | DG27: 25144.051 | DH27: 25443.112 | DI27: 24471.626 | DJ27: 23903.956 | DK27: 25128.07 | DL27: 24057.118 | DM27: 27084.735 | DN27: 27854.118 | DO27: 26687.685 | DP27: 26954.634 | DQ27: 25484.49 | DR27: 24706.349 | DS27: 24669.97 | DT27: 25391.403 | DU27: 24631.516 | DV27: 24276.071 | DW27: 24223.067 | DX27: 25437.452 | DY27: 26960.029 | DZ27: 28015.146 | EA27: 26198.725 | EB27: 26243.809 | EC27: 25693.146 | ED27: 25432.333 | EE27: 25131.681 | EF27: 24936.843 | EG27: 25273.014 | EH27: - | EI27: - | EJ27: - | EK27: - | EL27: - | EM27: - | EN27: - | EO27: - | EP27: - | EQ27: - | ER27: - | ES27: - | ET27: - | EU27: - | EV27: - | EW27: - | EX27: - | EY27: - | EZ27: - | FA27: - | FB27: - | FC27: - | FD27: - | FE27: - | FF27: - | FG27: - | FH27: - | FI27: - | FJ27: - | FK27: - | FL27: - | FM27: - | FN27: - | FO27: - | FP27: - | FQ27: - | FR27: - | FS27: - | FT27: - | FU27: - | FV27: - | FW27: - | FX27: - | FY27: - | FZ27: -
B28: Día | C28: 3 | D28: 23 | E28: 23 | F28: 11 | G28: 29 | H28: 10 | I28: 17 | J28: 10 | K28: 7 | L28: 20 | M28: 15 | N28: 19 | O28: 3 | P28: 14 | Q28: 19 | R28: 10 | S28: 11 | T28: 7 | U28: 30 | V28: 1 | W28: 6 | X28: 24 | Y28: 9 | Z28: 13 | AA28: 3 | AB28: 21 | AC28: 24 | AD28: 4 | AE28: 7 | AF28: 30 | AG28: 18 | AH28: 21 | AI28: 9 | AJ28: 1 | AK28: 20 | AL28: 30 | AM28: 9 | AN28: 19 | AO28: 16 | AP28: 14 | AQ28: 7 | AR28: 30 | AS28: 31 | AT28: 1 | AU28: 10 | AV28: 8 | AW28: 4 | AX28: 16 | AY28: 28 | AZ28: 8 | BA28: 9 | BB28: 21 | BC28: 11 | BD28: 3 | BE28: 12 | BF28: 12 | BG28: 16 | BH28: 13 | BI28: 11 | BJ28: 15 | BK28: 17 | BL28: 1 | BM28: 3 | BN28: 19 | BO28: 23 | BP28: 22 | BQ28: 1 | BR28: 8 | BS28: 9 | BT28: 7 | BU28: 11 | BV28: 28 | BW28: 3 | BX28: 16 | BY28: 1 | BZ28: 4 | CA28: 16 | CB28: 27 | CC28: 18 | CD28: 22 | CE28: 20 | CF28: 10 | CG28: 6 | CH28: 28 | CI28: 4 | CJ28: 8 | CK28: 1 | CL28: 22 | CM28: 9 | CN28: 28 | CO28: 12 | CP28: 23 | CQ28: 4 | CR28: 1 | CS28: 28 | CT28: 11 | CU28: 9 | CV28: 10 | CW28: 6 | CX28: 3 | CY28: 19 | CZ28: 30 | DA28: 23 | DB28: 29 | DC28: 16 | DD28: 28 | DE28: 4 | DF28: 11 | DG28: 29 | DH28: 6 | DI28: 20 | DJ28: 6 | DK28: 15 | DL28: 30 | DM28: 21 | DN28: 13 | DO28: 24 | DP28: 5 | DQ28: 13 | DR28: 23 | DS28: 15 | DT28: 19 | DU28: 1 | DV28: 5 | DW28: 5 | DX28: 23 | DY28: 26 | DZ28: 10 | EA28: 1 | EB28: 18 | EC28: 3 | ED28: 23 | EE28: 5 | EF28: 22 | EG28: 4 | EH28: - | EI28: - | EJ28: - | EK28: - | EL28: - | EM28: - | EN28: - | EO28: - | EP28: - | EQ28: - | ER28: - | ES28: - | ET28: - | EU28: - | EV28: - | EW28: - | EX28: - | EY28: - | EZ28: - | FA28: - | FB28: - | FC28: - | FD28: - | FE28: - | FF28: - | FG28: - | FH28: - | FI28: - | FJ28: - | FK28: - | FL28: - | FM28: - | FN28: - | FO28: - | FP28: - | FQ28: - | FR28: - | FS28: - | FT28: - | FU28: - | FV28: - | FW28: - | FX28: - | FY28: - | FZ28: -
C29: enero | D29: febrero | E29: marzo | F29: abril | G29: mayo | H29: junio | I29: julio | J29: agosto | K29: septiembre | L29: octubre | M29: noviembre | N29: diciembre | O29: enero | P29: febrero | Q29: marzo | R29: abril | S29: mayo | T29: junio | U29: julio | V29: agosto | W29: septiembre | X29: octubre | Y29: noviembre | Z29: diciembre | AA29: enero | AB29: febrero | AC29: marzo | AD29: abril | AE29: mayo | AF29: junio | AG29: julio | AH29: agosto | AI29: septiembre | AJ29: octubre | AK29: noviembre | AL29: diciembre | AM29: enero | AN29: febrero | AO29: marzo | AP29: abril | AQ29: mayo | AR29: junio | AS29: julio | AT29: agosto | AU29: septiembre | AV29: octubre | AW29: noviembre | AX29: diciembre | AY29: enero | AZ29: febrero | BA29: marzo | BB29: abril | BC29: mayo | BD29: junio | BE29: julio | BF29: agosto | BG29: septiembre | BH29: octubre | BI29: noviembre | BJ29: diciembre | BK29: enero | BL29: febrero | BM29: marzo | BN29: abril | BO29: mayo | BP29: junio | BQ29: julio | BR29: agosto | BS29: septiembre | BT29: octubre | BU29: noviembre | BV29: diciembre | BW29: enero | BX29: febrero | BY29: marzo | BZ29: abril | CA29: mayo | CB29: junio | CC29: julio | CD29: agosto | CE29: septiembre | CF29: octubre | CG29: noviembre | CH29: diciembre | CI29: enero | CJ29: febrero | CK29: marzo | CL29: abril | CM29: mayo | CN29: junio | CO29: julio | CP29: agosto | CQ29: septiembre | CR29: octubre | CS29: noviembre | CT29: diciembre | CU29: enero | CV29: febrero | CW29: marzo | CX29: abril | CY29: mayo | CZ29: junio | DA29: julio | DB29: agosto | DC29: septiembre | DD29: octubre | DE29: noviembre | DF29: diciembre | DG29: enero | DH29: febrero | DI29: marzo | DJ29: abril | DK29: mayo | DL29: junio | DM29: julio | DN29: agosto | DO29: septiembre | DP29: octubre | DQ29: noviembre | DR29: diciembre | DS29: enero | DT29: febrero | DU29: marzo | DV29: abril | DW29: mayo | DX29: junio | DY29: julio | DZ29: agosto | EA29: septiembre | EB29: octubre | EC29: noviembre | ED29: diciembre | EE29: enero | EF29: febrero | EG29: marzo | EH29: abril | EI29: mayo | EJ29: junio | EK29: julio | EL29: agosto | EM29: septiembre | EN29: octubre | EO29: noviembre | EP29: diciembre | EQ29: enero | ER29: febrero | ES29: marzo | ET29: abril | EU29: mayo | EV29: junio | EW29: julio | EX29: agosto | EY29: septiembre | EZ29: octubre | FA29: noviembre | FB29: diciembre | FC29: enero | FD29: febrero | FE29: marzo | FF29: abril | FG29: mayo | FH29: junio | FI29: julio | FJ29: agosto | FK29: septiembre | FL29: octubre | FM29: noviembre | FN29: diciembre | FO29: enero | FP29: febrero | FQ29: marzo | FR29: abril | FS29: mayo | FT29: junio | FU29: julio | FV29: agosto | FW29: septiembre | FX29: octubre | FY29: noviembre | FZ29: diciembre
B30: Demanda máxima horaria Ceuta | C30: 2007-01-01 | D30: 2007-02-01 | E30: 2007-03-01 | F30: 2007-04-01 | G30: 2007-05-01 | H30: 2007-06-01 | I30: 2007-07-01 | J30: 2007-08-01 | K30: 2007-09-01 | L30: 2007-10-01 | M30: 2007-11-01 | N30: 2007-12-01 | O30: 2008-01-01 | P30: 2008-02-01 | Q30: 2008-03-01 | R30: 2008-04-01 | S30: 2008-05-01 | T30: 2008-06-01 | U30: 2008-07-01 | V30: 2008-08-01 | W30: 2008-09-01 | X30: 2008-10-01 | Y30: 2008-11-01 | Z30: 2008-12-01 | AA30: 2009-01-01 | AB30: 2009-02-01 | AC30: 2009-03-01 | AD30: 2009-04-01 | AE30: 2009-05-01 | AF30: 2009-06-01 | AG30: 2009-07-01 | AH30: 2009-08-01 | AI30: 2009-09-01 | AJ30: 2009-10-01 | AK30: 2009-11-01 | AL30: 2009-12-01 | AM30: 2010-01-01 | AN30: 2010-02-01 | AO30: 2010-03-01 | AP30: 2010-04-01 | AQ30: 2010-05-01 | AR30: 2010-06-01 | AS30: 2010-07-01 | AT30: 2010-08-01 | AU30: 2010-09-01 | AV30: 2010-10-01 | AW30: 2010-11-01 | AX30: 2010-12-01 | AY30: 2011-01-01 | AZ30: 2011-02-01 | BA30: 2011-03-01 | BB30: 2011-04-01 | BC30: 2011-05-01 | BD30: 2011-06-01 | BE30: 2011-07-01 | BF30: 2011-08-01 | BG30: 2011-09-01 | BH30: 2011-10-01 | BI30: 2011-11-01 | BJ30: 2011-12-01 | BK30: 2012-01-01 | BL30: 2012-02-01 | BM30: 2012-03-01 | BN30: 2012-04-01 | BO30: 2012-05-01 | BP30: 2012-06-01 | BQ30: 2012-07-01 | BR30: 2012-08-01 | BS30: 2012-09-01 | BT30: 2012-10-01 | BU30: 2012-11-01 | BV30: 2012-12-01 | BW30: 2013-01-01 | BX30: 2013-02-01 | BY30: 2013-03-01 | BZ30: 2013-04-01 | CA30: 2013-05-01 | CB30: 2013-06-01 | CC30: 2013-07-01 | CD30: 2013-08-01 | CE30: 2013-09-01 | CF30: 2013-10-01 | CG30: 2013-11-01 | CH30: 2013-12-01 | CI30: 2014-01-01 | CJ30: 2014-02-01 | CK30: 2014-03-01 | CL30: 2014-04-01 | CM30: 2014-05-01 | CN30: 2014-06-01 | CO30: 2014-07-01 | CP30: 2014-08-01 | CQ30: 2014-09-01 | CR30: 2014-10-01 | CS30: 2014-11-01 | CT30: 2014-12-01 | CU30: 2015-01-01 | CV30: 2015-02-01 | CW30: 2015-03-01 | CX30: 2015-04-01 | CY30: 2015-05-01 | CZ30: 2015-06-01 | DA30: 2015-07-01 | DB30: 2015-08-01 | DC30: 2015-09-01 | DD30: 2015-10-01 | DE30: 2015-11-01 | DF30: 2015-12-01 | DG30: 2016-01-01 | DH30: 2016-02-01 | DI30: 2016-03-01 | DJ30: 2016-04-01 | DK30: 2016-05-01 | DL30: 2016-06-01 | DM30: 2016-07-01 | DN30: 2016-08-01 | DO30: 2016-09-01 | DP30: 2016-10-01 | DQ30: 2016-11-01 | DR30: 2016-12-01 | DS30: 2017-01-01 | DT30: 2017-02-01 | DU30: 2017-03-01 | DV30: 2017-04-01 | DW30: 2017-05-01 | DX30: 2017-06-01 | DY30: 2017-07-01 | DZ30: 2017-08-01 | EA30: 2017-09-01 | EB30: 2017-10-01 | EC30: 2017-11-01 | ED30: 2017-12-01
B31: Demanda horaria (MWh) | C31: 35.2 | D31: 34.4 | E31: 31.9 | F31: 31 | G31: 31.3 | H31: 31.5 | I31: 33.9 | J31: 33.8 | K31: 32.3 | L31: 32.4 | M31: 33.7 | N31: 35.1 | O31: 35.9 | P31: 35.4 | Q31: 33 | R31: 32.1 | S31: 31.1 | T31: 32.7 | U31: 33.7 | V31: 34.5 | W31: 33.5 | X31: 32.3 | Y31: 36.6 | Z31: 41.3 | AA31: 40.5 | AB31: 36.8 | AC31: 35.4 | AD31: 30.7 | AE31: 30.2 | AF31: 35.2 | AG31: 36.6 | AH31: 35.5 | AI31: 34.1 | AJ31: 33.6 | AK31: 33.3 | AL31: 38.2 | AM31: 39.7 | AN31: 38.2 | AO31: 34.7 | AP31: 34.3 | AQ31: 32.8 | AR31: 34.6 | AS31: 36.9 | AT31: 37.5 | AU31: 36.6 | AV31: 34 | AW31: 37.7 | AX31: 36.9 | AY31: 35.6 | AZ31: 35.6 | BA31: 33.4 | BB31: 30.1 | BC31: 31.8 | BD31: 36.1 | BE31: 35.6 | BF31: 35.3 | BG31: 33.9 | BH31: 34 | BI31: 33.2 | BJ31: 34.5 | BK31: 37.7 | BL31: 39.2 | BM31: 34.6 | BN31: 32.6 | BO31: 33.1 | BP31: 34.5 | BQ31: 33.1 | BR31: 34.4 | BS31: 34.1 | BT31: 33.6 | BU31: 34.3 | BV31: 36.6 | BW31: 35.6 | BX31: 36.2 | BY31: 34.4 | BZ31: 30 | CA31: 29.8 | CB31: 31.4 | CC31: 33.3 | CD31: 34.8 | CE31: 34.9 | CF31: 32.6 | CG31: 34.3 | CH31: 35.9 | CI31: 37.3 | CJ31: 36.6 | CK31: 34.6 | CL31: 32.1 | CM31: 31.7 | CN31: 33.4 | CO31: 32.8 | CP31: 34.2 | CQ31: 36.5 | CR31: 33.5 | CS31: 32.8 | CT31: 35.1 | CU31: 39.5 | CV31: 37.1 | CW31: 31.4 | CX31: 30.3 | CY31: 30.4 | CZ31: 31.9 | DA31: 35.8 | DB31: 34.7 | DC31: 33 | DD31: 31.4 | DE31: 30.8 | DF31: 31.9 | DG31: 33 | DH31: 35 | DI31: 34 | DJ31: 33 | DK31: 31 | DL31: 33 | DM31: 34 | DN31: 36 | DO31: 37 | DP31: 33 | DQ31: 33 | DR31: 35 | DS31: 39 | DT31: 33 | DU31: 31 | DV31: - | DW31: - | DX31: - | DY31: - | DZ31: - | EA31: - | EB31: - | EC31: - | ED31: -
B32: Día | C32: 24 | D32: 8 | E32: 28 | F32: 16 | G32: 21 | H32: 18 | I32: 31 | J32: 3 | K32: 10 | L32: 2 | M32: 27 | N32: 17 | O32: 3 | P32: 19 | Q32: 5 | R32: 9 | S32: 7 | T32: 30 | U32: 29 | V32: 6 | W32: 11 | X32: 21 | Y32: 30 | Z32: 15 | AA32: 13 | AB32: 5 | AC32: 4 | AD32: 1 | AE32: 27 | AF32: 23 | AG32: 30 | AH32: 20 | AI32: 8 | AJ32: 29 | AK32: 24 | AL32: 16 | AM32: 10 | AN32: 3 | AO32: 15 | AP32: 14 | AQ32: 31 | AR32: 30 | AS32: 29 | AT32: 12 | AU32: 1 | AV32: 6 | AW32: 29 | AX32: 1 | AY32: 31 | AZ32: 2 | BA32: 10 | BB32: 11 | BC32: 31 | BD32: 30 | BE32: 12 | BF32: 8 | BG32: 13 | BH32: 4 | BI32: 30 | BJ32: 19 | BK32: 16 | BL32: 13 | BM32: 1 | BN32: 19 | BO32: 15 | BP32: 27 | BQ32: 4 | BR32: 2 | BS32: 20 | BT32: 10 | BU32: 6 | BV32: 3 | BW32: 22 | BX32: 28 | BY32: 4 | BZ32: 15 | CA32: 21 | CB32: 25 | CC32: 31 | CD32: 21 | CE32: 5 | CF32: 1 | CG32: 27 | CH32: 2 | CI32: 21 | CJ32: 11 | CK32: 4 | CL32: 1 | CM32: 14 | CN32: 17 | CO32: 16 | CP32: 27 | CQ32: 1 | CR32: 2 | CS32: 12 | CT32: 15 | CU32: 21 | CV32: 5 | CW32: 24 | CX32: 14 | CY32: 29 | CZ32: 10 | DA32: 23 | DB32: 10 | DC32: 1 | DD32: 20 | DE32: 5 | DF32: 10 | DG32: 20 | DH32: 18 | DI32: 9 | DJ32: 4 | DK32: 19 | DL32: 14 | DM32: 25 | DN32: 1 | DO32: 5 | DP32: 4 | DQ32: 29 | DR32: 19 | DS32: 18 | DT32: 2 | DU32: 2 | DV32: - | DW32: - | DX32: - | DY32: - | DZ32: - | EA32: - | EB32: - | EC32: - | ED32: -
B33: Hora | C33: 21 | D33: 21 | E33: 21 | F33: 21 | G33: 21 | H33: 13 | I33: 22 | J33: 22 | K33: 21 | L33: 20 | M33: 19 | N33: 20 | O33: 21 | P33: 20 | Q33: 20 | R33: 21 | S33: 21 | T33: 13 | U33: 13 | V33: 22 | W33: 13 | X33: 20 | Y33: 21 | Z33: 21 | AA33: 21 | AB33: 21 | AC33: 20 | AD33: 13 | AE33: 13 | AF33: 13 | AG33: 13 | AH33: 13 | AI33: 13 | AJ33: 19 | AK33: 20 | AL33: 19 | AM33: 21 | AN33: 20 | AO33: 21 | AP33: 21 | AQ33: 13 | AR33: 13 | AS33: 13 | AT33: 13 | AU33: 13 | AV33: 20 | AW33: 19 | AX33: 19 | AY33: 21 | AZ33: 21 | BA33: 20 | BB33: 21 | BC33: 13 | BD33: 13 | BE33: 13 | BF33: 13 | BG33: 13 | BH33: 20 | BI33: 20 | BJ33: 21 | BK33: 20 | BL33: 21 | BM33: 20 | BN33: 21 | BO33: 13 | BP33: 13 | BQ33: 13 | BR33: 21 | BS33: 13 | BT33: 20 | BU33: 20 | BV33: 21 | BW33: 21 | BX33: 21 | BY33: 21 | BZ33: 22 | CA33: 14 | CB33: 14 | CC33: 14 | CD33: 14 | CE33: 14 | CF33: 14 | CG33: 21 | CH33: 22 | CI33: 22 | CJ33: 22 | CK33: 22 | CL33: 22 | CM33: 14 | CN33: 14 | CO33: 14 | CP33: 14 | CQ33: 14 | CR33: 22 | CS33: 21 | CT33: 22 | CU33: 22 | CV33: 22 | CW33: 22 | CX33: 22 | CY33: 13 | CZ33: 13 | DA33: 13 | DB33: 13 | DC33: 13 | DD33: 20 | DE33: 20 | DF33: 20 | DG33: 21 | DH33: 21 | DI33: 21 | DJ33: 21 | DK33: 13 | DL33: 13 | DM33: 13 | DN33: 13 | DO33: 13 | DP33: 13 | DQ33: 21 | DR33: 21 | DS33: 21 | DT33: 21 | DU33: 21 | DV33: - | DW33: - | DX33: - | DY33: - | DZ33: - | EA33: - | EB33: - | EC33: - | ED33: -
B34: Demanda máxima diaria diaria Ceuta
B35: Demanda diaria (MWh) | C35: 647 | D35: 664 | E35: 589 | F35: 578 | G35: 573 | H35: 580 | I35: 620 | J35: 624 | K35: 606 | L35: 611 | M35: 607 | N35: 631 | O35: 634 | P35: 636 | Q35: 587 | R35: 575 | S35: 575 | T35: 606 | U35: 630 | V35: 639 | W35: 631 | X35: 595 | Y35: 649 | Z35: 723 | AA35: 713 | AB35: 656 | AC35: 614 | AD35: 570 | AE35: 558 | AF35: 653 | AG35: 672 | AH35: 670 | AI35: 655 | AJ35: 623 | AK35: 616 | AL35: 676 | AM35: 710.791 | AN35: 698.457 | AO35: 622.726 | AP35: 612.988 | AQ35: 601.683 | AR35: 640.605 | AS35: 677.443 | AT35: 708.654 | AU35: 699.378 | AV35: 636.757 | AW35: 689.154 | AX35: 650.386 | AY35: 624.367 | AZ35: 608.097 | BA35: 590.191 | BB35: 538.695 | BC35: 587.917 | BD35: 648.094 | BE35: 656.436 | BF35: 643.616 | BG35: 617.32 | BH35: 623.472 | BI35: 598.093 | BJ35: 618.946 | BK35: 666.627 | BL35: 698.387 | BM35: 612.469 | BN35: 590.818 | BO35: 607.919 | BP35: 630.539 | BQ35: 612.957 | BR35: 663.215 | BS35: 626.646 | BT35: 617.987 | BU35: 629.368 | BV35: 642.712 | BW35: 642.283 | BX35: 625.614 | BY35: 624.093 | BZ35: 535.847 | CA35: 544.218 | CB35: 575.064 | CC35: 638.596 | CD35: 655.835 | CE35: 647.067 | CF35: 599.76 | CG35: 640.686 | CH35: 649.454 | CI35: 671.77 | CJ35: 671.169 | CK35: 633.16 | CL35: 575.633 | CM35: 595.818 | CN35: 622.709 | CO35: 628.315 | CP35: 654.002 | CQ35: 670.605 | CR35: 629.223 | CS35: 618.281 | CT35: 645.194 | CU35: 713 | CV35: 654 | CW35: 573.85 | CX35: 573.05 | CY35: 584.44 | CZ35: 605 | DA35: 668 | DB35: 663.313 | DC35: 621.378 | DD35: 587.228 | DE35: 599.201 | DF35: 597.957 | DG35: 608.821 | DH35: 629.413 | DI35: 595.988 | DJ35: 621.428 | DK35: 593 | DL35: 628 | DM35: 643 | DN35: 749 | DO35: 686.324 | DP35: 633.2 | DQ35: 625.293 | DR35: 653.901 | DS35: 703.159 | DT35: 599.752 | DU35: 603.941 | DV35: - | DW35: - | DX35: - | DY35: - | DZ35: - | EA35: - | EB35: - | EC35: - | ED35: -
B36: Día | C36: 26 | D36: 2 | E36: 28 | F36: 11 | G36: 30 | H36: 29 | I36: 31 | J36: 2 | K36: 7 | L36: 9 | M36: 29 | N36: 17 | O36: 16 | P36: 19 | Q36: 4 | R36: 17 | S36: 8 | T36: 30 | U36: 29 | V36: 4 | W36: 11 | X36: 23 | Y36: 27 | Z36: 2 | AA36: 21 | AB36: 5 | AC36: 4 | AD36: 1 | AE36: 20 | AF36: 30 | AG36: 30 | AH36: 20 | AI36: 8 | AJ36: 14 | AK36: 26 | AL36: 16 | AM36: 11 | AN36: 3 | AO36: 2 | AP36: 14 | AQ36: 31 | AR36: 30 | AS36: 29 | AT36: 31 | AU36: 1 | AV36: 7 | AW36: 29 | AX36: 1 | AY36: 26 | AZ36: 3 | BA36: 9 | BB36: 13 | BC36: 31 | BD36: 30 | BE36: 28 | BF36: 1 | BG36: 13 | BH36: 4 | BI36: 30 | BJ36: 20 | BK36: 16 | BL36: 9 | BM36: 1 | BN36: 19 | BO36: 15 | BP36: 27 | BQ36: 30 | BR36: 3 | BS36: 13 | BT36: 10 | BU36: 6 | BV36: 4 | BW36: 24 | BX36: 28 | BY36: 4 | BZ36: 30 | CA36: 10 | CB36: 25 | CC36: 31 | CD36: 21 | CE36: 5 | CF36: 1 | CG36: 28 | CH36: 2 | CI36: 21 | CJ36: 12 | CK36: 5 | CL36: 1 | CM36: 14 | CN36: 17 | CO36: 16 | CP36: 27 | CQ36: 1 | CR36: 1 | CS36: 20 | CT36: 16 | CU36: 21 | CV36: 10 | CW36: 24 | CX36: 28 | CY36: 18 | CZ36: 30 | DA36: 28 | DB36: 3 | DC36: 8 | DD36: 27 | DE36: 6 | DF36: 15 | DG36: 20 | DH36: 18 | DI36: 7 | DJ36: 26 | DK36: 24 | DL36: 14 | DM36: 25 | DN36: 3 | DO36: 7 | DP36: 6 | DQ36: 24 | DR36: 19 | DS36: 18 | DT36: 10 | DU36: 1 | DV36: - | DW36: - | DX36: - | DY36: - | DZ36: - | EA36: - | EB36: - | EC36: - | ED36: -
C37: enero | D37: febrero | E37: marzo | F37: abril | G37: mayo | H37: junio | I37: julio | J37: agosto | K37: septiembre | L37: octubre | M37: noviembre | N37: diciembre | O37: enero | P37: febrero | Q37: marzo | R37: abril | S37: mayo | T37: junio | U37: julio | V37: agosto | W37: septiembre | X37: octubre | Y37: noviembre | Z37: diciembre | AA37: enero | AB37: febrero | AC37: marzo | AD37: abril | AE37: mayo | AF37: junio | AG37: julio | AH37: agosto | AI37: septiembre | AJ37: octubre | AK37: noviembre | AL37: diciembre | AM37: enero | AN37: febrero | AO37: marzo | AP37: abril | AQ37: mayo | AR37: junio | AS37: julio | AT37: agosto | AU37: septiembre | AV37: octubre | AW37: noviembre | AX37: diciembre | AY37: enero | AZ37: febrero | BA37: marzo | BB37: abril | BC37: mayo | BD37: junio | BE37: julio | BF37: agosto | BG37: septiembre | BH37: octubre | BI37: noviembre | BJ37: diciembre | BK37: enero | BL37: febrero | BM37: marzo | BN37: abril | BO37: mayo | BP37: junio | BQ37: julio | BR37: agosto | BS37: septiembre | BT37: octubre | BU37: noviembre | BV37: diciembre | BW37: enero | BX37: febrero | BY37: marzo | BZ37: abril | CA37: mayo | CB37: junio | CC37: julio | CD37: agosto | CE37: septiembre | CF37: octubre | CG37: noviembre | CH37: diciembre | CI37: enero | CJ37: febrero | CK37: marzo | CL37: abril | CM37: mayo | CN37: junio | CO37: julio | CP37: agosto | CQ37: septiembre | CR37: octubre | CS37: noviembre | CT37: diciembre | CU37: enero | CV37: febrero | CW37: marzo | CX37: abril | CY37: mayo | CZ37: junio | DA37: julio | DB37: agosto | DC37: septiembre | DD37: octubre | DE37: noviembre | DF37: diciembre | DG37: enero | DH37: febrero | DI37: marzo | DJ37: abril | DK37: mayo | DL37: junio | DM37: julio | DN37: agosto | DO37: septiembre | DP37: octubre | DQ37: noviembre | DR37: diciembre | DS37: enero | DT37: febrero | DU37: marzo | DV37: abril | DW37: mayo | DX37: junio | DY37: julio | DZ37: agosto | EA37: septiembre | EB37: octubre | EC37: noviembre | ED37: diciembre
B38: Demanda máxima horaria Melilla | C38: 2007-01-01 | D38: 2007-02-01 | E38: 2007-03-01 | F38: 2007-04-01 | G38: 2007-05-01 | H38: 2007-06-01 | I38: 2007-07-01 | J38: 2007-08-01 | K38: 2007-09-01 | L38: 2007-10-01 | M38: 2007-11-01 | N38: 2007-12-01 | O38: 2008-01-01 | P38: 2008-02-01 | Q38: 2008-03-01 | R38: 2008-04-01 | S38: 2008-05-01 | T38: 2008-06-01 | U38: 2008-07-01 | V38: 2008-08-01 | W38: 2008-09-01 | X38: 2008-10-01 | Y38: 2008-11-01 | Z38: 2008-12-01 | AA38: 2009-01-01 | AB38: 2009-02-01 | AC38: 2009-03-01 | AD38: 2009-04-01 | AE38: 2009-05-01 | AF38: 2009-06-01 | AG38: 2009-07-01 | AH38: 2009-08-01 | AI38: 2009-09-01 | AJ38: 2009-10-01 | AK38: 2009-11-01 | AL38: 2009-12-01 | AM38: 2010-01-01 | AN38: 2010-02-01 | AO38: 2010-03-01 | AP38: 2010-04-01 | AQ38: 2010-05-01 | AR38: 2010-06-01 | AS38: 2010-07-01 | AT38: 2010-08-01 | AU38: 2010-09-01 | AV38: 2010-10-01 | AW38: 2010-11-01 | AX38: 2010-12-01 | AY38: 2011-01-01 | AZ38: 2011-02-01 | BA38: 2011-03-01 | BB38: 2011-04-01 | BC38: 2011-05-01 | BD38: 2011-06-01 | BE38: 2011-07-01 | BF38: 2011-08-01 | BG38: 2011-09-01 | BH38: 2011-10-01 | BI38: 2011-11-01 | BJ38: 2011-12-01 | BK38: 2012-01-01 | BL38: 2012-02-01 | BM38: 2012-03-01 | BN38: 2012-04-01 | BO38: 2012-05-01 | BP38: 2012-06-01 | BQ38: 2012-07-01 | BR38: 2012-08-01 | BS38: 2012-09-01 | BT38: 2012-10-01 | BU38: 2012-11-01 | BV38: 2012-12-01 | BW38: 2013-01-01 | BX38: 2013-02-01 | BY38: 2013-03-01 | BZ38: 2013-04-01 | CA38: 2013-05-01 | CB38: 2013-06-01 | CC38: 2013-07-01 | CD38: 2013-08-01 | CE38: 2013-09-01 | CF38: 2013-10-01 | CG38: 2013-11-01 | CH38: 2013-12-01 | CI38: 2014-01-01 | CJ38: 2014-02-01 | CK38: 2014-03-01 | CL38: 2014-04-01 | CM38: 2014-05-01 | CN38: 2014-06-01 | CO38: 2014-07-01 | CP38: 2014-08-01 | CQ38: 2014-09-01 | CR38: 2014-10-01 | CS38: 2014-11-01 | CT38: 2014-12-01 | CU38: 2015-01-01 | CV38: 2015-02-01 | CW38: 2015-03-01 | CX38: 2015-04-01 | CY38: 2015-05-01 | CZ38: 2015-06-01 | DA38: 2015-07-01 | DB38: 2015-08-01 | DC38: 2015-09-01 | DD38: 2015-10-01 | DE38: 2015-11-01 | DF38: 2015-12-01 | DG38: 2016-01-01 | DH38: 2016-02-01 | DI38: 2016-03-01 | DJ38: 2016-04-01 | DK38: 2016-05-01 | DL38: 2016-06-01 | DM38: 2016-07-01 | DN38: 2016-08-01 | DO38: 2016-09-01 | DP38: 2016-10-01 | DQ38: 2016-11-01 | DR38: 2016-12-01 | DS38: 2017-01-01 | DT38: 2017-02-01 | DU38: 2017-03-01 | DV38: 2017-04-01 | DW38: 2017-05-01 | DX38: 2017-06-01 | DY38: 2017-07-01 | DZ38: 2017-08-01 | EA38: 2017-09-01 | EB38: 2017-10-01 | EC38: 2017-11-01 | ED38: 2017-12-01
B39: Demanda horaria (MWh) | C39: 32.7 | D39: 31.4 | E39: 28.3 | F39: 29.3 | G39: 27.9 | H39: 31.2 | I39: 34 | J39: 34.6 | K39: 32 | L39: 31.2 | M39: 31.4 | N39: 34.000001 | O39: 34.1 | P39: 33 | Q39: 30.1 | R39: 29.8 | S39: 29.5 | T39: 34.9 | U39: 35.6 | V39: 37.8 | W39: 34.3 | X39: 31.6 | Y39: 35.1 | Z39: 39.3 | AA39: 37.9 | AB39: 33.9 | AC39: 34.7 | AD39: 31.6 | AE39: 29.6 | AF39: 32.9 | AG39: 37.8 | AH39: 37.2 | AI39: 36.4 | AJ39: 33 | AK39: 32.7 | AL39: 36.2 | AM39: 36.9 | AN39: 34.3 | AO39: 32.9 | AP39: 31 | AQ39: 30 | AR39: 33.8 | AS39: 35.1 | AT39: 39.2 | AU39: 34.8 | AV39: 32.7 | AW39: 32.5 | AX39: 33.6 | AY39: 35.6 | AZ39: 37.4 | BA39: 33.8 | BB39: 30.1 | BC39: 31.5 | BD39: 36 | BE39: 36.1 | BF39: 38.5 | BG39: 36.3 | BH39: 33.2 | BI39: 32.5 | BJ39: 35.9 | BK39: 38.5 | BL39: 39.9 | BM39: 34 | BN39: 30.8 | BO39: 29.9 | BP39: 35.9 | BQ39: 36.5 | BR39: 37.3 | BS39: 35 | BT39: 32.3 | BU39: 32.1 | BV39: 34.8 | BW39: 34.6 | BX39: 36.4 | BY39: 33.9 | BZ39: 30.6 | CA39: 31.2 | CB39: 31.9 | CC39: 35.9 | CD39: 37.2 | CE39: 35.2 | CF39: 34.2 | CG39: 34.4 | CH39: 34.9 | CI39: 35.1 | CJ39: 34.1 | CK39: 32.9 | CL39: 32.2 | CM39: 30.1 | CN39: 33 | CO39: 33.6 | CP39: 38 | CQ39: 37.9 | CR39: 33.5 | CS39: 31.4 | CT39: 34.7 | CU39: 38.3 | CV39: 37.5 | CW39: 32.2 | CX39: 31.3 | CY39: 28.8 | CZ39: 33 | DA39: 40.5 | DB39: 41.7 | DC39: 36.6 | DD39: 34 | DE39: 32.2 | DF39: 32.9 | DG39: 33 | DH39: 34 | DI39: 34 | DJ39: 31 | DK39: 30 | DL39: 35 | DM39: 37 | DN39: 40.000001 | DO39: 40 | DP39: 34 | DQ39: 32 | DR39: 34 | DS39: 40 | DT39: 35 | DU39: 32 | DV39: - | DW39: - | DX39: - | DY39: - | DZ39: - | EA39: - | EB39: - | EC39: - | ED39: -
B40: Día | C40: 24 | D40: 1 | E40: 14 | F40: 23 | G40: 3 | H40: 25 | I40: 31 | J40: 3 | K40: 20 | L40: 2 | M40: 19 | N40: 31 | O40: 3 | P40: 5 | Q40: 6 | R40: 16 | S40: 6 | T40: 30 | U40: 31 | V40: 27 | W40: 1 | X40: 27 | Y40: 27 | Z40: 16 | AA40: 21 | AB40: 17 | AC40: 16 | AD40: 22 | AE40: 5 | AF40: 24 | AG40: 30 | AH40: 5 | AI40: 1 | AJ40: 5 | AK40: 17 | AL40: 14 | AM40: 27 | AN40: 2 | AO40: 11 | AP40: 26 | AQ40: 31 | AR40: 2 | AS40: 26 | AT40: 12 | AU40: 1 | AV40: 18 | AW40: 29 | AX40: 2 | AY40: 31 | AZ40: 1 | BA40: 2 | BB40: 12 | BC40: 10 | BD40: 23 | BE40: 1 | BF40: 8 | BG40: 14 | BH40: 3 | BI40: 30 | BJ40: 20 | BK40: 17 | BL40: 14 | BM40: 1 | BN40: 19 | BO40: 29 | BP40: 27 | BQ40: 23 | BR40: 23 | BS40: 21 | BT40: 10 | BU40: 12 | BV40: 12 | BW40: 23 | BX40: 12 | BY40: 5 | BZ40: 24 | CA40: 10 | CB40: 17 | CC40: 25 | CD40: 26 | CE40: 4 | CF40: 3 | CG40: 5 | CH40: 31 | CI40: 29 | CJ40: 3 | CK40: 12 | CL40: 2 | CM40: 6 | CN40: 18 | CO40: 15 | CP40: 29 | CQ40: 2 | CR40: 1 | CS40: 19 | CT40: 31 | CU40: 21 | CV40: 5 | CW40: 25 | CX40: 8 | CY40: 5 | CZ40: 29 | DA40: 30 | DB40: 7 | DC40: 1 | DD40: 5 | DE40: 25 | DF40: 17 | DG40: 20 | DH40: 17 | DI40: 7 | DJ40: 4 | DK40: 12 | DL40: 14 | DM40: 12 | DN40: 29 | DO40: 6 | DP40: 5 | DQ40: 30 | DR40: 19 | DS40: 19 | DT40: 2 | DU40: 23 | DV40: - | DW40: - | DX40: - | DY40: - | DZ40: - | EA40: - | EB40: - | EC40: - | ED40: -
B41: Hora | C41: 21 | D41: 21 | E41: 20 | F41: 21 | G41: 21 | H41: 12 | I41: 13 | J41: 12 | K41: 20 | L41: 20 | M41: 19 | N41: 20 | O41: 18 | P41: 21 | Q41: 20 | R41: 21 | S41: 21 | T41: 13 | U41: 13 | V41: 13 | W41: 13 | X41: 19 | Y41: 19 | Z41: 21 | AA41: 20 | AB41: 20 | AC41: 20 | AD41: 21 | AE41: 21 | AF41: 13 | AG41: 13 | AH41: 13 | AI41: 13 | AJ41: 20 | AK41: 19 | AL41: 21 | AM41: 19 | AN41: 21 | AO41: 20 | AP41: 21 | AQ41: 13 | AR41: 13 | AS41: 13 | AT41: 13 | AU41: 13 | AV41: 20 | AW41: 19 | AX41: 20 | AY41: 21 | AZ41: 21 | BA41: 20 | BB41: 21 | BC41: 21 | BD41: 13 | BE41: 13 | BF41: 13 | BG41: 13 | BH41: 20 | BI41: 19 | BJ41: 21 | BK41: 21 | BL41: 21 | BM41: 20 | BN41: 22 | BO41: 13 | BP41: 13 | BQ41: 13 | BR41: 13 | BS41: 13 | BT41: 20 | BU41: 20 | BV41: 20 | BW41: 22 | BX41: 21 | BY41: 21 | BZ41: 22 | CA41: 14 | CB41: 14 | CC41: 14 | CD41: 14 | CE41: 14 | CF41: 21 | CG41: 20 | CH41: 21 | CI41: 21 | CJ41: 22 | CK41: 21 | CL41: 22 | CM41: 22 | CN41: 14 | CO41: 14 | CP41: 14 | CQ41: 14 | CR41: 21 | CS41: 21 | CT41: 21 | CU41: 22 | CV41: 22 | CW41: 21 | CX41: 22 | CY41: 21 | CZ41: 13 | DA41: 13 | DB41: 13 | DC41: 13 | DD41: 20 | DE41: 20 | DF41: 20 | DG41: 20 | DH41: 21 | DI41: 20 | DJ41: 21 | DK41: 21 | DL41: 12 | DM41: 13 | DN41: 13 | DO41: 13 | DP41: 20 | DQ41: 20 | DR41: 21 | DS41: 21 | DT41: 21 | DU41: 20 | DV41: - | DW41: - | DX41: - | DY41: - | DZ41: - | EA41: - | EB41: - | EC41: - | ED41: -
B42: Demanda máxima diaria diaria Melilla
B43: Demanda diaria (MWh) | C43: 587 | D43: 551 | E43: 530 | F43: 548 | G43: 548 | H43: 603 | I43: 673 | J43: 679 | K43: 589 | L43: 602 | M43: 568 | N43: 615 | O43: 617 | P43: 592 | Q43: 550 | R43: 542 | S43: 555 | T43: 623 | U43: 641 | V43: 688 | W43: 625 | X43: 569 | Y43: 589 | Z43: 640 | AA43: 663 | AB43: 604 | AC43: 583 | AD43: 547 | AE43: 555 | AF43: 637 | AG43: 719 | AH43: 726 | AI43: 701 | AJ43: 597 | AK43: 568 | AL43: 627 | AM43: 655.507 | AN43: 615.368 | AO43: 603.812 | AP43: 571.063 | AQ43: 587.313 | AR43: 651.446 | AS43: 707.31 | AT43: 765.994 | AU43: 716.906 | AV43: 606.474 | AW43: 613.515 | AX43: 628.747 | AY43: 644.313 | AZ43: 666.77 | BA43: 604.586 | BB43: 565.164 | BC43: 585.874 | BD43: 683.746 | BE43: 691.784 | BF43: 750.249 | BG43: 696.987 | BH43: 640.093 | BI43: 596.069 | BJ43: 638.672 | BK43: 677.035 | BL43: 687.139 | BM43: 612.419 | BN43: 573.005 | BO43: 590.851 | BP43: 696.79 | BQ43: 704.651 | BR43: 741.603 | BS43: 670.296 | BT43: 615.76 | BU43: 580.355 | BV43: 612.971 | BW43: 614.903 | BX43: 641.701 | BY43: 598.141 | BZ43: 561.72 | CA43: 588.317 | CB43: 596.867 | CC43: 696.798 | CD43: 709.446 | CE43: 657.587 | CF43: 638.81 | CG43: 619.79 | CH43: 612.755 | CI43: 626.476 | CJ43: 616.874 | CK43: 586.065 | CL43: 567.973 | CM43: 566.893 | CN43: 617.846 | CO43: 654.603 | CP43: 724.6 | CQ43: 709.796 | CR43: 627.362 | CS43: 581.839 | CT43: 626.042 | CU43: 673.262 | CV43: 663 | CW43: 572.85 | CX43: 562 | CY43: 571.14 | CZ43: 653 | DA43: 781 | DB43: 782.097 | DC43: 686.836 | DD43: 621.178 | DE43: 579.139 | DF43: 595.479 | DG43: 597.235 | DH43: 585.447 | DI43: 566.466 | DJ43: 596.841 | DK43: 560.503 | DL43: 672.175 | DM43: 688.17 | DN43: 723.928 | DO43: 792.884 | DP43: 627.536 | DQ43: 583.877 | DR43: 599.006 | DS43: 712.866 | DT43: 602.146 | DU43: 614.277 | DV43: - | DW43: - | DX43: - | DY43: - | DZ43: - | EA43: - | EB43: - | EC43: - | ED43: -
B44: Día | C44: 26 | D44: 1 | E44: 28 | F44: 23 | G44: 11 | H44: 25 | I44: 31 | J44: 1 | K44: 7 | L44: 2 | M44: 27 | N44: 19 | O44: 3 | P44: 5 | Q44: 10 | R44: 28 | S44: 7 | T44: 26 | U44: 31 | V44: 27 | W44: 19 | X44: 7 | Y44: 27 | Z44: 2 | AA44: 12 | AB44: 16 | AC44: 4 | AD44: 24 | AE44: 20 | AF44: 24 | AG44: 30 | AH44: 5 | AI44: 1 | AJ44: 13 | AK44: 25 | AL44: 16 | AM44: 27 | AN44: 1 | AO44: 2 | AP44: 27 | AQ44: 31 | AR44: 2 | AS44: 26 | AT44: 31 | AU44: 1 | AV44: 21 | AW44: 29 | AX44: 2 | AY44: 31 | AZ44: 1 | BA44: 18 | BB44: 29 | BC44: 27 | BD44: 30 | BE44: 1 | BF44: 16 | BG44: 14 | BH44: 3 | BI44: 29 | BJ44: 20 | BK44: 17 | BL44: 14 | BM44: 1 | BN44: 12 | BO44: 31 | BP44: 28 | BQ44: 13 | BR44: 10 | BS44: 20 | BT44: 11 | BU44: 20 | BV44: 12 | BW44: 24 | BX44: 12 | BY44: 1 | BZ44: 4 | CA44: 10 | CB44: 17 | CC44: 25 | CD44: 6 | CE44: 11 | CF44: 7 | CG44: 28 | CH44: 3 | CI44: 29 | CJ44: 18 | CK44: 5 | CL44: 1 | CM44: 12 | CN44: 19 | CO44: 24 | CP44: 29 | CQ44: 1 | CR44: 1 | CS44: 26 | CT44: 15 | CU44: 21 | CV44: 6 | CW44: 25 | CX44: 9 | CY44: 13 | CZ44: 30 | DA44: 23 | DB44: 7 | DC44: 1 | DD44: 6 | DE44: 25 | DF44: 17 | DG44: 20 | DH44: 18 | DI44: 7 | DJ44: 26 | DK44: 25 | DL44: 14 | DM44: 13 | DN44: 5 | DO44: 5 | DP44: 6 | DQ44: 30 | DR44: 22 | DS44: 20 | DT44: 1 | DU44: 23 | DV44: - | DW44: - | DX44: - | DY44: - | DZ44: - | EA44: - | EB44: - | EC44: - | ED44: -
C45: enero | D45: febrero | E45: marzo | F45: abril | G45: mayo | H45: junio | I45: julio | J45: agosto | K45: septiembre | L45: octubre | M45: noviembre | N45: diciembre | O45: enero | P45: febrero | Q45: marzo | R45: abril | S45: mayo | T45: junio | U45: julio | V45: agosto | W45: septiembre | X45: octubre | Y45: noviembre | Z45: diciembre | AA45: enero | AB45: febrero | AC45: marzo | AD45: abril | AE45: mayo | AF45: junio | AG45: julio | AH45: agosto | AI45: septiembre | AJ45: octubre | AK45: noviembre | AL45: diciembre | AM45: enero | AN45: febrero | AO45: marzo | AP45: abril | AQ45: mayo | AR45: junio | AS45: julio | AT45: agosto | AU45: septiembre | AV45: octubre | AW45: noviembre | AX45: diciembre | AY45: enero | AZ45: febrero | BA45: marzo | BB45: abril | BC45: mayo | BD45: junio | BE45: julio | BF45: agosto | BG45: septiembre | BH45: octubre | BI45: noviembre | BJ45: diciembre | BK45: enero | BL45: febrero | BM45: marzo | BN45: abril | BO45: mayo | BP45: junio | BQ45: julio | BR45: agosto | BS45: septiembre | BT45: octubre | BU45: noviembre | BV45: diciembre | BW45: enero | BX45: febrero | BY45: marzo | BZ45: abril | CA45: mayo | CB45: junio | CC45: julio | CD45: agosto | CE45: septiembre | CF45: octubre | CG45: noviembre | CH45: diciembre | CI45: enero | CJ45: febrero | CK45: marzo | CL45: abril | CM45: mayo | CN45: junio | CO45: julio | CP45: agosto | CQ45: septiembre | CR45: octubre | CS45: noviembre | CT45: diciembre | CU45: enero | CV45: febrero | CW45: marzo | CX45: abril | CY45: mayo | CZ45: junio | DA45: julio | DB45: agosto | DC45: septiembre | DD45: octubre | DE45: noviembre | DF45: diciembre | DG45: enero | DH45: febrero | DI45: marzo | DJ45: abril | DK45: mayo | DL45: junio | DM45: julio | DN45: agosto | DO45: septiembre | DP45: octubre | DQ45: noviembre | DR45: diciembre | DS45: enero | DT45: febrero | DU45: marzo | DV45: abril | DW45: mayo | DX45: junio | DY45: julio | DZ45: agosto | EA45: septiembre | EB45: octubre | EC45: noviembre | ED45: diciembre
B46: Potencia máxima instantánea peninsular | C46: 1990 | D46: 1990 | E46: 1991 | F46: 1991 | G46: 1992 | H46: 1992 | I46: 1993 | J46: 1993 | K46: 1994 | L46: 1994 | M46: 1995 | N46: 1995 | O46: 1996 | P46: 1996 | Q46: 1997 | R46: 1997 | S46: 1998 | T46: 1998 | U46: 1999 | V46: 1999 | W46: 2000 | X46: 2000 | Y46: 2001 | Z46: 2001 | AA46: 2002 | AB46: 2002 | AC46: 2003 | AD46: 2003 | AE46: 2004 | AF46: 2004 | AG46: 2005 | AH46: 2005 | AI46: 2006 | AJ46: 2006 | AK46: 2007 | AL46: 2007 | AM46: 2008 | AN46: 2008 | AO46: 2009 | AP46: 2009 | AQ46: 2010 | AR46: 2010 | AS46: 2011 | AT46: 2011 | AU46: 2012 | AV46: 2012 | AW46: 2013 | AX46: 2013 | AY46: 2014 | AZ46: 2014 | BA46: 2015 | BB46: 2015 | BC46: 2016 | BD46: 2016 | BE46: 2017 | BF46: 2017 | BG46: 2018 | BH46: 2018 | BI46: 2019 | BJ46: 2019
C47: Invierno | D47: Verano | E47: Invierno | F47: Verano | G47: Invierno | H47: Verano | I47: Invierno | J47: Verano | K47: Invierno | L47: Verano | M47: Invierno | N47: Verano | O47: Invierno | P47: Verano | Q47: Invierno | R47: Verano | S47: Invierno | T47: Verano | U47: Invierno | V47: Verano | W47: Invierno | X47: Verano | Y47: Invierno | Z47: Verano | AA47: Invierno | AB47: Verano | AC47: Invierno | AD47: Verano | AE47: Invierno | AF47: Verano | AG47: Invierno | AH47: Verano | AI47: Invierno | AJ47: Verano | AK47: Invierno | AL47: Verano | AM47: Invierno | AN47: Verano | AO47: Invierno | AP47: Verano | AQ47: Invierno | AR47: Verano | AS47: Invierno | AT47: Verano | AU47: Invierno | AV47: Verano | AW47: Invierno | AX47: Verano | AY47: Invierno | AZ47: Verano | BA47: Invierno | BB47: Verano | BC47: Invierno | BD47: Verano | BE47: Invierno | BF47: Verano | BG47: Invierno | BH47: Verano | BI47: Invierno | BJ47: Verano
B48: Potencia instantánea (MW) | C48: - | D48: - | E48: - | F48: - | G48: - | H48: - | I48: - | J48: - | K48: - | L48: - | M48: - | N48: - | O48: - | P48: - | Q48: - | R48: - | S48: - | T48: - | U48: - | V48: - | W48: - | X48: - | Y48: - | Z48: - | AA48: - | AB48: - | AC48: - | AD48: - | AE48: - | AF48: - | AG48: - | AH48: - | AI48: =MAX(Maximos!GM3:GQ3,Maximos!GV3:GX3) -> 42429.8594 | AJ48: =MAX(Maximos!GR3:GU3) -> 40778.8672 | AK48: =MAX(Maximos!GY3:HC3,Maximos!HH3:HJ3) -> 45450 | AL48: =MAX(Maximos!HD3:HG3) -> 39504.9727 | AM48: =MAX(Maximos!HK3:HO3,Maximos!HT3:HV3) -> 43252.168 | AN48: =MAX(Maximos!HP3:HS3) -> 40407.0586 | AO48: =MAX(Maximos!HW3:IA3,Maximos!IF3:IH3) -> 44495.9102 | AP48: =MAX(Maximos!IB3:IE3) -> 40487 | AQ48: =MAX(Maximos!II3:IM3,Maximos!IR3:IT3) -> 44486 | AR48: =MAX(Maximos!IN3:IQ3) -> 41318 | AS48: =MAX(Maximos!IU3:IY3,Maximos!JD3:JF3) -> 43969 | AT48: =MAX(Maximos!IZ3:JC3) -> 40139 | AU48: =MAX(Maximos!JG3:JK3,Maximos!JP3:JR3) -> 43527 | AV48: =MAX(Maximos!JL3:JO3) -> 39124 | AW48: =MAX(Maximos!JS3:JW3,Maximos!KB3:KD3) -> 40277 | AX48: =MAX(Maximos!JX3:KA3) -> 37570 | AY48: =MAX(Maximos!KE3:KI3,Maximos!KN3:KP3) -> 38948 | AZ48: =MAX(Maximos!KJ3:KM3) -> 37299 | BA48: =MAX(Maximos!KQ3:KU3,Maximos!KZ3:LB3) -> 40726 | BB48: =MAX(Maximos!KV3:KY3) -> 40192 | BC48: =MAX(Maximos!LC3:LG3,Maximos!LL3:LN3) -> 38464 | BD48: =MAX(Maximos!LH3:LK3) -> 40489 | BE48: =MAX(Maximos!LO3:LS3,Maximos!LX3:LZ3) -> 41381 | BF48: - | BG48: - | BH48: - | BI48: - | BJ48: -
B49: Día | C49: - | D49: - | E49: - | F49: - | G49: - | H49: - | I49: - | J49: - | K49: - | L49: - | M49: - | N49: - | O49: - | P49: - | Q49: - | R49: - | S49: - | T49: - | U49: - | V49: - | W49: - | X49: - | Y49: - | Z49: - | AA49: - | AB49: - | AC49: - | AD49: - | AE49: - | AF49: - | AG49: - | AH49: - | AI49: =HLOOKUP($AI$48,Maximos!$GM$3:$GX$13,2,0)&" de "&HLOOKUP($AI$48,Maximos!$GM$3:$GX$13,11,0) -> 20 de diciembre | AJ49: =HLOOKUP($AJ$48,Maximos!$GM$3:$GX$13,2,0)&" de "&HLOOKUP($AJ$48,Maximos!$GM$3:$GX$13,11,0) -> 13 de julio | AK49: =HLOOKUP($AK$48,Maximos!$GY$3:$HJ$13,2,0)&" de "&HLOOKUP($AK$48,Maximos!$GY$3:$HJ$13,11,0) -> 17 de diciembre | AL49: =HLOOKUP($AL$48,Maximos!$GY$3:$HJ$13,2,0)&" de "&HLOOKUP($AL$48,Maximos!$GY$3:$HJ$13,11,0) -> 27 de julio | AM49: =HLOOKUP($AM$48,Maximos!$HK$3:$HV$13,2,0)&" de "&HLOOKUP($AM$48,Maximos!$HK$3:$HV$13,11,0) -> 15 de diciembre | AN49: =HLOOKUP($AN$48,Maximos!$HK$3:$HV$13,2,0)&" de "&HLOOKUP($AN$48,Maximos!$HK$3:$HV$13,11,0) -> 1 de julio | AO49: =HLOOKUP($AO$48,Maximos!$HW$3:$IH$13,2,0)&" de "&HLOOKUP($AO$48,Maximos!$HW$3:$IH$13,11,0) -> 13 de enero | AP49: =HLOOKUP($AP$48,Maximos!$HW$3:$IH$13,2,0)&" de "&HLOOKUP($AP$48,Maximos!$HW$3:$IH$13,11,0) -> 1 de septiembre | AQ49: =HLOOKUP($AQ$48,Maximos!$II$3:$IT$13,2,0)&" de "&HLOOKUP($AQ$48,Maximos!$II$3:$IT$13,11,0) -> 12 de enero | AR49: =HLOOKUP($AR$48,Maximos!$II$3:$IT$13,2,0)&" de "&HLOOKUP($AR$48,Maximos!$II$3:$IT$13,11,0) -> 19 de julio | AS49: =HLOOKUP($AS$48,Maximos!$IU$3:$JF$13,2,0)&" de "&HLOOKUP($AS$48,Maximos!$IU$3:$JF$13,11,0) -> 24 de enero | AT49: =HLOOKUP($AT$48,Maximos!$IU$3:$JF$13,2,0)&" de "&HLOOKUP($AT$48,Maximos!$IU$3:$JF$13,11,0) -> 28 de junio | AU49: =HLOOKUP($AU$48,Maximos!$JG$3:$JR$13,2,0)&" de "&HLOOKUP($AU$48,Maximos!$JG$3:$JR$13,11,0) -> 13 de febrero | AV49: =HLOOKUP($AV$48,Maximos!$JG$3:$JR$13,2,0)&" de "&HLOOKUP($AV$48,Maximos!$JG$3:$JR$13,11,0) -> 28 de junio | AW49: =HLOOKUP($AW$48,Maximos!$JS$3:$KD$13,2,0)&" de "&HLOOKUP($AW$48,Maximos!$JS$3:$KD$13,11,0) -> 27 de febrero | AX49: =HLOOKUP($AX$48,Maximos!$JS$3:$KD$13,2,0)&" de "&HLOOKUP($AX$48,Maximos!$JS$3:$KD$13,11,0) -> 10 de julio | AY49: =HLOOKUP(AY48,Maximos!KE3:KP13,2,0)&" de "&HLOOKUP(AY48,Maximos!KE3:KP13,11,0) -> 4 de febrero | AZ49: =HLOOKUP(AZ48,Maximos!KJ3:KM13,2,0)&" de "&HLOOKUP(AZ48,Maximos!KJ3:KM13,11,0) -> 17 de julio | BA49: =HLOOKUP(BA48,Maximos!KQ3:LB13,2,0)&" de "&HLOOKUP(BA48,Maximos!KQ3:LB13,11,0) -> 4 de febrero | BB49: =HLOOKUP(BB48,Maximos!KV3:KY13,2,0)&" de "&HLOOKUP(BB48,Maximos!KV3:KY13,11,0) -> 21 de julio | BC49: =HLOOKUP(BC48,Maximos!LC3:LN13,2,0)&" de "&HLOOKUP(BC48,Maximos!LC3:LN13,11,0) -> 17 de febrero | BD49: =HLOOKUP(BD48,Maximos!LH3:LK13,2,0)&" de "&HLOOKUP(BD48,Maximos!LH3:LK13,11,0) -> 6 de septiembre | BE49: =HLOOKUP(BE48,Maximos!LO3:LZ13,2,0)&" de "&HLOOKUP(BE48,Maximos!LO3:LZ13,11,0) -> 18 de enero | BF49: - | BG49: - | BH49: - | BI49: - | BJ49: -
B50: Hora | C50: - | D50: - | E50: - | F50: - | G50: - | H50: - | I50: - | J50: - | K50: - | L50: - | M50: - | N50: - | O50: - | P50: - | Q50: - | R50: - | S50: - | T50: - | U50: - | V50: - | W50: - | X50: - | Y50: - | Z50: - | AA50: - | AB50: - | AC50: - | AD50: - | AE50: - | AF50: - | AG50: - | AH50: - | AI50: =HLOOKUP($AI$48,Maximos!$GM$3:$GX$13,3,0) -> 18:58:16 | AJ50: =HLOOKUP($AJ$48,Maximos!$GM$3:$GX$13,3,0) -> 13:27:29 | AK50: =HLOOKUP($AK$48,Maximos!$GY$3:$HJ$13,3,0) -> 18:53:00 | AL50: =HLOOKUP($AL$48,Maximos!$GY$3:$HJ$13,3,0) -> 13:25:42 | AM50: =HLOOKUP($AM$48,Maximos!$HK$3:$HV$13,3,0) -> 18:59:07 | AN50: =HLOOKUP($AN$48,Maximos!$HK$3:$HV$13,3,0) -> 13:22:27 | AO50: =HLOOKUP($AO$48,Maximos!$HW$3:$IH$13,3,0) -> 18:41:03 | AP50: =HLOOKUP($AP$48,Maximos!$HW$3:$IH$13,3,0) -> 12:55:00 | AQ50: =HLOOKUP($AQ$48,Maximos!$II$3:$IT$13,3,0) -> 18:56:00 | AR50: =HLOOKUP($AR$48,Maximos!$II$3:$IT$13,3,0) -> 13:26:00 | AS50: =HLOOKUP($AS$48,Maximos!$IU$3:$JF$13,3,0) -> 20:06:00 | AT50: =HLOOKUP($AT$48,Maximos!$IU$3:$JF$13,3,0) -> 13:24:00 | AU50: =HLOOKUP($AU$48,Maximos!$JG$3:$JR$13,3,0) -> 20:21:00 | AV50: =HLOOKUP($AV$48,Maximos!$JG$3:$JR$13,3,0) -> 13:23:00 | AW50: =HLOOKUP($AW$48,Maximos!$JS$3:$KD$13,3,0) -> 20:42:00 | AX50: =HLOOKUP($AX$48,Maximos!$JS$3:$KD$13,3,0) -> 13:32:00 | AY50: =HLOOKUP(AY48,Maximos!KE3:KP13,3,0) -> 20:18:00 | AZ50: =HLOOKUP(AZ48,Maximos!KJ3:KM13,3,0) -> 13:21:00 | BA50: =HLOOKUP(BA48,Maximos!KQ3:LB13,3,0) -> 19:56:00 | BB50: =HLOOKUP(BB48,Maximos!KV3:KY13,3,0) -> 13:33:00 | BC50: =HLOOKUP(BC48,Maximos!LC3:LN13,3,0) -> 20:37:00 | BD50: =HLOOKUP(BD48,Maximos!LH3:LK13,3,0) -> 13:32 | BE50: =HLOOKUP(BE48,Maximos!LO3:LZ13,3,0) -> 19:50 | BF50: - | BG50: - | BH50: - | BI50: - | BJ50: -
B51: Demanda máxima horaria peninsular | C51: 1990 | D51: 1990 | E51: 1991 | F51: 1991 | G51: 1992 | H51: 1992 | I51: 1993 | J51: 1993 | K51: 1994 | L51: 1994 | M51: 1995 | N51: 1995 | O51: 1996 | P51: 1996 | Q51: 1997 | R51: 1997 | S51: 1998 | T51: 1998 | U51: 1999 | V51: 1999 | W51: 2000 | X51: 2000 | Y51: 2001 | Z51: 2001 | AA51: 2002 | AB51: 2002 | AC51: 2003 | AD51: 2003 | AE51: 2004 | AF51: 2004 | AG51: 2005 | AH51: 2005 | AI51: 2006 | AJ51: 2006 | AK51: 2007 | AL51: 2007 | AM51: 2008 | AN51: 2008 | AO51: 2009 | AP51: 2009 | AQ51: 2010 | AR51: 2010 | AS51: 2011 | AT51: 2011 | AU51: 2012 | AV51: 2012 | AW51: 2013 | AX51: 2013 | AY51: 2014 | AZ51: 2014 | BA51: 2015 | BB51: 2015 | BC51: 2016 | BD51: 2016 | BE51: 2017 | BF51: 2017 | BG51: 2018 | BH51: 2018 | BI51: 2019 | BJ51: 2019
C52: Invierno | D52: Verano | E52: Invierno | F52: Verano | G52: Invierno | H52: Verano | I52: Invierno | J52: Verano | K52: Invierno | L52: Verano | M52: Invierno | N52: Verano | O52: Invierno | P52: Verano | Q52: Invierno | R52: Verano | S52: Invierno | T52: Verano | U52: Invierno | V52: Verano | W52: Invierno | X52: Verano | Y52: Invierno | Z52: Verano | AA52: Invierno | AB52: Verano | AC52: Invierno | AD52: Verano | AE52: Invierno | AF52: Verano | AG52: Invierno | AH52: Verano | AI52: Invierno | AJ52: Verano | AK52: Invierno | AL52: Verano | AM52: Invierno | AN52: Verano | AO52: Invierno | AP52: Verano | AQ52: Invierno | AR52: Verano | AS52: Invierno | AT52: Verano | AU52: Invierno | AV52: Verano | AW52: Invierno | AX52: Verano | AY52: Invierno | AZ52: Verano | BA52: Invierno | BB52: Verano | BC52: Invierno | BD52: Verano | BE52: Invierno | BF52: Verano | BG52: Invierno | BH52: Verano | BI52: Invierno | BJ52: Verano
B53: Demanda horaria (MWh) | C53: =MAX(Maximos!C7:G7,Maximos!L7:N7) -> 25160 | D53: =MAX(Maximos!H7:K7) -> 20185 | E53: =MAX(Maximos!O7:S7,Maximos!X7:Z7) -> 24395 | F53: =MAX(Maximos!T7:W7) -> 20792 | G53: =MAX(Maximos!AA7:AE7,Maximos!AJ7:AL7) -> 25336 | H53: =MAX(Maximos!AF7:AI7) -> 20347 | I53: =MAX(Maximos!AM7:AQ7,Maximos!AV7:AX7) -> 23990 | J53: =MAX(Maximos!AR7:AU7) -> 20355 | K53: =MAX(Maximos!AY7:BC7,Maximos!BH7:BJ7) -> 24764 | L53: =MAX(Maximos!BD7:BG7) -> 21879 | M53: =MAX(Maximos!BK7:BO7,Maximos!BT7:BV7) -> 25813 | N53: =MAX(Maximos!BP7:BS7) -> 23334 | O53: =MAX(Maximos!BW7:CA7,Maximos!CF7:CH7) -> 25357 | P53: =MAX(Maximos!CB7:CE7) -> 23025 | Q53: =MAX(Maximos!CI7:CM7,Maximos!CR7:CT7) -> 27369 | R53: =MAX(Maximos!CN7:CQ7) -> 23788 | S53: =MAX(Maximos!CU7:CY7,Maximos!DD7:DF7) -> 29796 | T53: =MAX(Maximos!CZ7:DC7) -> 25710 | U53: =MAX(Maximos!DG7:DK7,Maximos!DP7:DR7) -> 31318 | V53: =MAX(Maximos!DL7:DO7) -> 27792 | W53: =MAX(Maximos!DS7:DW7,Maximos!EB7:ED7) -> 33236 | X53: =MAX(Maximos!DX7:EA7) -> 29388 | Y53: =MAX(Maximos!EE7:EI7,Maximos!EN7:EP7) -> 35186 | Z53: =MAX(Maximos!EJ7:EM7) -> 31238 | AA53: =MAX(Maximos!EQ7:EU7,Maximos!EZ7:FB7) -> 34336 | AB53: =MAX(Maximos!EV7:EY7) -> 32304 | AC53: =MAX(Maximos!FC7:FG7,Maximos!FL7:FN7) -> 37459 | AD53: =MAX(Maximos!FH7:FK7) -> 34661 | AE53: =MAX(Maximos!FO7:FS7,Maximos!FX7:FZ7) -> 37724 | AF53: =MAX(Maximos!FT7:FW7) -> 36619 | AG53: =MAX(Maximos!GA7:GE7,Maximos!GJ7:GL7) -> 43377.6 | AH53: =MAX(Maximos!GF7:GI7) -> 38542.1 | AI53: =MAX(Maximos!GM7:GQ7,Maximos!GV7:GX7) -> 42152.9 | AJ53: =MAX(Maximos!GR7:GU7) -> 40524.3 | AK53: =MAX(Maximos!GY7:HC7,Maximos!HH7:HJ7) -> 44876.1 | AL53: =MAX(Maximos!HD7:HG7) -> 39038 | AM53: =MAX(Maximos!HK7:HO7,Maximos!HT7:HV7) -> 42961.1 | AN53: =MAX(Maximos!HP7:HS7) -> 40156 | AO53: =MAX(Maximos!HW7:IA7,Maximos!IF7:IH7) -> 44440.3 | AP53: =MAX(Maximos!IB7:IE7) -> 40225.7 | AQ53: =MAX(Maximos!II7:IM7,Maximos!IR7:IT7) -> 44122.4 | AR53: =MAX(Maximos!IN7:IQ7) -> 40934.3 | AS53: =MAX(Maximos!IU7:IY7,Maximos!JD7:JF7) -> 44106.7 | AT53: =MAX(Maximos!IZ7:JC7) -> 39537.1 | AU53: =MAX(Maximos!JG7:JK7,Maximos!JP7:JR7) -> 43010.2 | AV53: =MAX(Maximos!JL7:JO7) -> 39273.4 | AW53: =MAX(Maximos!JS7:JW7,Maximos!KB7:KD7) -> 39963.3 | AX53: =MAX(Maximos!JX7:KA7) -> 37399.4 | AY53: =MAX(Maximos!KE7:KI7,Maximos!KN7:KP7) -> 38666.29 | AZ53: =MAX(Maximos!KJ7:KM7) -> 37019.73 | BA53: =MAX(Maximos!KQ7:KU7,Maximos!KZ7:LB7) -> 40323.77 | BB53: =MAX(Maximos!KV7:KY7) -> 39927.6 | BC53: =MAX(Maximos!LC7:LG7,Maximos!LL7:LN7) -> 38239 | BD53: =MAX(Maximos!LH7:LK7) -> 40144 | BE53: =MAX(Maximos!LO7:LS7,Maximos!LX7:LZ7) -> 41015 | BF53: - | BG53: - | BH53: - | BI53: - | BJ53: -
B54: Día | C54: =HLOOKUP($C$53,Maximos!$C$7:$N$13,2,0)&" de "&HLOOKUP($C$53,Maximos!$C$7:$N$13,7,0) -> 10 de diciembre | D54: =HLOOKUP($D$53,Maximos!$C$7:$N$13,2,0)&" de "&HLOOKUP($D$53,Maximos!$C$7:$N$13,7,0) -> 19 de julio | E54: =HLOOKUP($E$53,Maximos!$O$7:$Z$13,2,0)&" de "&HLOOKUP($E$53,Maximos!$O$7:$Z$13,7,0) -> 16 de enero | F54: =HLOOKUP($F$53,Maximos!$O$7:$Z$13,2,0)&" de "&HLOOKUP($F$53,Maximos!$O$7:$Z$13,7,0) -> 18 de julio | G54: =HLOOKUP($G$53,Maximos!$AA$7:$AL$13,2,0)&" de "&HLOOKUP($G$53,Maximos!$AA$7:$AL$13,7,0) -> 23 de enero | H54: =HLOOKUP($H$53,Maximos!$AA$7:$AL$13,2,0)&" de "&HLOOKUP($H$53,Maximos!$AA$7:$AL$13,7,0) -> 28 de julio | I54: =HLOOKUP($I$53,Maximos!$AM$7:$AX$13,2,0)&" de "&HLOOKUP($I$53,Maximos!$AM$7:$AX$13,7,0) -> 2 de marzo | J54: =HLOOKUP($J$53,Maximos!$AM$7:$AX$13,2,0)&" de "&HLOOKUP($J$53,Maximos!$AM$7:$AX$13,7,0) -> 29 de julio | K54: =HLOOKUP($K$53,Maximos!$AY$7:$BJ$13,2,0)&" de "&HLOOKUP($K$53,Maximos!$AY$7:$BJ$13,7,0) -> 19 de enero | L54: =HLOOKUP($L$53,Maximos!$AY$7:$BJ$13,2,0)&" de "&HLOOKUP($L$53,Maximos!$AY$7:$BJ$13,7,0) -> 15 de julio | M54: =HLOOKUP($M$53,Maximos!$BK$7:$BV$13,2,0)&" de "&HLOOKUP($M$53,Maximos!$BK$7:$BV$13,7,0) -> 14 de diciembre | N54: =HLOOKUP($N$53,Maximos!$BK$7:$BV$13,2,0)&" de "&HLOOKUP($N$53,Maximos!$BK$7:$BV$13,7,0) -> 21 de julio | O54: =HLOOKUP($O$53,Maximos!$BW$7:$CH$13,2,0)&" de "&HLOOKUP($O$53,Maximos!$BW$7:$CH$13,7,0) -> 11 de diciembre | P54: =HLOOKUP($P$53,Maximos!$BW$7:$CH$13,2,0)&" de "&HLOOKUP($P$53,Maximos!$BW$7:$CH$13,7,0) -> 24 de julio | Q54: =HLOOKUP($Q$53,Maximos!$CI$7:$CT$13,2,0)&" de "&HLOOKUP($Q$53,Maximos!$CI$7:$CT$13,7,0) -> 16 de diciembre | R54: =HLOOKUP($R$53,Maximos!$CI$7:$CT$13,2,0)&" de "&HLOOKUP($R$53,Maximos!$CI$7:$CT$13,7,0) -> 10 de septiembre | S54: =HLOOKUP($S$53,Maximos!$CU$7:$DF$13,2,0)&" de "&HLOOKUP($S$53,Maximos!$CU$7:$DF$13,7,0) -> 2 de diciembre | T54: =HLOOKUP($T$53,Maximos!$CU$7:$DF$13,2,0)&" de "&HLOOKUP($T$53,Maximos!$CU$7:$DF$13,7,0) -> 23 de julio | U54: =HLOOKUP($U$53,Maximos!$DG$7:$DR$13,2,0)&" de "&HLOOKUP($U$53,Maximos!$DG$7:$DR$13,7,0) -> 21 de diciembre | V54: =HLOOKUP($V$53,Maximos!$DG$7:$DR$13,2,0)&" de "&HLOOKUP($V$53,Maximos!$DG$7:$DR$13,7,0) -> 2 de julio | W54: =HLOOKUP($W$53,Maximos!$DS$7:$ED$13,2,0)&" de "&HLOOKUP($W$53,Maximos!$DS$7:$ED$13,7,0) -> 25 de enero | X54: =HLOOKUP($X$53,Maximos!$DS$7:$ED$13,2,0)&" de "&HLOOKUP($X$53,Maximos!$DS$7:$ED$13,7,0) -> 30 de junio | Y54: =HLOOKUP($Y$53,Maximos!$EE$7:$EP$13,2,0)&" de "&HLOOKUP($Y$53,Maximos!$EE$7:$EP$13,7,0) -> 19 de diciembre | Z54: =HLOOKUP($Z$53,Maximos!$EE$7:$EP$13,2,0)&" de "&HLOOKUP($Z$53,Maximos!$EE$7:$EP$13,7,0) -> 25 de junio | AA54: =HLOOKUP($AA$53,Maximos!$EQ$7:$FB$13,2,0)&" de "&HLOOKUP($AA$53,Maximos!$EQ$7:$FB$13,7,0) -> 9 de enero | AB54: =HLOOKUP($AB$53,Maximos!$EQ$7:$FB$13,2,0)&" de "&HLOOKUP($AB$53,Maximos!$EQ$7:$FB$13,7,0) -> 18 de junio | AC54: =HLOOKUP($AC$53,Maximos!$FC$7:$FN$13,2,0)&" de "&HLOOKUP($AC$53,Maximos!$FC$7:$FN$13,7,0) -> 4 de diciembre | AD54: =HLOOKUP($AD$53,Maximos!$FC$7:$FN$13,2,0)&" de "&HLOOKUP($AD$53,Maximos!$FC$7:$FN$13,7,0) -> 27 de junio | AE54: =HLOOKUP($AE$53,Maximos!$FO$7:$FZ$13,2,0)&" de "&HLOOKUP($AE$53,Maximos!$FO$7:$FZ$13,7,0) -> 2 de marzo | AF54: =HLOOKUP($AF$53,Maximos!$FO$7:$FZ$13,2,0)&" de "&HLOOKUP($AF$53,Maximos!$FO$7:$FZ$13,7,0) -> 30 de junio | AG54: =HLOOKUP($AG$53,Maximos!$GA$7:$GL$13,2,0)&" de "&HLOOKUP($AG$53,Maximos!$GA$7:$GL$13,7,0) -> 27 de enero | AH54: =HLOOKUP($AH$53,Maximos!$GA$7:$GL$13,2,0)&" de "&HLOOKUP($AH$53,Maximos!$GA$7:$GL$13,7,0) -> 21 de julio | AI54: =HLOOKUP($AI$53,Maximos!$GM$7:$GX$13,2,0)&" de "&HLOOKUP($AI$53,Maximos!$GM$7:$GX$13,7,0) -> 30 de enero | AJ54: =HLOOKUP($AJ$53,Maximos!$GM$7:$GX$13,2,0)&" de "&HLOOKUP($AJ$53,Maximos!$GM$7:$GX$13,7,0) -> 13 de julio | AK54: =HLOOKUP($AK$53,Maximos!$GY$7:$HJ$13,2,0)&" de "&HLOOKUP($AK$53,Maximos!$GY$7:$HJ$13,7,0) -> 17 de diciembre | AL54: =HLOOKUP($AL$53,Maximos!$GY$7:$HJ$13,2,0)&" de "&HLOOKUP($AL$53,Maximos!$GY$7:$HJ$13,7,0) -> 31 de julio | AM54: =HLOOKUP($AM$53,Maximos!$HK$7:$HV$13,2,0)&" de "&HLOOKUP($AM$53,Maximos!$HK$7:$HV$13,7,0) -> 15 de diciembre | AN54: =HLOOKUP($AN$53,Maximos!$HK$7:$HV$13,2,0)&" de "&HLOOKUP($AN$53,Maximos!$HK$7:$HV$13,7,0) -> 1 de julio | AO54: =HLOOKUP($AO$53,Maximos!$HW$7:$IH$13,2,0)&" de "&HLOOKUP($AO$53,Maximos!$HW$7:$IH$13,7,0) -> 13 de enero | AP54: =HLOOKUP($AP$53,Maximos!$HW$7:$IH$13,2,0)&" de "&HLOOKUP($AP$53,Maximos!$HW$7:$IH$13,7,0) -> 1 de septiembre | AQ54: =HLOOKUP($AQ$53,Maximos!$II$7:$IT$13,2,0)&" de "&HLOOKUP($AQ$53,Maximos!$II$7:$IT$13,7,0) -> 11 de enero | AR54: =HLOOKUP($AR$53,Maximos!$II$7:$IT$13,2,0)&" de "&HLOOKUP($AR$53,Maximos!$II$7:$IT$13,7,0) -> 19 de julio | AS54: =HLOOKUP($AS$53,Maximos!$IU$7:$JF$13,2,0)&" de "&HLOOKUP($AS$53,Maximos!$IU$7:$JF$13,7,0) -> 24 de enero | AT54: =HLOOKUP($AT$53,Maximos!$IU$7:$JF$13,2,0)&" de "&HLOOKUP($AT$53,Maximos!$IU$7:$JF$13,7,0) -> 27 de junio | AU54: =HLOOKUP($AU$53,Maximos!$JG$7:$JR$13,2,0)&" de "&HLOOKUP($AU$53,Maximos!$JG$7:$JR$13,7,0) -> 13 de febrero | AV54: =HLOOKUP($AV$53,Maximos!$JG$7:$JR$13,2,0)&" de "&HLOOKUP($AV$53,Maximos!$JG$7:$JR$13,7,0) -> 27 de junio | AW54: =HLOOKUP($AW$53,Maximos!$JS$7:$KD$13,2,0)&" de "&HLOOKUP($AW$53,Maximos!$JS$7:$KD$13,7,0) -> 27 de febrero | AX54: =HLOOKUP($AX$53,Maximos!$JS$7:$KD$13,2,0)&" de "&HLOOKUP($AX$53,Maximos!$JS$7:$KD$13,7,0) -> 10 de julio | AY54: =HLOOKUP(AY53,Maximos!KE7:KP13,2,0)&" de "&HLOOKUP(AY53,Maximos!KE7:KP13,7,0) -> 4 de febrero | AZ54: =HLOOKUP(AZ53,Maximos!KJ7:KM13,2,0)&" de "&HLOOKUP(AZ53,Maximos!KJ7:KM13,7,0) -> 17 de julio | BA54: =HLOOKUP(BA53,Maximos!KQ7:LB13,2,0)&" de "&HLOOKUP(BA53,Maximos!KQ7:LB13,7,0) -> 4 de febrero | BB54: =HLOOKUP(BB53,Maximos!KV7:KY13,2,0)&" de "&HLOOKUP(BB53,Maximos!KV7:KY13,7,0) -> 21 de julio | BC54: =HLOOKUP(BC53,Maximos!LC7:LN13,2,0)&" de "&HLOOKUP(BC53,Maximos!LC7:LN13,7,0) -> 17 de febrero | BD54: =HLOOKUP(BD53,Maximos!LH7:LK13,2,0)&" de "&HLOOKUP(BD53,Maximos!LH7:LK13,7,0) -> 6 de septiembre | BE54: =HLOOKUP(BE53,Maximos!LO7:LZ13,2,0)&" de "&HLOOKUP(BE53,Maximos!LO7:LZ13,7,0) -> 18 de enero | BF54: - | BG54: - | BH54: - | BI54: - | BJ54: -
B55: Hora | C55: =HLOOKUP($C$53,Maximos!$C$7:$N$13,3,0) -> 19 | D55: =HLOOKUP($D$53,Maximos!$C$7:$N$13,3,0) -> 13 | E55: =HLOOKUP($E$53,Maximos!$O$7:$Z$13,3,0) -> 20 | F55: =HLOOKUP($F$53,Maximos!$O$7:$Z$13,3,0) -> 13 | G55: =HLOOKUP($G$53,Maximos!$AA$7:$AL$13,3,0) -> 20 | H55: =HLOOKUP($H$53,Maximos!$AA$7:$AL$13,3,0) -> 13 | I55: =HLOOKUP($I$53,Maximos!$AM$7:$AX$13,3,0) -> 21 | J55: =HLOOKUP($J$53,Maximos!$AM$7:$AX$13,3,0) -> 13 | K55: =HLOOKUP($K$53,Maximos!$AY$7:$BJ$13,3,0) -> 20 | L55: =HLOOKUP($L$53,Maximos!$AY$7:$BJ$13,3,0) -> 13 | M55: =HLOOKUP($M$53,Maximos!$BK$7:$BV$13,3,0) -> 20 | N55: =HLOOKUP($N$53,Maximos!$BK$7:$BV$13,3,0) -> 13 | O55: =HLOOKUP($O$53,Maximos!$BW$7:$CH$13,3,0) -> 19 | P55: =HLOOKUP($P$53,Maximos!$BW$7:$CH$13,3,0) -> 13 | Q55: =HLOOKUP($Q$53,Maximos!$CI$7:$CT$13,3,0) -> 19 | R55: =HLOOKUP($R$53,Maximos!$CI$7:$CT$13,3,0) -> 13 | S55: =HLOOKUP($S$53,Maximos!$CU$7:$DF$13,3,0) -> 19 | T55: =HLOOKUP($T$53,Maximos!$CU$7:$DF$13,3,0) -> 11 | U55: =HLOOKUP($U$53,Maximos!$DG$7:$DR$13,3,0) -> 20 | V55: =HLOOKUP($V$53,Maximos!$DG$7:$DR$13,3,0) -> 13 | W55: =HLOOKUP($W$53,Maximos!$DS$7:$ED$13,3,0) -> 20 | X55: =HLOOKUP($X$53,Maximos!$DS$7:$ED$13,3,0) -> 11 | Y55: =HLOOKUP($Y$53,Maximos!$EE$7:$EP$13,3,0) -> 19 | Z55: =HLOOKUP($Z$53,Maximos!$EE$7:$EP$13,3,0) -> 18 | AA55: =HLOOKUP($AA$53,Maximos!$EQ$7:$FB$13,3,0) -> 20 | AB55: =HLOOKUP($AB$53,Maximos!$EQ$7:$FB$13,3,0) -> 13 | AC55: =HLOOKUP($AC$53,Maximos!$FC$7:$FN$13,3,0) -> 19 | AD55: =HLOOKUP($AD$53,Maximos!$FC$7:$FN$13,3,0) -> 13 | AE55: =HLOOKUP($AE$53,Maximos!$FO$7:$FZ$13,3,0) -> 21 | AF55: =HLOOKUP($AF$53,Maximos!$FO$7:$FZ$13,3,0) -> 14 | AG55: =HLOOKUP($AG$53,Maximos!$GA$7:$GL$13,3,0) -> 20 | AH55: =HLOOKUP($AH$53,Maximos!$GA$7:$GL$13,3,0) -> 14 | AI55: =HLOOKUP($AI$53,Maximos!$GM$7:$GX$13,3,0) -> 20 | AJ55: =HLOOKUP($AJ$53,Maximos!$GM$7:$GX$13,3,0) -> 14 | AK55: =HLOOKUP($AK$53,Maximos!$GY$7:$HJ$13,3,0) -> 20 | AL55: =HLOOKUP($AL$53,Maximos!$GY$7:$HJ$13,3,0) -> 18 | AM55: =HLOOKUP($AM$53,Maximos!$HK$7:$HV$13,3,0) -> 20 | AN55: =HLOOKUP($AN$53,Maximos!$HK$7:$HV$13,3,0) -> 14 | AO55: =HLOOKUP($AO$53,Maximos!$HW$7:$IH$13,3,0) -> 20 | AP55: =HLOOKUP($AP$53,Maximos!$HW$7:$IH$13,3,0) -> 14 | AQ55: =HLOOKUP($AQ$53,Maximos!$II$7:$IT$13,3,0) -> 20 | AR55: =HLOOKUP($AR$53,Maximos!$II$7:$IT$13,3,0) -> 14 | AS55: =HLOOKUP($AS$53,Maximos!$IU$7:$JF$13,3,0) -> 20 | AT55: =HLOOKUP($AT$53,Maximos!$IU$7:$JF$13,3,0) -> 14 | AU55: =HLOOKUP($AU$53,Maximos!$JG$7:$JR$13,3,0) -> 21 | AV55: =HLOOKUP($AV$53,Maximos!$JG$7:$JR$13,3,0) -> 14 | AW55: =HLOOKUP($AW$53,Maximos!$JS$7:$KD$13,3,0) -> 21 | AX55: =HLOOKUP($AX$53,Maximos!$JS$7:$KD$13,3,0) -> 14 | AY55: =HLOOKUP(AY53,Maximos!KE7:KP13,3,0) -> 21 | AZ55: =HLOOKUP(AZ53,Maximos!KJ7:KM13,3,0) -> 14 | BA55: =HLOOKUP(BA53,Maximos!KQ7:LB13,3,0) -> 21 | BB55: =HLOOKUP(BB53,Maximos!KV7:KY13,3,0) -> 14 | BC55: =HLOOKUP(BC53,Maximos!LC7:LN13,3,0) -> 21 | BD55: =HLOOKUP(BD53,Maximos!LH7:LK13,3,0) -> 14 | BE55: =HLOOKUP(BE53,Maximos!LO7:LZ13,3,0) -> 21 | BF55: - | BG55: - | BH55: - | BI55: - | BJ55: -
B56: Demanda máxima diaria peninsular | C56: 1990 | D56: 1990 | E56: 1991 | F56: 1991 | G56: 1992 | H56: 1992 | I56: 1993 | J56: 1993 | K56: 1994 | L56: 1994 | M56: 1995 | N56: 1995 | O56: 1996 | P56: 1996 | Q56: 1997 | R56: 1997 | S56: 1998 | T56: 1998 | U56: 1999 | V56: 1999 | W56: 2000 | X56: 2000 | Y56: 2001 | Z56: 2001 | AA56: 2002 | AB56: 2002 | AC56: 2003 | AD56: 2003 | AE56: 2004 | AF56: 2004 | AG56: 2005 | AH56: 2005 | AI56: 2006 | AJ56: 2006 | AK56: 2007 | AL56: 2007 | AM56: 2008 | AN56: 2008 | AO56: 2009 | AP56: 2009 | AQ56: 2010 | AR56: 2010 | AS56: 2011 | AT56: 2011 | AU56: 2012 | AV56: 2012 | AW56: 2013 | AX56: 2013 | AY56: 2014 | AZ56: 2014 | BA56: 2015 | BB56: 2015 | BC56: 2016 | BD56: 2016 | BE56: 2017 | BF56: 2017 | BG56: 2018 | BH56: 2018 | BI56: 2019 | BJ56: 2019
C57: Invierno | D57: Verano | E57: Invierno | F57: Verano | G57: Invierno | H57: Verano | I57: Invierno | J57: Verano | K57: Invierno | L57: Verano | M57: Invierno | N57: Verano | O57: Invierno | P57: Verano | Q57: Invierno | R57: Verano | S57: Invierno | T57: Verano | U57: Invierno | V57: Verano | W57: Invierno | X57: Verano | Y57: Invierno | Z57: Verano | AA57: Invierno | AB57: Verano | AC57: Invierno | AD57: Verano | AE57: Invierno | AF57: Verano | AG57: Invierno | AH57: Verano | AI57: Invierno | AJ57: Verano | AK57: Invierno | AL57: Verano | AM57: Invierno | AN57: Verano | AO57: Invierno | AP57: Verano | AQ57: Invierno | AR57: Verano | AS57: Invierno | AT57: Verano | AU57: Invierno | AV57: Verano | AW57: Invierno | AX57: Verano | AY57: Invierno | AZ57: Verano | BA57: Invierno | BB57: Verano | BC57: Invierno | BD57: Verano | BE57: Invierno | BF57: Verano | BG57: Invierno | BH57: Verano | BI57: Invierno | BJ57: Verano
B58: Demanda diaria (GWh) | C58: =MAX(Maximos!C11:G11,Maximos!L11:N11) -> 748.033 | D58: =MAX(Maximos!H11:K11) -> 415.592 | E58: =MAX(Maximos!O11:S11,Maximos!X11:Z11) -> 487.525 | F58: =MAX(Maximos!T11:W11) -> 434.53 | G58: =MAX(Maximos!AA11:AE11,Maximos!AJ11:AL11) -> 505.553 | H58: =MAX(Maximos!AF11:AI11) -> 427.723 | I58: =MAX(Maximos!AM11:AQ11,Maximos!AV11:AX11) -> 489.562 | J58: =MAX(Maximos!AR11:AU11) -> 422.608 | K58: =MAX(Maximos!AY11:BC11,Maximos!BH11:BJ11) -> 499.651 | L58: =MAX(Maximos!BD11:BG11) -> 452.598 | M58: =MAX(Maximos!BK11:BO11,Maximos!BT11:BV11) -> 519.211 | N58: =MAX(Maximos!BP11:BS11) -> 483.253 | O58: =MAX(Maximos!BW11:CA11,Maximos!CF11:CH11) -> 515.561 | P58: =MAX(Maximos!CB11:CE11) -> 484.15 | Q58: =MAX(Maximos!CI11:CM11,Maximos!CR11:CT11) -> 561.453 | R58: =MAX(Maximos!CN11:CQ11) -> 501.386 | S58: =MAX(Maximos!CU11:CY11,Maximos!DD11:DF11) -> 593.594 | T58: =MAX(Maximos!CZ11:DC11) -> 538.245 | U58: =MAX(Maximos!DG11:DK11,Maximos!DP11:DR11) -> 626.848 | V58: =MAX(Maximos!DL11:DO11) -> 570.865 | W58: =MAX(Maximos!DS11:DW11,Maximos!EB11:ED11) -> 654.197 | X58: =MAX(Maximos!DX11:EA11) -> 610.563 | Y58: =MAX(Maximos!EE11:EI11,Maximos!EN11:EP11) -> 697.857 | Z58: =MAX(Maximos!EJ11:EM11) -> 671.532 | AA58: =MAX(Maximos!EQ11:EU11,Maximos!EZ11:FB11) -> 699.617 | AB58: =MAX(Maximos!EV11:EY11) -> 674.664 | AC58: =MAX(Maximos!FC11:FG11,Maximos!FL11:FN11) -> 763.93 | AD58: =MAX(Maximos!FH11:FK11) -> 731.425 | AE58: =MAX(Maximos!FO11:FS11,Maximos!FX11:FZ11) -> 773.234 | AF58: =MAX(Maximos!FT11:FW11) -> 757.322 | AG58: =MAX(Maximos!GA11:GE11,Maximos!GJ11:GL11) -> 839.923 | AH58: =MAX(Maximos!GF11:GI11) -> 776.941 | AI58: =MAX(Maximos!GM11:GQ11,Maximos!GV11:GX11) -> 894.76 | AJ58: =MAX(Maximos!GR11:GU11) -> 821.819 | AK58: =MAX(Maximos!GY11:HC11,Maximos!HH11:HJ11) -> 905.949 | AL58: =MAX(Maximos!HD11:HG11) -> 801.101 | AM58: =MAX(Maximos!HK11:HO11,Maximos!HT11:HV11) -> 859.496 | AN58: =MAX(Maximos!HP11:HS11) -> 821.637 | AO58: =MAX(Maximos!HW11:IA11,Maximos!IF11:IH11) -> 891.406 | AP58: =MAX(Maximos!IB11:IE11) -> 789.554 | AQ58: =MAX(Maximos!II11:IM11,Maximos!IR11:IT11) -> 898.364623 | AR58: =MAX(Maximos!IN11:IQ11) -> 812.494902 | AS58: =MAX(Maximos!IU11:IY11,Maximos!JD11:JF11) -> 884.980577 | AT58: =MAX(Maximos!IZ11:JC11) -> 790.991487 | AU58: =MAX(Maximos!JG11:JK11,Maximos!JP11:JR11) -> 870.555586 | AV58: =MAX(Maximos!JL11:JO11) -> 792.68336 | AW58: =MAX(Maximos!JS11:JW11,Maximos!KB11:KD11) -> 809.868437 | AX58: =MAX(Maximos!JX11:KA11) -> 760.675465 | AY58: =MAX(Maximos!KE11:KI11,Maximos!KN11:KP11) -> 797.358623 | AZ58: =MAX(Maximos!KJ11:KM11) -> 755.255479 | BA58: =MAX(Maximos!KQ11:KU11,Maximos!KZ11:LB11) -> 824.018176 | BB58: =MAX(Maximos!KV11:KY11) -> 813.987791 | BC58: =MAX(Maximos!LC11:LG11,Maximos!LL11:LN11) -> 782.06323 | BD58: =MAX(Maximos!LH11:LK11) -> 816.260515 | BE58: =MAX(Maximos!LO11:LS11,Maximos!LX11:LZ11) -> 834.729633 | BF58: - | BG58: - | BH58: - | BI58: - | BJ58: -
B59: Día | C59: =HLOOKUP($C$58,Maximos!$C$11:$N$13,2,0)&" de "&HLOOKUP($C$58,Maximos!$C$11:$N$13,3,0) -> 31 de mayo | D59: =HLOOKUP($D$58,Maximos!$C$11:$N$13,2,0)&" de "&HLOOKUP($D$58,Maximos!$C$11:$N$13,3,0) -> 19 de julio | E59: =HLOOKUP($E$58,Maximos!$O$11:$Z$13,2,0)&" de "&HLOOKUP($E$58,Maximos!$O$11:$Z$13,3,0) -> 16 de enero | F59: =HLOOKUP($F$58,Maximos!$O$11:$Z$13,2,0)&" de "&HLOOKUP($F$58,Maximos!$O$11:$Z$13,3,0) -> 18 de julio | G59: =HLOOKUP($G$58,Maximos!$AA$11:$AL$13,2,0)&" de "&HLOOKUP($G$58,Maximos!$AA$11:$AL$13,3,0) -> 23 de enero | H59: =HLOOKUP($H$58,Maximos!$AA$11:$AL$13,2,0)&" de "&HLOOKUP($H$58,Maximos!$AA$11:$AL$13,3,0) -> 23 de julio | I59: =HLOOKUP($I$58,Maximos!$AM$11:$AX$13,2,0)&" de "&HLOOKUP($I$58,Maximos!$AM$11:$AX$13,3,0) -> 2 de marzo | J59: =HLOOKUP($J$58,Maximos!$AM$11:$AX$13,2,0)&" de "&HLOOKUP($J$58,Maximos!$AM$11:$AX$13,3,0) -> 29 de julio | K59: =HLOOKUP($K$58,Maximos!$AY$11:$BJ$13,2,0)&" de "&HLOOKUP($K$58,Maximos!$AY$11:$BJ$13,3,0) -> 19 de enero | L59: =HLOOKUP($L$58,Maximos!$AY$11:$BJ$13,2,0)&" de "&HLOOKUP($L$58,Maximos!$AY$11:$BJ$13,3,0) -> 5 de julio | M59: =HLOOKUP($M$58,Maximos!$BK$11:$BV$13,2,0)&" de "&HLOOKUP($M$58,Maximos!$BK$11:$BV$13,3,0) -> 15 de diciembre | N59: =HLOOKUP($N$58,Maximos!$BK$11:$BV$13,2,0)&" de "&HLOOKUP($N$58,Maximos!$BK$11:$BV$13,3,0) -> 20 de julio | O59: =HLOOKUP($O$58,Maximos!$BW$11:$CH$13,2,0)&" de "&HLOOKUP($O$58,Maximos!$BW$11:$CH$13,3,0) -> 11 de diciembre | P59: =HLOOKUP($P$58,Maximos!$BW$11:$CH$13,2,0)&" de "&HLOOKUP($P$58,Maximos!$BW$11:$CH$13,3,0) -> 24 de julio | Q59: =HLOOKUP($Q$58,Maximos!$CI$11:$CT$13,2,0)&" de "&HLOOKUP($Q$58,Maximos!$CI$11:$CT$13,3,0) -> 16 de diciembre | R59: =HLOOKUP($R$58,Maximos!$CI$11:$CT$13,2,0)&" de "&HLOOKUP($R$58,Maximos!$CI$11:$CT$13,3,0) -> 10 de septiembre | S59: =HLOOKUP($S$58,Maximos!$CU$11:$DF$13,2,0)&" de "&HLOOKUP($S$58,Maximos!$CU$11:$DF$13,3,0) -> 2 de diciembre | T59: =HLOOKUP($T$58,Maximos!$CU$11:$DF$13,2,0)&" de "&HLOOKUP($T$58,Maximos!$CU$11:$DF$13,3,0) -> 17 de julio | U59: =HLOOKUP($U$58,Maximos!$DG$11:$DR$13,2,0)&" de "&HLOOKUP($U$58,Maximos!$DG$11:$DR$13,3,0) -> 25 de noviembre | V59: =HLOOKUP($V$58,Maximos!$DG$11:$DR$13,2,0)&" de "&HLOOKUP($V$58,Maximos!$DG$11:$DR$13,3,0) -> 2 de julio | W59: =HLOOKUP($W$58,Maximos!$DS$11:$ED$13,2,0)&" de "&HLOOKUP($W$58,Maximos!$DS$11:$ED$13,3,0) -> 13 de enero | X59: =HLOOKUP($X$58,Maximos!$DS$11:$ED$13,2,0)&" de "&HLOOKUP($X$58,Maximos!$DS$11:$ED$13,3,0) -> 30 de junio | Y59: =HLOOKUP($Y$58,Maximos!$EE$11:$EP$13,2,0)&" de "&HLOOKUP($Y$58,Maximos!$EE$11:$EP$13,3,0) -> 19 de diciembre | Z59: =HLOOKUP($Z$58,Maximos!$EE$11:$EP$13,2,0)&" de "&HLOOKUP($Z$58,Maximos!$EE$11:$EP$13,3,0) -> 25 de junio | AA59: =HLOOKUP($AA$58,Maximos!$EQ$11:$FB$13,2,0)&" de "&HLOOKUP($AA$58,Maximos!$EQ$11:$FB$13,3,0) -> 10 de diciembre | AB59: =HLOOKUP($AB$58,Maximos!$EQ$11:$FB$13,2,0)&" de "&HLOOKUP($AB$58,Maximos!$EQ$11:$FB$13,3,0) -> 18 de junio | AC59: =HLOOKUP($AC$58,Maximos!$FC$11:$FN$13,2,0)&" de "&HLOOKUP($AC$58,Maximos!$FC$11:$FN$13,3,0) -> 15 de enero | AD59: =HLOOKUP($AD$58,Maximos!$FC$11:$FN$13,2,0)&" de "&HLOOKUP($AD$58,Maximos!$FC$11:$FN$13,3,0) -> 26 de junio | AE59: =HLOOKUP($AE$58,Maximos!$FO$11:$FZ$13,2,0)&" de "&HLOOKUP($AE$58,Maximos!$FO$11:$FZ$13,3,0) -> 15 de diciembre | AF59: =HLOOKUP($AF$58,Maximos!$FO$11:$FZ$13,2,0)&" de "&HLOOKUP($AF$58,Maximos!$FO$11:$FZ$13,3,0) -> 30 de junio | AG59: =HLOOKUP($AG$58,Maximos!$GA$11:$GL$13,2,0)&" de "&HLOOKUP($AG$58,Maximos!$GA$11:$GL$13,3,0) -> 14 de diciembre | AH59: =HLOOKUP($AH$58,Maximos!$GA$11:$GL$13,2,0)&" de "&HLOOKUP($AH$58,Maximos!$GA$11:$GL$13,3,0) -> 21 de julio | AI59: =HLOOKUP($AI$58,Maximos!$GM$11:$GX$13,2,0)&" de "&HLOOKUP($AI$58,Maximos!$GM$11:$GX$13,3,0) -> 1 de marzo | AJ59: =HLOOKUP($AJ$58,Maximos!$GM$11:$GX$13,2,0)&" de "&HLOOKUP($AJ$58,Maximos!$GM$11:$GX$13,3,0) -> 20 de julio | AK59: =HLOOKUP($AK$58,Maximos!$GY$11:$HJ$13,2,0)&" de "&HLOOKUP($AK$58,Maximos!$GY$11:$HJ$13,3,0) -> 18 de diciembre | AL59: =HLOOKUP($AL$58,Maximos!$GY$11:$HJ$13,2,0)&" de "&HLOOKUP($AL$58,Maximos!$GY$11:$HJ$13,3,0) -> 31 de julio | AM59: =HLOOKUP($AM$58,Maximos!$HK$11:$HV$13,2,0)&" de "&HLOOKUP($AM$58,Maximos!$HK$11:$HV$13,3,0) -> 15 de enero | AN59: =HLOOKUP($AN$58,Maximos!$HK$11:$HV$13,2,0)&" de "&HLOOKUP($AN$58,Maximos!$HK$11:$HV$13,3,0) -> 1 de julio | AO59: =HLOOKUP($AO$58,Maximos!$HW$11:$IH$13,2,0)&" de "&HLOOKUP($AO$58,Maximos!$HW$11:$IH$13,3,0) -> 13 de enero | AP59: =HLOOKUP($AP$58,Maximos!$HW$11:$IH$13,2,0)&" de "&HLOOKUP($AP$58,Maximos!$HW$11:$IH$13,3,0) -> 1 de septiembre | AQ59: =HLOOKUP($AQ$58,Maximos!$II$11:$IT$13,2,0)&" de "&HLOOKUP($AQ$58,Maximos!$II$11:$IT$13,3,0) -> 12 de enero | AR59: =HLOOKUP($AR$58,Maximos!$II$11:$IT$13,2,0)&" de "&HLOOKUP($AR$58,Maximos!$II$11:$IT$13,3,0) -> 7 de julio | AS59: =HLOOKUP($AS$58,Maximos!$IU$11:$JF$13,2,0)&" de "&HLOOKUP($AS$58,Maximos!$IU$11:$JF$13,3,0) -> 25 de enero | AT59: =HLOOKUP($AT$58,Maximos!$IU$11:$JF$13,2,0)&" de "&HLOOKUP($AT$58,Maximos!$IU$11:$JF$13,3,0) -> 28 de junio | AU59: =HLOOKUP($AU$58,Maximos!$JG$11:$JR$13,2,0)&" de "&HLOOKUP($AU$58,Maximos!$JG$11:$JR$13,3,0) -> 8 de febrero | AV59: =HLOOKUP($AV$58,Maximos!$JG$11:$JR$13,2,0)&" de "&HLOOKUP($AV$58,Maximos!$JG$11:$JR$13,3,0) -> 28 de junio | AW59: =HLOOKUP($AW$58,Maximos!$JS$11:$KD$13,2,0)&" de "&HLOOKUP($AW$58,Maximos!$JS$11:$KD$13,3,0) -> 23 de enero | AX59: =HLOOKUP($AX$58,Maximos!$JS$11:$KD$13,2,0)&" de "&HLOOKUP($AX$58,Maximos!$JS$11:$KD$13,3,0) -> 10 de julio | AY59: =HLOOKUP(AY58,Maximos!KE11:KP13,2,0)&" de "&HLOOKUP(AY58,Maximos!KE11:KP13,3,0) -> 11 de febrero | AZ59: =HLOOKUP(AZ58,Maximos!KJ11:KM13,2,0)&" de "&HLOOKUP(AZ58,Maximos!KJ11:KM13,3,0) -> 17 de julio | BA59: =HLOOKUP(BA58,Maximos!KQ11:LB13,2,0)&" de "&HLOOKUP(BA58,Maximos!KQ11:LB13,3,0) -> 4 de febrero | BB59: =HLOOKUP(BB58,Maximos!KV11:KY13,2,0)&" de "&HLOOKUP(BB58,Maximos!KV11:KY13,3,0) -> 21 de julio | BC59: =HLOOKUP(BC58,Maximos!LC11:LN13,2,0)&" de "&HLOOKUP(BC58,Maximos!LC11:LN13,3,0) -> 18 de febrero | BD59: =HLOOKUP(BD58,Maximos!LH11:LK13,2,0)&" de "&HLOOKUP(BD58,Maximos!LH11:LK13,3,0) -> 6 de septiembre | BE59: =HLOOKUP(BE58,Maximos!LO11:LZ13,2,0)&" de "&HLOOKUP(BE58,Maximos!LO11:LZ13,3,0) -> 18 de enero | BF59: - | BG59: - | BH59: - | BI59: - | BJ59: -
B61: Demanda máxima horaria Islas Baleares | C61: 2006 | D61: 2006 | E61: 2007 | F61: 2007 | G61: 2008 | H61: 2008 | I61: 2009 | J61: 2009 | K61: 2010 | L61: 2010 | M61: 2011 | N61: 2011 | O61: 2012 | P61: 2012 | Q61: 2013 | R61: 2013 | S61: 2014 | T61: 2014 | U61: 2015 | V61: 2015 | W61: 2016 | X61: 2016 | Y61: 2017 | Z61: 2017 | AA61: 2018 | AB61: 2018 | AC61: 2019 | AD61: 2019 | AE61: 2020 | AF61: 2020
C62: Invierno | D62: Verano | E62: Invierno | F62: Verano | G62: Invierno | H62: Verano | I62: Invierno | J62: Verano | K62: Invierno | L62: Verano | M62: Invierno | N62: Verano | O62: Invierno | P62: Verano | Q62: Invierno | R62: Verano | S62: Invierno | T62: Verano | U62: Invierno | V62: Verano | W62: Invierno | X62: Verano | Y62: Invierno | Z62: Verano | AA62: Invierno | AB62: Verano | AC62: Invierno | AD62: Verano | AE62: Invierno | AF62: Verano
B63: Demanda horaria (MWh) | C63: =MAX(Maximos!C15:G15,Maximos!L15:N15) -> 1046 | D63: =MAX(Maximos!H15:K15) -> 1202.3 | E63: =MAX(Maximos!O15:S15,Maximos!X15:Z15) -> 1046.6 | F63: =MAX(Maximos!T15:W15) -> 1145 | G63: =MAX(Maximos!AA15:AE15,Maximos!AJ15:AL15) -> 1060.2 | H63: =MAX(Maximos!AF15:AI15) -> 1225.7 | I63: =MAX(Maximos!AM15:AQ15,Maximos!AV15:AX15) -> 1110.8 | J63: =MAX(Maximos!AR15:AU15) -> 1207.4 | K63: =MAX(Maximos!AY15:BC15,Maximos!BH15:BJ15) -> 1104.4 | L63: =MAX(Maximos!BD15:BG15) -> 1157.3 | M63: =MAX(Maximos!BK15:BO15,Maximos!BT15:BV15) -> 1025.6 | N63: =MAX(Maximos!BP15:BS15) -> 1159.4 | O63: =MAX(Maximos!BW15:CA15,Maximos!CF15:CH15) -> 1100.1 | P63: =MAX(Maximos!CB15:CE15) -> 1205.8 | Q63: =MAX(Maximos!CI15:CM15,Maximos!CR15:CT15) -> 975.9 | R63: =MAX(Maximos!CN15:CQ15) -> 1187.4 | S63: =MAX(Maximos!CU15:CY15,Maximos!DD15:DF15) -> 906.1 | T63: =MAX(Maximos!CZ15:DC15) -> 1150.2 | U63: =MAX(Maximos!DG15:DK15,Maximos!DP15:DR15) -> 968.9 | V63: =MAX(Maximos!DL15:DO15) -> 1204.8 | W63: =MAX(Maximos!DS15:DW15,Maximos!EB15:ED15) -> 931 | X63: =MAX(Maximos!DX15:EA15) -> 1148 | Y63: =MAX(Maximos!EE15:EI15,Maximos!EN15:EP15) -> 973 | Z63: - | AA63: - | AB63: - | AC63: - | AD63: - | AE63: - | AF63: -
B64: Día | C64: =HLOOKUP($C$63,Maximos!$C$15:$N$21,2,0)&" de "&HLOOKUP($C$63,Maximos!$C$15:$N$21,7,0) -> 2 de febrero | D64: =HLOOKUP($D$63,Maximos!$C$15:$N$21,2,0)&" de "&HLOOKUP($D$63,Maximos!$C$15:$N$21,7,0) -> 28 de julio | E64: =HLOOKUP($E$63,Maximos!$O$15:$Z$21,2,0)&" de "&HLOOKUP($E$63,Maximos!$O$15:$Z$21,7,0) -> 17 de diciembre | F64: =HLOOKUP($F$63,Maximos!$O$15:$Z$21,2,0)&" de "&HLOOKUP($F$63,Maximos!$O$15:$Z$21,7,0) -> 2 de agosto | G64: =HLOOKUP($G$63,Maximos!$AA$15:$AL$21,2,0)&" de "&HLOOKUP($G$63,Maximos!$AA$15:$AL$21,7,0) -> 15 de diciembre | H64: =HLOOKUP($H$63,Maximos!$AA$15:$AL$21,2,0)&" de "&HLOOKUP($H$63,Maximos!$AA$15:$AL$21,7,0) -> 12 de agosto | I64: =HLOOKUP($I$63,Maximos!$AM$15:$AX$21,2,0)&" de "&HLOOKUP($I$63,Maximos!$AM$15:$AX$21,7,0) -> 8 de enero | J64: =HLOOKUP($J$63,Maximos!$AM$15:$AX$21,2,0)&" de "&HLOOKUP($J$63,Maximos!$AM$15:$AX$21,7,0) -> 24 de julio | K64: =HLOOKUP($K$63,Maximos!$AY$15:$BJ$21,2,0)&" de "&HLOOKUP($K$63,Maximos!$AY$15:$BJ$21,7,0) -> 10 de marzo | L64: =HLOOKUP($L$63,Maximos!$AY$15:$BJ$21,2,0)&" de "&HLOOKUP($L$63,Maximos!$AY$15:$BJ$21,7,0) -> 27 de agosto | M64: =HLOOKUP($M$63,Maximos!$BK$15:$BV$21,2,0)&" de "&HLOOKUP($M$63,Maximos!$BK$15:$BV$21,7,0) -> 25 de enero | N64: =HLOOKUP($N$63,Maximos!$BK$15:$BV$21,2,0)&" de "&HLOOKUP($N$63,Maximos!$BK$15:$BV$21,7,0) -> 22 de agosto | O64: =HLOOKUP($O$63,Maximos!$BW$15:$CH$21,2,0)&" de "&HLOOKUP($O$63,Maximos!$BW$15:$CH$21,7,0) -> 14 de febrero | P64: =HLOOKUP($P$63,Maximos!$BW$15:$CH$21,2,0)&" de "&HLOOKUP($P$63,Maximos!$BW$15:$CH$21,7,0) -> 23 de agosto | Q64: =HLOOKUP(Q63,Maximos!CI15:CT21,2,0)&" de "&HLOOKUP(Q63,Maximos!CI15:CT21,7,0) -> 26 de febrero | R64: =HLOOKUP(R63,Maximos!CI15:CT21,2,0)&" de "&HLOOKUP(R63,Maximos!CI15:CT21,7,0) -> 7 de agosto | S64: =HLOOKUP(S63,Maximos!CU15:DF21,2,0)&" de "&HLOOKUP(S63,Maximos!CU15:DF21,7,0) -> 31 de diciembre | T64: =HLOOKUP(T63,Maximos!CU15:DF21,2,0)&" de "&HLOOKUP(T63,Maximos!CU15:DF21,7,0) -> 11 de agosto | U64: =HLOOKUP(U63,Maximos!DG15:DR21,2,0)&" de "&HLOOKUP(U63,Maximos!DG15:DR21,7,0) -> 6 de febrero | V64: =HLOOKUP(V63,Maximos!DL15:DO21,2,0)&" de "&HLOOKUP(V63,Maximos!DL15:DO21,7,0) -> 29 de julio | W64: =HLOOKUP(W63,Maximos!DS15:ED21,2,0)&" de "&HLOOKUP(W63,Maximos!DS15:ED21,7,0) -> 4 de octubre | X64: =HLOOKUP(X63,Maximos!DX15:EA21,2,0)&" de "&HLOOKUP(X63,Maximos!DX15:EA21,7,0) -> 4 de agosto | Y64: =HLOOKUP(Y63,Maximos!EE15:EP21,2,0)&" de "&HLOOKUP(Y63,Maximos!EE15:EP21,7,0) -> 17 de enero | Z64: - | AA64: - | AB64: - | AC64: - | AD64: - | AE64: - | AF64: -
B65: Hora | C65: =HLOOKUP($C$63,Maximos!$C$15:$N$21,3,0) -> 20 | D65: =HLOOKUP($D$63,Maximos!$C$15:$N$21,3,0) -> 19 | E65: =HLOOKUP($E$63,Maximos!$O$15:$Z$21,3,0) -> 21 | F65: =HLOOKUP($F$63,Maximos!$O$15:$Z$21,3,0) -> 22 | G65: =HLOOKUP($G$63,Maximos!$AA$15:$AL$21,3,0) -> 20 | H65: =HLOOKUP($H$63,Maximos!$AA$15:$AL$21,3,0) -> 22 | I65: =HLOOKUP($I$63,Maximos!$AM$15:$AX$21,3,0) -> 20 | J65: =HLOOKUP($J$63,Maximos!$AM$15:$AX$21,3,0) -> 20 | K65: =HLOOKUP($K$63,Maximos!$AY$15:$BJ$21,3,0) -> 21 | L65: =HLOOKUP($L$63,Maximos!$AY$15:$BJ$21,3,0) -> 22 | M65: =HLOOKUP($M$63,Maximos!$BK$15:$BV$21,3,0) -> 21 | N65: =HLOOKUP($N$63,Maximos!$BK$15:$BV$21,3,0) -> 22 | O65: =HLOOKUP($O$63,Maximos!$BW$15:$CH$21,3,0) -> 21 | P65: =HLOOKUP($P$63,Maximos!$BW$15:$CH$21,3,0) -> 22 | Q65: =HLOOKUP(Q63,Maximos!CI15:CT21,3,0) -> 21 | R65: =HLOOKUP(R63,Maximos!CI15:CT21,3,0) -> 22 | S65: =HLOOKUP(S63,Maximos!CU15:DF21,3,0) -> 20 | T65: =HLOOKUP(T63,Maximos!CU15:DF21,3,0) -> 22 | U65: =HLOOKUP(U63,Maximos!DG15:DR21,3,0) -> 21 | V65: =HLOOKUP(V63,Maximos!DL15:DO21,3,0) -> 14 | W65: =HLOOKUP(W63,Maximos!DS15:ED21,3,0) -> 21 | X65: =HLOOKUP(X63,Maximos!DX15:EA21,3,0) -> 22 | Y65: =HLOOKUP(Y63,Maximos!EE15:EP21,3,0) -> 21 | Z65: - | AA65: - | AB65: - | AC65: - | AD65: - | AE65: - | AF65: -
B66: Demanda máxima diaria Islas Baleares | C66: 2006 | D66: 2006 | E66: 2007 | F66: 2007 | G66: 2008 | H66: 2008 | I66: 2009 | J66: 2009 | K66: 2010 | L66: 2010 | M66: 2011 | N66: 2011 | O66: 2012 | P66: 2012 | Q66: 2013 | R66: 2013 | S66: 2014 | T66: 2014 | U66: 2015 | V66: 2015 | W66: 2016 | X66: 2016 | Y66: 2017 | Z66: 2017 | AA66: 2018 | AB66: 2018 | AC66: 2019 | AD66: 2019 | AE66: 2020 | AF66: 2020
C67: Invierno | D67: Verano | E67: Invierno | F67: Verano | G67: Invierno | H67: Verano | I67: Invierno | J67: Verano | K67: Invierno | L67: Verano | M67: Invierno | N67: Verano | O67: Invierno | P67: Verano | Q67: Invierno | R67: Verano | S67: Invierno | T67: Verano | U67: Invierno | V67: Verano | W67: Invierno | X67: Verano | Y67: Invierno | Z67: Verano | AA67: Invierno | AB67: Verano | AC67: Invierno | AD67: Verano | AE67: Invierno | AF67: Verano
B68: Demanda diaria (MWh) | C68: =MAX(Maximos!C19:G19,Maximos!L19:N19) -> 18972 | D68: =MAX(Maximos!H19:K19) -> 23966 | E68: =MAX(Maximos!O19:S19,Maximos!X19:Z19) -> 18497 | F68: =MAX(Maximos!T19:W19) -> 22774 | G68: =MAX(Maximos!AA19:AE19,Maximos!AJ19:AL19) -> 18907 | H68: =MAX(Maximos!AF19:AI19) -> 24452 | I68: =MAX(Maximos!AM19:AQ19,Maximos!AV19:AX19) -> 20030 | J68: =MAX(Maximos!AR19:AU19) -> 24270 | K68: =MAX(Maximos!AY19:BC19,Maximos!BH19:BJ19) -> 19663.083 | L68: =MAX(Maximos!BD19:BG19) -> 22555.181 | M68: =MAX(Maximos!BK19:BO19,Maximos!BT19:BV19) -> 18574.423 | N68: =MAX(Maximos!BP19:BS19) -> 22781.76 | O68: =MAX(Maximos!BW19:CA19,Maximos!CF19:CH19) -> 20014.073 | P68: =MAX(Maximos!CB19:CE19) -> 23528.983 | Q68: =MAX(Maximos!CI19:CM19,Maximos!CR19:CT19) -> 18275.119 | R68: =MAX(Maximos!CN19:CQ19) -> 23304.775 | S68: =MAX(Maximos!CU19:CY19,Maximos!DD19:DF19) -> 16520.982 | T68: =MAX(Maximos!CZ19:DC19) -> 23152.337 | U68: =MAX(Maximos!DG19:DK19,Maximos!DP19:DR19) -> 18316.426 | V68: =MAX(Maximos!DL19:DO19) -> 24551.732 | W68: =MAX(Maximos!DS19:DW19,Maximos!EB19:ED19) -> 17452.96 | X68: =MAX(Maximos!DX19:EA19) -> 23168.428 | Y68: =MAX(Maximos!EE19:EI19,Maximos!EN19:EP19) -> 17758.978 | Z68: - | AA68: - | AB68: - | AC68: - | AD68: - | AE68: - | AF68: -
B69: Día | C69: =HLOOKUP($C$68,Maximos!$C$19:$N$21,2,0)&" de "&HLOOKUP($C$68,Maximos!$C$19:$N$21,3,0) -> 7 de marzo | D69: =HLOOKUP($D$68,Maximos!$C$19:$N$21,2,0)&" de "&HLOOKUP($D$68,Maximos!$C$19:$N$21,3,0) -> 28 de julio | E69: =HLOOKUP($E$68,Maximos!$O$19:$Z$21,2,0)&" de "&HLOOKUP($E$68,Maximos!$O$19:$Z$21,3,0) -> 18 de diciembre | F69: =HLOOKUP($F$68,Maximos!$O$19:$Z$21,2,0)&" de "&HLOOKUP($F$68,Maximos!$O$19:$Z$21,3,0) -> 2 de agosto | G69: =HLOOKUP($G$68,Maximos!$AA$19:$AL$21,2,0)&" de "&HLOOKUP($G$68,Maximos!$AA$19:$AL$21,3,0) -> 16 de diciembre | H69: =HLOOKUP($H$68,Maximos!$AA$19:$AL$21,2,0)&" de "&HLOOKUP($H$68,Maximos!$AA$19:$AL$21,3,0) -> 31 de julio | I69: =HLOOKUP($I$68,Maximos!$AM$19:$AX$21,2,0)&" de "&HLOOKUP($I$68,Maximos!$AM$19:$AX$21,3,0) -> 8 de enero | J69: =HLOOKUP($J$68,Maximos!$AM$19:$AX$21,2,0)&" de "&HLOOKUP($J$68,Maximos!$AM$19:$AX$21,3,0) -> 24 de julio | K69: =HLOOKUP($K$68,Maximos!$AY$19:$BJ$21,2,0)&" de "&HLOOKUP($K$68,Maximos!$AY$19:$BJ$21,3,0) -> 10 de marzo | L69: =HLOOKUP($L$68,Maximos!$AY$19:$BJ$21,2,0)&" de "&HLOOKUP($L$68,Maximos!$AY$19:$BJ$21,3,0) -> 22 de julio | M69: =HLOOKUP($M$68,Maximos!$BK$19:$BV$21,2,0)&" de "&HLOOKUP($M$68,Maximos!$BK$19:$BV$21,3,0) -> 27 de enero | N69: =HLOOKUP($N$68,Maximos!$BK$19:$BV$21,2,0)&" de "&HLOOKUP($N$68,Maximos!$BK$19:$BV$21,3,0) -> 23 de agosto | O69: =HLOOKUP($O$68,Maximos!$BW$19:$CH$21,2,0)&" de "&HLOOKUP($O$68,Maximos!$BW$19:$CH$21,3,0) -> 08 de febrero | P69: =HLOOKUP($P$68,Maximos!$BW$19:$CH$21,2,0)&" de "&HLOOKUP($P$68,Maximos!$BW$19:$CH$21,3,0) -> 24 de agosto | Q69: =HLOOKUP(Q68,Maximos!CI19:CT21,2,0)&" de "&HLOOKUP(Q68,Maximos!CI19:CT21,3,0) -> 04 de octubre | R69: =HLOOKUP(R68,Maximos!CN19:CQ21,2,0)&" de "&HLOOKUP(R68,Maximos!CN19:CQ21,3,0) -> 07 de agosto | S69: =HLOOKUP(S68,Maximos!CU19:DF21,2,0)&" de "&HLOOKUP(S68,Maximos!CU19:DF21,3,0) -> 01 de octubre | T69: =HLOOKUP(T68,Maximos!CZ19:DC21,2,0)&" de "&HLOOKUP(T68,Maximos!CZ19:DC21,3,0) -> 11 de agosto | U69: =HLOOKUP(U68,Maximos!DG19:DR21,2,0)&" de "&HLOOKUP(U68,Maximos!DG19:DR21,3,0) -> 6 de febrero | V69: =HLOOKUP(V68,Maximos!DL19:DO21,2,0)&" de "&HLOOKUP(V68,Maximos!DL19:DO21,3,0) -> 29 de julio | W69: =HLOOKUP(W68,Maximos!DS19:ED21,2,0)&" de "&HLOOKUP(W68,Maximos!DS19:ED21,3,0) -> 5 de octubre | X69: =HLOOKUP(X68,Maximos!DX19:EA21,2,0)&" de "&HLOOKUP(X68,Maximos!DX19:EA21,3,0) -> 4 de agosto | Y69: =HLOOKUP(Y68,Maximos!EE19:EP21,2,0)&" de "&HLOOKUP(Y68,Maximos!EE19:EP21,3,0) -> 18 de enero | Z69: - | AA69: - | AB69: - | AC69: - | AD69: - | AE69: - | AF69: -
B71: Demanda máxima horaria Islas Canarias | C71: 2006 | D71: 2006 | E71: 2007 | F71: 2007 | G71: 2008 | H71: 2008 | I71: 2009 | J71: 2009 | K71: 2010 | L71: 2010 | M71: 2011 | N71: 2011 | O71: 2012 | P71: 2012 | Q71: 2013 | R71: 2013 | S71: 2014 | T71: 2014 | U71: 2015 | V71: 2015 | W71: 2016 | X71: 2016 | Y71: 2017 | Z71: 2017 | AA71: 2018 | AB71: 2018 | AC71: 2019 | AD71: 2019 | AE71: 2020 | AF71: 2020
C72: Invierno | D72: Verano | E72: Invierno | F72: Verano | G72: Invierno | H72: Verano | I72: Invierno | J72: Verano | K72: Invierno | L72: Verano | M72: Invierno | N72: Verano | O72: Invierno | P72: Verano | Q72: Invierno | R72: Verano | S72: Invierno | T72: Verano | U72: Invierno | V72: Verano | W72: Invierno | X72: Verano | Y72: Invierno | Z72: Verano | AA72: Invierno | AB72: Verano | AC72: Invierno | AD72: Verano | AE72: Invierno | AF72: Verano
B73: Demanda horaria (MWh) | C73: =MAX(Maximos!C23:G23,Maximos!L23:N23) -> 1426.6 | D73: =MAX(Maximos!H23:K23) -> 1432.4 | E73: =MAX(Maximos!O23:S23,Maximos!X23:Z23) -> 1495.5 | F73: =MAX(Maximos!T23:W23) -> 1486 | G73: =MAX(Maximos!AA23:AE23,Maximos!AJ23:AL23) -> 1461.7 | H73: =MAX(Maximos!AF23:AI23) -> 1426.6 | I73: =MAX(Maximos!AM23:AQ23,Maximos!AV23:AX23) -> 1447.1 | J73: =MAX(Maximos!AR23:AU23) -> 1460.1 | K73: =MAX(Maximos!AY23:BC23,Maximos!BH23:BJ23) -> 1410.6 | L73: =MAX(Maximos!BD23:BG23) -> 1435.7 | M73: =MAX(Maximos!BK23:BO23,Maximos!BT23:BV23) -> 1450.4 | N73: =MAX(Maximos!BP23:BS23) -> 1430.2 | O73: =MAX(Maximos!BW23:CA23,Maximos!CF23:CH23) -> 1439.3 | P73: =MAX(Maximos!CB23:CE23) -> 1402.1 | Q73: =MAX(Maximos!CI23:CM23,Maximos!CR23:CT23) -> 1377.5 | R73: =MAX(Maximos!CN23:CQ23) -> 1336 | S73: =MAX(Maximos!CU23:CY23,Maximos!DD23:DF23) -> 1377.3 | T73: =MAX(Maximos!CZ23:DC23) -> 1322 | U73: =MAX(Maximos!DG23:DK23,Maximos!DP23:DR23) -> 1399.6 | V73: =MAX(Maximos!DL23:DO23) -> 1372.5 | W73: =MAX(Maximos!DS23:DW23,Maximos!EB23:ED23) -> 1389 | X73: =MAX(Maximos!DX23:EA23) -> 1384 | Y73: =MAX(Maximos!EE23:EI23,Maximos!EN23:EP23) -> 1341 | Z73: - | AA73: - | AB73: - | AC73: - | AD73: - | AE73: - | AF73: -
B74: Día | C74: =HLOOKUP($C$73,Maximos!$C$23:$N$29,2,0)&" de "&HLOOKUP($C$73,Maximos!$C$23:$N$29,7,0) -> 14 de noviembre | D74: =HLOOKUP($D$73,Maximos!$C$23:$N$29,2,0)&" de "&HLOOKUP($D$73,Maximos!$C$23:$N$29,7,0) -> 5 de septiembre | E74: =HLOOKUP($E$73,Maximos!$O$23:$Z$29,2,0)&" de "&HLOOKUP($E$73,Maximos!$O$23:$Z$29,7,0) -> 8 de noviembre | F74: =HLOOKUP($F$73,Maximos!$O$23:$Z$29,2,0)&" de "&HLOOKUP($F$73,Maximos!$O$23:$Z$29,7,0) -> 30 de julio | G74: =HLOOKUP($G$73,Maximos!$AA$23:$AL$29,2,0)&" de "&HLOOKUP($G$73,Maximos!$AA$23:$AL$29,7,0) -> 31 de diciembre | H74: =HLOOKUP($H$73,Maximos!$AA$23:$AL$29,2,0)&" de "&HLOOKUP($H$73,Maximos!$AA$23:$AL$29,7,0) -> 24 de septiembre | I74: =HLOOKUP($I$73,Maximos!$AM$23:$AX$29,2,0)&" de "&HLOOKUP($I$73,Maximos!$AM$23:$AX$29,7,0) -> 28 de octubre | J74: =HLOOKUP($J$73,Maximos!$AM$23:$AX$29,2,0)&" de "&HLOOKUP($J$73,Maximos!$AM$23:$AX$29,7,0) -> 31 de julio | K74: =HLOOKUP($K$73,Maximos!$AY$23:$BJ$29,2,0)&" de "&HLOOKUP($K$73,Maximos!$AY$23:$BJ$29,7,0) -> 31 de diciembre | L74: =HLOOKUP($L$73,Maximos!$AY$23:$BJ$29,2,0)&" de "&HLOOKUP($L$73,Maximos!$AY$23:$BJ$29,7,0) -> 12 de agosto | M74: =HLOOKUP($M$73,Maximos!$BK$23:$BV$29,2,0)&" de "&HLOOKUP($M$73,Maximos!$BK$23:$BV$29,7,0) -> 31 de diciembre | N74: =HLOOKUP($N$73,Maximos!$BK$23:$BV$29,2,0)&" de "&HLOOKUP($N$73,Maximos!$BK$23:$BV$29,7,0) -> 23 de junio | O74: =HLOOKUP($O$73,Maximos!$BW$23:$CH$29,2,0)&" de "&HLOOKUP($O$73,Maximos!$BW$23:$CH$29,7,0) -> 15 de febrero | P74: =HLOOKUP($P$73,Maximos!$BW$23:$CH$29,2,0)&" de "&HLOOKUP($P$73,Maximos!$BW$23:$CH$29,7,0) -> 25 de septiembre | Q74: =HLOOKUP(Q73,Maximos!CI23:CT29,2,0)&" de "&HLOOKUP(Q73,Maximos!CI23:CT29,7,0) -> 31 de diciembre | R74: =HLOOKUP(R73,Maximos!CI23:CT29,2,0)&" de "&HLOOKUP(R73,Maximos!CI23:CT29,7,0) -> 30 de septiembre | S74: =HLOOKUP(S73,Maximos!CU23:DF29,2,0)&" de "&HLOOKUP(S73,Maximos!CU23:DF29,7,0) -> 31 de diciembre | T74: =HLOOKUP(T73,Maximos!CU23:DF29,2,0)&" de "&HLOOKUP(T73,Maximos!CU23:DF29,7,0) -> 16 de septiembre | U74: =HLOOKUP(U73,Maximos!DG23:DR29,2,0)&" de "&HLOOKUP(U73,Maximos!DG23:DR29,7,0) -> 5 de octubre | V74: =HLOOKUP(V73,Maximos!DL23:DO29,2,0)&" de "&HLOOKUP(V73,Maximos!DL23:DO29,7,0) -> 12 de agosto | W74: =HLOOKUP(W73,Maximos!DS23:ED29,2,0)&" de "&HLOOKUP(W73,Maximos!DS23:ED29,7,0) -> 31 de diciembre | X74: =HLOOKUP(X73,Maximos!DX23:EA29,2,0)&" de "&HLOOKUP(X73,Maximos!DX23:EA29,7,0) -> 10 de agosto | Y74: =HLOOKUP(Y73,Maximos!EE23:EP29,2,0)&" de "&HLOOKUP(Y73,Maximos!EE23:EP29,7,0) -> 17 de enero | Z74: - | AA74: - | AB74: - | AC74: - | AD74: - | AE74: - | AF74: -
B75: Hora | C75: =HLOOKUP($C$73,Maximos!$C$23:$N$29,3,0) -> 20 | D75: =HLOOKUP($D$73,Maximos!$C$23:$N$29,3,0) -> 13 | E75: =HLOOKUP($E$73,Maximos!$O$23:$Z$29,3,0) -> 20 | F75: =HLOOKUP($F$73,Maximos!$O$23:$Z$29,3,0) -> 13 | G75: =HLOOKUP($G$73,Maximos!$AA$23:$AL$29,3,0) -> 20 | H75: =HLOOKUP($H$73,Maximos!$AA$23:$AL$29,3,0) -> 21 | I75: =HLOOKUP($I$73,Maximos!$AM$23:$AX$29,3,0) -> 20 | J75: =HLOOKUP($J$73,Maximos!$AM$23:$AX$29,3,0) -> 13 | K75: =HLOOKUP($K$73,Maximos!$AY$23:$BJ$29,3,0) -> 20 | L75: =HLOOKUP($L$73,Maximos!$AY$23:$BJ$29,3,0) -> 22 | M75: =HLOOKUP($M$73,Maximos!$BK$23:$BV$29,3,0) -> 20 | N75: =HLOOKUP($N$73,Maximos!$BK$23:$BV$29,3,0) -> 14 | O75: =HLOOKUP($O$73,Maximos!$BW$23:$CH$29,3,0) -> 21 | P75: =HLOOKUP($P$73,Maximos!$BW$23:$CH$29,3,0) -> 21 | Q75: =HLOOKUP(Q73,Maximos!CI23:CT29,3,0) -> 20 | R75: =HLOOKUP(R73,Maximos!CI23:CT29,3,0) -> 21 | S75: =HLOOKUP(S73,Maximos!CU23:DF29,3,0) -> 20 | T75: =HLOOKUP(T73,Maximos!CU23:DF29,3,0) -> 21 | U75: =HLOOKUP(U73,Maximos!DG23:DR29,3,0) -> 21 | V75: =HLOOKUP(V73,Maximos!DL23:DO29,3,0) -> 14 | W75: =HLOOKUP(W73,Maximos!DS23:ED29,3,0) -> 20 | X75: =HLOOKUP(X73,Maximos!DX23:EA29,3,0) -> 14 | Y75: =HLOOKUP(Y73,Maximos!EE23:EP29,3,0) -> 21 | Z75: - | AA75: - | AB75: - | AC75: - | AD75: - | AE75: - | AF75: -
B76: Demanda máxima diaria Islas Canarias | C76: 2006 | D76: 2006 | E76: 2007 | F76: 2007 | G76: 2008 | H76: 2008 | I76: 2009 | J76: 2009 | K76: 2010 | L76: 2010 | M76: 2011 | N76: 2011 | O76: 2012 | P76: 2012 | Q76: 2013 | R76: 2013 | S76: 2014 | T76: 2014 | U76: 2015 | V76: 2015 | W76: 2016 | X76: 2016 | Y76: 2017 | Z76: 2017 | AA76: 2018 | AB76: 2018 | AC76: 2019 | AD76: 2019 | AE76: 2020 | AF76: 2020
C77: Invierno | D77: Verano | E77: Invierno | F77: Verano | G77: Invierno | H77: Verano | I77: Invierno | J77: Verano | K77: Invierno | L77: Verano | M77: Invierno | N77: Verano | O77: Invierno | P77: Verano | Q77: Invierno | R77: Verano | S77: Invierno | T77: Verano | U77: Invierno | V77: Verano | W77: Invierno | X77: Verano | Y77: Invierno | Z77: Verano | AA77: Invierno | AB77: Verano | AC77: Invierno | AD77: Verano | AE77: Invierno | AF77: Verano
B78: Demanda diaria (MWh) | C78: =MAX(Maximos!C27:G27,Maximos!L27:N27) -> 26375 | D78: =MAX(Maximos!H27:K27) -> 33490 | E78: =MAX(Maximos!O27:S27,Maximos!X27:Z27) -> 27974 | F78: =MAX(Maximos!T27:W27) -> 31549 | G78: =MAX(Maximos!AA27:AE27,Maximos!AJ27:AL27) -> 27944 | H78: =MAX(Maximos!AF27:AI27) -> 28320 | I78: =MAX(Maximos!AM27:AQ27,Maximos!AV27:AX27) -> 27355 | J78: =MAX(Maximos!AR27:AU27) -> 30250 | K78: =MAX(Maximos!AY27:BC27,Maximos!BH27:BJ27) -> 26729.811 | L78: =MAX(Maximos!BD27:BG27) -> 28363.362 | M78: =MAX(Maximos!BK27:BO27,Maximos!BT27:BV27) -> 26758.317 | N78: =MAX(Maximos!BP27:BS27) -> 27628.317 | O78: =MAX(Maximos!BW27:CA27,Maximos!CF27:CH27) -> 26257.205 | P78: =MAX(Maximos!CB27:CE27) -> 27768.04 | Q78: =MAX(Maximos!CI27:CM27,Maximos!CR27:CT27) -> 25684.02 | R78: =MAX(Maximos!CN27:CQ27) -> 26810.411 | S78: =MAX(Maximos!CU27:CY27,Maximos!DD27:DF27) -> 26418.67 | T78: =MAX(Maximos!CZ27:DC27) -> 26091.274 | U78: =MAX(Maximos!DG27:DK27,Maximos!DP27:DR27) -> 26954.634 | V78: =MAX(Maximos!DL27:DO27) -> 27854.118 | W78: =MAX(Maximos!DS27:DW27,Maximos!EB27:ED27) -> 26243.809 | X78: =MAX(Maximos!DX27:EA27) -> 28015.146 | Y78: =MAX(Maximos!EE27:EI27,Maximos!EN27:EP27) -> 25273.014 | Z78: - | AA78: - | AB78: - | AC78: - | AD78: - | AE78: - | AF78: -
B79: Día | C79: =HLOOKUP($C$78,Maximos!$C$27:$N$29,2,0)&" de "&HLOOKUP($C$78,Maximos!$C$27:$N$29,3,0) -> 3 de enero | D79: =HLOOKUP($D$78,Maximos!$C$27:$N$29,2,0)&" de "&HLOOKUP($D$78,Maximos!$C$27:$N$29,3,0) -> 10 de junio | E79: =HLOOKUP($E$78,Maximos!$O$27:$Z$29,2,0)&" de "&HLOOKUP($E$78,Maximos!$O$27:$Z$29,3,0) -> 24 de octubre | F79: =HLOOKUP($F$78,Maximos!$O$27:$Z$29,2,0)&" de "&HLOOKUP($F$78,Maximos!$O$27:$Z$29,3,0) -> 1 de agosto | G79: =HLOOKUP($G$78,Maximos!$AA$27:$AL$29,2,0)&" de "&HLOOKUP($G$78,Maximos!$AA$27:$AL$29,3,0) -> 4 de abril | H79: =HLOOKUP($H$78,Maximos!$AA$27:$AL$29,2,0)&" de "&HLOOKUP($H$78,Maximos!$AA$27:$AL$29,3,0) -> 9 de septiembre | I79: =HLOOKUP($I$78,Maximos!$AM$27:$AX$29,2,0)&" de "&HLOOKUP($I$78,Maximos!$AM$27:$AX$29,3,0) -> 8 de octubre | J79: =HLOOKUP($J$78,Maximos!$AM$27:$AX$29,2,0)&" de "&HLOOKUP($J$78,Maximos!$AM$27:$AX$29,3,0) -> 31 de julio | K79: =HLOOKUP($K$78,Maximos!$AY$27:$BJ$29,2,0)&" de "&HLOOKUP($K$78,Maximos!$AY$27:$BJ$29,3,0) -> 9 de marzo | L79: =HLOOKUP($L$78,Maximos!$AY$27:$BJ$29,2,0)&" de "&HLOOKUP($L$78,Maximos!$AY$27:$BJ$29,3,0) -> 12 de agosto | M79: =HLOOKUP($M$78,Maximos!$BK$27:$BV$29,2,0)&" de "&HLOOKUP($M$78,Maximos!$BK$27:$BV$29,3,0) -> 7 de octubre | N79: =HLOOKUP($N$78,Maximos!$BK$27:$BV$29,2,0)&" de "&HLOOKUP($N$78,Maximos!$BK$27:$BV$29,3,0) -> 22 de junio | O79: =HLOOKUP($O$78,Maximos!$BW$27:$CH$29,2,0)&" de "&HLOOKUP($O$78,Maximos!$BW$27:$CH$29,3,0) -> 10 de octubre | P79: =HLOOKUP($P$78,Maximos!$BW$27:$CH$29,2,0)&" de "&HLOOKUP($P$78,Maximos!$BW$27:$CH$29,3,0) -> 22 de agosto | Q79: =HLOOKUP(Q78,Maximos!CI27:CT29,2,0)&" de "&HLOOKUP(Q78,Maximos!CI27:CT29,3,0) -> 1 de octubre | R79: =HLOOKUP(R78,Maximos!CN27:CQ29,2,0)&" de "&HLOOKUP(R78,Maximos!CN27:CQ29,3,0) -> 23 de agosto | S79: =HLOOKUP(S78,Maximos!CU27:DF29,2,0)&" de "&HLOOKUP(S78,Maximos!CU27:DF29,3,0) -> 28 de octubre | T79: =HLOOKUP(T78,Maximos!CZ27:DC29,2,0)&" de "&HLOOKUP(T78,Maximos!CZ27:DC29,3,0) -> 16 de septiembre | U79: =HLOOKUP(U78,Maximos!DG27:DR29,2,0)&" de "&HLOOKUP(U78,Maximos!DG27:DR29,3,0) -> 5 de octubre | V79: =HLOOKUP(V78,Maximos!DL27:DO29,2,0)&" de "&HLOOKUP(V78,Maximos!DL27:DO29,3,0) -> 13 de agosto | W79: =HLOOKUP(W78,Maximos!DS27:ED29,2,0)&" de "&HLOOKUP(W78,Maximos!DS27:ED29,3,0) -> 18 de octubre | X79: =HLOOKUP(X78,Maximos!DX27:EA29,2,0)&" de "&HLOOKUP(X78,Maximos!DX27:EA29,3,0) -> 10 de agosto | Y79: =HLOOKUP(Y78,Maximos!EE27:EP29,2,0)&" de "&HLOOKUP(Y78,Maximos!EE27:EP29,3,0) -> 4 de marzo | Z79: - | AA79: - | AB79: - | AC79: - | AD79: - | AE79: - | AF79: -
B81: Demanda máxima horaria Ceuta | C81: 2007 | D81: 2007 | E81: 2008 | F81: 2008 | G81: 2009 | H81: 2009 | I81: 2010 | J81: 2010 | K81: 2011 | L81: 2011 | M81: 2012 | N81: 2012 | O81: 2013 | P81: 2013 | Q81: 2014 | R81: 2014 | S81: 2015 | T81: 2015 | U81: 2016 | V81: 2016 | W81: 2017 | X81: 2017 | Y81: 2018 | Z81: 2018 | AA81: 2019 | AB81: 2019 | AC81: 2020 | AD81: 2020 | AE81: 2021 | AF81: 2021
C82: Invierno | D82: Verano | E82: Invierno | F82: Verano | G82: Invierno | H82: Verano | I82: Invierno | J82: Verano | K82: Invierno | L82: Verano | M82: Invierno | N82: Verano | O82: Invierno | P82: Verano | Q82: Invierno | R82: Verano | S82: Invierno | T82: Verano | U82: Invierno | V82: Verano | W82: Invierno | X82: Verano | Y82: Invierno | Z82: Verano | AA82: Invierno | AB82: Verano | AC82: Invierno | AD82: Verano | AE82: Invierno | AF82: Verano
B83: Demanda horaria (MWh) | C83: =MAX(Maximos!C31:G31,Maximos!L31:N31) -> 35.2 | D83: =MAX(Maximos!H31:K31) -> 33.9 | E83: =MAX(Maximos!O31:S31,Maximos!X31:Z31) -> 41.3 | F83: =MAX(Maximos!T31:W31) -> 34.5 | G83: =MAX(Maximos!AA31:AE31,Maximos!AJ31:AL31) -> 40.5 | H83: =MAX(Maximos!AF31:AI31) -> 36.6 | I83: =MAX(Maximos!AM31:AQ31,Maximos!AV31:AX31) -> 39.7 | J83: =MAX(Maximos!AR31:AU31) -> 37.5 | K83: =MAX(Maximos!AY31:BC31,Maximos!BH31:BJ31) -> 35.6 | L83: =MAX(Maximos!BD31:BG31) -> 36.1 | M83: =MAX(Maximos!BK31:BO31,Maximos!BT31:BV31) -> 39.2 | N83: =MAX(Maximos!BP31:BS31) -> 34.5 | O83: =MAX(Maximos!BW31:CA31,Maximos!CF31:CH31) -> 36.2 | P83: =MAX(Maximos!CB31:CE31) -> 34.9 | Q83: =MAX(Maximos!CI31:CM31,Maximos!CR31:CT31) -> 37.3 | R83: =MAX(Maximos!CN31:CQ31) -> 36.5 | S83: =MAX(Maximos!CU31:CY31,Maximos!DD31:DF31) -> 39.5 | T83: =MAX(Maximos!CZ31:DC31) -> 35.8 | U83: =MAX(Maximos!DG31:DK31,Maximos!DP31:DR31) -> 35 | V83: =MAX(Maximos!DL31:DO31) -> 37 | W83: =MAX(Maximos!DS31:DW31,Maximos!EB31:ED31) -> 39 | X83: - | Y83: - | Z83: - | AA83: - | AB83: - | AC83: - | AD83: - | AE83: - | AF83: -
B84: Día | C84: =HLOOKUP($C$83,Maximos!$C$31:$N$37,2,0)&" de "&HLOOKUP($C$83,Maximos!$C$31:$N$37,7,0) -> 24 de enero | D84: =HLOOKUP($D$83,Maximos!$C$31:$N$37,2,0)&" de "&HLOOKUP($D$83,Maximos!$C$31:$N$37,7,0) -> 31 de julio | E84: =HLOOKUP($E$83,Maximos!$O$31:$Z$37,2,0)&" de "&HLOOKUP($E$83,Maximos!$O$31:$Z$37,7,0) -> 15 de diciembre | F84: =HLOOKUP($F$83,Maximos!$O$31:$Z$37,2,0)&" de "&HLOOKUP($F$83,Maximos!$O$31:$Z$37,7,0) -> 6 de agosto | G84: =HLOOKUP($G$83,Maximos!$AA$31:$AL$37,2,0)&" de "&HLOOKUP($G$83,Maximos!$AA$31:$AL$37,7,0) -> 13 de enero | H84: =HLOOKUP($H$83,Maximos!$AA$31:$AL$37,2,0)&" de "&HLOOKUP($H$83,Maximos!$AA$31:$AL$37,7,0) -> 30 de julio | I84: =HLOOKUP($I$83,Maximos!$AM$31:$AX$37,2,0)&" de "&HLOOKUP($I$83,Maximos!$AM$31:$AX$37,7,0) -> 10 de enero | J84: =HLOOKUP($J$83,Maximos!$AM$31:$AX$37,2,0)&" de "&HLOOKUP($J$83,Maximos!$AM$31:$AX$37,7,0) -> 12 de agosto | K84: =HLOOKUP($K$83,Maximos!$AY$31:$BJ$37,2,0)&" de "&HLOOKUP($K$83,Maximos!$AY$31:$BJ$37,7,0) -> 31 de enero | L84: =HLOOKUP($L$83,Maximos!$AY$31:$BJ$37,2,0)&" de "&HLOOKUP($L$83,Maximos!$AY$31:$BJ$37,7,0) -> 30 de junio | M84: =HLOOKUP($M$83,Maximos!$BK$31:$BV$37,2,0)&" de "&HLOOKUP($M$83,Maximos!$BK$31:$BV$37,7,0) -> 13 de febrero | N84: =HLOOKUP($N$83,Maximos!$BK$31:$BV$37,2,0)&" de "&HLOOKUP($N$83,Maximos!$BK$31:$BV$37,7,0) -> 27 de junio | O84: =HLOOKUP(O83,Maximos!BW31:CH37,2,0)&" de "&HLOOKUP(O83,Maximos!BW31:CH37,7,0) -> 28 de febrero | P84: =HLOOKUP(P83,Maximos!BW31:CH37,2,0)&" de "&HLOOKUP(P83,Maximos!BW31:CH37,7,0) -> 5 de septiembre | Q84: =HLOOKUP(Q83,Maximos!CI31:CT37,2,0)&" de "&HLOOKUP(Q83,Maximos!CI31:CT37,7,0) -> 21 de enero | R84: =HLOOKUP(R83,Maximos!CI31:CT37,2,0)&" de "&HLOOKUP(R83,Maximos!CI31:CT37,7,0) -> 1 de septiembre | S84: =HLOOKUP(S83,Maximos!CU31:DF37,2,0)&" de "&HLOOKUP(S83,Maximos!CU31:DF37,7,0) -> 21 de enero | T84: =HLOOKUP(T83,Maximos!CZ31:DC37,2,0)&" de "&HLOOKUP(T83,Maximos!CZ31:DC37,7,0) -> 23 de julio | U84: =HLOOKUP(U83,Maximos!DG31:DR37,2,0)&" de "&HLOOKUP(U83,Maximos!DG31:DR37,7,0) -> 18 de febrero | V84: =HLOOKUP(V83,Maximos!DL31:DO37,2,0)&" de "&HLOOKUP(V83,Maximos!DL31:DO37,7,0) -> 5 de septiembre | W84: =HLOOKUP(W83,Maximos!DS31:ED37,2,0)&" de "&HLOOKUP(W83,Maximos!DS31:ED37,7,0) -> 18 de enero | X84: - | Y84: - | Z84: - | AA84: - | AB84: - | AC84: - | AD84: - | AE84: - | AF84: -
B85: Hora | C85: =HLOOKUP($C$83,Maximos!$C$31:$N$37,3,0) -> 21 | D85: =HLOOKUP($D$83,Maximos!$C$31:$N$37,3,0) -> 22 | E85: =HLOOKUP($E$83,Maximos!$O$31:$Z$37,3,0) -> 21 | F85: =HLOOKUP($F$83,Maximos!$O$31:$Z$37,3,0) -> 22 | G85: =HLOOKUP($G$83,Maximos!$AA$31:$AL$37,3,0) -> 21 | H85: =HLOOKUP($H$83,Maximos!$AA$31:$AL$37,3,0) -> 13 | I85: =HLOOKUP($I$83,Maximos!$AM$31:$AX$37,3,0) -> 21 | J85: =HLOOKUP($J$83,Maximos!$AM$31:$AX$37,3,0) -> 13 | K85: =HLOOKUP($K$83,Maximos!$AY$31:$BJ$37,3,0) -> 21 | L85: =HLOOKUP($L$83,Maximos!$AY$31:$BJ$37,3,0) -> 13 | M85: =HLOOKUP($M$83,Maximos!$BK$31:$BV$37,3,0) -> 21 | N85: =HLOOKUP($N$83,Maximos!$BK$31:$BV$37,3,0) -> 13 | O85: =HLOOKUP(O83,Maximos!BW31:CH37,3,0) -> 21 | P85: =HLOOKUP(P83,Maximos!BW31:CH37,3,0) -> 14 | Q85: =HLOOKUP(Q83,Maximos!CI31:CT37,3,0) -> 22 | R85: =HLOOKUP(R83,Maximos!CI31:CT37,3,0) -> 14 | S85: =HLOOKUP(S83,Maximos!CU31:DF37,3,0) -> 22 | T85: =HLOOKUP(T83,Maximos!CZ31:DC37,3,0) -> 13 | U85: =HLOOKUP(U83,Maximos!DG31:DR37,3,0) -> 21 | V85: =HLOOKUP(V83,Maximos!DL31:DO37,3,0) -> 13 | W85: =HLOOKUP(W83,Maximos!DS31:ED37,3,0) -> 21 | X85: - | Y85: - | Z85: - | AA85: - | AB85: - | AC85: - | AD85: - | AE85: - | AF85: -
B86: Demanda máxima diaria diaria Ceuta | C86: 2007 | D86: 2007 | E86: 2008 | F86: 2008 | G86: 2009 | H86: 2009 | I86: 2010 | J86: 2010 | K86: 2011 | L86: 2011 | M86: 2012 | N86: 2012 | O86: 2013 | P86: 2013 | Q86: 2014 | R86: 2014 | S86: 2015 | T86: 2015 | U86: 2016 | V86: 2016 | W86: 2017 | X86: 2017 | Y86: 2018 | Z86: 2018 | AA86: 2019 | AB86: 2019 | AC86: 2020 | AD86: 2020 | AE86: 2021 | AF86: 2021
C87: Invierno | D87: Verano | E87: Invierno | F87: Verano | G87: Invierno | H87: Verano | I87: Invierno | J87: Verano | K87: Invierno | L87: Verano | M87: Invierno | N87: Verano | O87: Invierno | P87: Verano | Q87: Invierno | R87: Verano | S87: Invierno | T87: Verano | U87: Invierno | V87: Verano | W87: Invierno | X87: Verano | Y87: Invierno | Z87: Verano | AA87: Invierno | AB87: Verano | AC87: Invierno | AD87: Verano | AE87: Invierno | AF87: Verano
B88: Demanda diaria (MWh) | C88: =MAX(Maximos!C35:G35,Maximos!L35:N35) -> 664 | D88: =MAX(Maximos!H35:K35) -> 624 | E88: =MAX(Maximos!O35:S35,Maximos!X35:Z35) -> 723 | F88: =MAX(Maximos!T35:W35) -> 639 | G88: =MAX(Maximos!AA35:AE35,Maximos!AJ35:AL35) -> 713 | H88: =MAX(Maximos!AF35:AI35) -> 672 | I88: =MAX(Maximos!AM35:AQ35,Maximos!AV35:AX35) -> 710.791 | J88: =MAX(Maximos!AR35:AU35) -> 708.654 | K88: =MAX(Maximos!AY35:BC35,Maximos!BH35:BJ35) -> 624.367 | L88: =MAX(Maximos!BD35:BG35) -> 656.436 | M88: =MAX(Maximos!BK35:BO35,Maximos!BT35:BV35) -> 698.387 | N88: =MAX(Maximos!BP35:BS35) -> 663.215 | O88: =MAX(Maximos!BW35:CA35,Maximos!CF35:CH35) -> 649.454 | P88: =MAX(Maximos!CB35:CE35) -> 655.835 | Q88: =MAX(Maximos!CI35:CM35,Maximos!CR35:CT35) -> 671.77 | R88: =MAX(Maximos!CN35:CQ35) -> 670.605 | S88: =MAX(Maximos!CU35:CY35,Maximos!DD35:DF35) -> 713 | T88: =MAX(Maximos!CZ35:DC35) -> 668 | U88: =MAX(Maximos!DG35:DK35,Maximos!DP35:DR35) -> 653.901 | V88: =MAX(Maximos!DL35:DO35) -> 749 | W88: =MAX(Maximos!DS35:DW35,Maximos!EB35:ED35) -> 703.159 | X88: - | Y88: - | Z88: - | AA88: - | AB88: - | AC88: - | AD88: - | AE88: - | AF88: -
B89: Día | C89: =HLOOKUP($C$88,Maximos!$C$35:$N$37,2,0)&" de "&HLOOKUP($C$88,Maximos!$C$35:$N$37,3,0) -> 2 de febrero | D89: =HLOOKUP($D$88,Maximos!$C$35:$N$37,2,0)&" de "&HLOOKUP($D$88,Maximos!$C$35:$N$37,3,0) -> 2 de agosto | E89: =HLOOKUP($E$88,Maximos!$O$35:$Z$37,2,0)&" de "&HLOOKUP($E$88,Maximos!$O$35:$Z$37,3,0) -> 2 de diciembre | F89: =HLOOKUP($F$88,Maximos!$O$35:$Z$37,2,0)&" de "&HLOOKUP($F$88,Maximos!$O$35:$Z$37,3,0) -> 4 de agosto | G89: =HLOOKUP($G$88,Maximos!$AA$35:$AL$37,2,0)&" de "&HLOOKUP($G$88,Maximos!$AA$35:$AL$37,3,0) -> 21 de enero | H89: =HLOOKUP($H$88,Maximos!$AA$35:$AL$37,2,0)&" de "&HLOOKUP($H$88,Maximos!$AA$35:$AL$37,3,0) -> 30 de julio | I89: =HLOOKUP($I$88,Maximos!$AM$35:$AX$37,2,0)&" de "&HLOOKUP($I$88,Maximos!$AM$35:$AX$37,3,0) -> 11 de enero | J89: =HLOOKUP($J$88,Maximos!$AM$35:$AX$37,2,0)&" de "&HLOOKUP($J$88,Maximos!$AM$35:$AX$37,3,0) -> 31 de agosto | K89: =HLOOKUP($K$88,Maximos!$AY$35:$BJ$37,2,0)&" de "&HLOOKUP($K$88,Maximos!$AY$35:$BJ$37,3,0) -> 26 de enero | L89: =HLOOKUP($L$88,Maximos!$AY$35:$BJ$37,2,0)&" de "&HLOOKUP($L$88,Maximos!$AY$35:$BJ$37,3,0) -> 28 de julio | M89: =HLOOKUP($M$88,Maximos!$BK$35:$BV$37,2,0)&" de "&HLOOKUP($M$88,Maximos!$BK$35:$BV$37,3,0) -> 9 de febrero | N89: =HLOOKUP($N$88,Maximos!$BK$35:$BV$37,2,0)&" de "&HLOOKUP($N$88,Maximos!$BK$35:$BV$37,3,0) -> 3 de agosto | O89: =HLOOKUP(O88,Maximos!BW35:CH37,2,0)&" de "&HLOOKUP(O88,Maximos!BW35:CH37,3,0) -> 2 de diciembre | P89: =HLOOKUP(P88,Maximos!BW35:CH37,2,0)&" de "&HLOOKUP(P88,Maximos!BW35:CH37,3,0) -> 21 de agosto | Q89: =HLOOKUP(Q88,Maximos!CI35:CT37,2,0)&" de "&HLOOKUP(Q88,Maximos!CI35:CT37,3,0) -> 21 de enero | R89: =HLOOKUP(R88,Maximos!CI35:CT37,2,0)&" de "&HLOOKUP(R88,Maximos!CI35:CT37,3,0) -> 1 de septiembre | S89: =HLOOKUP(S88,Maximos!CU35:DF37,2,0)&" de "&HLOOKUP(S88,Maximos!CU35:DF37,3,0) -> 21 de enero | T89: =HLOOKUP(T88,Maximos!CZ35:DC37,2,0)&" de "&HLOOKUP(T88,Maximos!CZ35:DC37,3,0) -> 28 de julio | U89: =HLOOKUP(U88,Maximos!DG35:DR37,2,0)&" de "&HLOOKUP(U88,Maximos!DG35:DR37,3,0) -> 19 de diciembre | V89: =HLOOKUP(V88,Maximos!DL35:DO37,2,0)&" de "&HLOOKUP(V88,Maximos!DL35:DO37,3,0) -> 3 de agosto | W89: =HLOOKUP(W88,Maximos!DS35:ED37,2,0)&" de "&HLOOKUP(W88,Maximos!DS35:ED37,3,0) -> 18 de enero | X89: - | Y89: - | Z89: - | AA89: - | AB89: - | AC89: - | AD89: - | AE89: - | AF89: -
B91: Demanda máxima horaria Melilla | C91: 2007 | D91: 2007 | E91: 2008 | F91: 2008 | G91: 2009 | H91: 2009 | I91: 2010 | J91: 2010 | K91: 2011 | L91: 2011 | M91: 2012 | N91: 2012 | O91: 2013 | P91: 2013 | Q91: 2014 | R91: 2014 | S91: 2015 | T91: 2015 | U91: 2016 | V91: 2016 | W91: 2017 | X91: 2017 | Y91: 2018 | Z91: 2018 | AA91: 2019 | AB91: 2019 | AC91: 2020 | AD91: 2020 | AE91: 2021 | AF91: 2021
C92: Invierno | D92: Verano | E92: Invierno | F92: Verano | G92: Invierno | H92: Verano | I92: Invierno | J92: Verano | K92: Invierno | L92: Verano | M92: Invierno | N92: Verano | O92: Invierno | P92: Verano | Q92: Invierno | R92: Verano | S92: Invierno | T92: Verano | U92: Invierno | V92: Verano | W92: Invierno | X92: Verano | Y92: Invierno | Z92: Verano | AA92: Invierno | AB92: Verano | AC92: Invierno | AD92: Verano | AE92: Invierno | AF92: Verano
B93: Demanda horaria (MWh) | C93: =MAX(Maximos!C39:G39,Maximos!L39:N39) -> 34.000001 | D93: =MAX(Maximos!H39:K39) -> 34.6 | E93: =MAX(Maximos!O39:S39,Maximos!X39:Z39) -> 39.3 | F93: =MAX(Maximos!T39:W39) -> 37.8 | G93: =MAX(Maximos!AA39:AE39,Maximos!AJ39:AL39) -> 37.9 | H93: =MAX(Maximos!AF39:AI39) -> 37.8 | I93: =MAX(Maximos!AM39:AQ39,Maximos!AV39:AX39) -> 36.9 | J93: =MAX(Maximos!AR39:AU39) -> 39.2 | K93: =MAX(Maximos!AY39:BC39,Maximos!BH39:BJ39) -> 37.4 | L93: =MAX(Maximos!BD39:BG39) -> 38.5 | M93: =MAX(Maximos!BK39:BO39,Maximos!BT39:BV39) -> 39.9 | N93: =MAX(Maximos!BP39:BS39) -> 37.3 | O93: =MAX(Maximos!BW39:CA39,Maximos!CF39:CH39) -> 36.4 | P93: =MAX(Maximos!CB39:CE39) -> 37.2 | Q93: =MAX(Maximos!CI39:CM39,Maximos!CR39:CT39) -> 35.1 | R93: =MAX(Maximos!CN39:CQ39) -> 38 | S93: =MAX(Maximos!CU39:CY39,Maximos!DD39:DF39) -> 38.3 | T93: =MAX(Maximos!CZ39:DC39) -> 41.7 | U93: =MAX(Maximos!DG39:DK39,Maximos!DP39:DR39) -> 34 | V93: =MAX(Maximos!DL39:DO39) -> 40.000001 | W93: =MAX(Maximos!DS39:DW39,Maximos!EB39:ED39) -> 40 | X93: - | Y93: - | Z93: - | AA93: - | AB93: - | AC93: - | AD93: - | AE93: - | AF93: -
B94: Día | C94: =HLOOKUP($C$93,Maximos!$C$39:$N$45,2,0)&" de "&HLOOKUP($C$93,Maximos!$C$39:$N$45,7,0) -> 31 de diciembre | D94: =HLOOKUP($D$93,Maximos!$C$39:$N$45,2,0)&" de "&HLOOKUP($D$93,Maximos!$C$39:$N$45,7,0) -> 3 de agosto | E94: =HLOOKUP($E$93,Maximos!$O$39:$Z$45,2,0)&" de "&HLOOKUP($E$93,Maximos!$O$39:$Z$45,7,0) -> 16 de diciembre | F94: =HLOOKUP($F$93,Maximos!$O$39:$Z$45,2,0)&" de "&HLOOKUP($F$93,Maximos!$O$39:$Z$45,7,0) -> 27 de agosto | G94: =HLOOKUP($G$93,Maximos!$AA$39:$AL$45,2,0)&" de "&HLOOKUP($G$93,Maximos!$AA$39:$AL$45,7,0) -> 21 de enero | H94: =HLOOKUP($H$93,Maximos!$AA$39:$AL$45,2,0)&" de "&HLOOKUP($H$93,Maximos!$AA$39:$AL$45,7,0) -> 30 de julio | I94: =HLOOKUP($I$93,Maximos!$AM$39:$AX$45,2,0)&" de "&HLOOKUP($I$93,Maximos!$AM$39:$AX$45,7,0) -> 27 de enero | J94: =HLOOKUP($J$93,Maximos!$AM$39:$AX$45,2,0)&" de "&HLOOKUP($J$93,Maximos!$AM$39:$AX$45,7,0) -> 12 de agosto | K94: =HLOOKUP($K$93,Maximos!$AY$39:$BJ$45,2,0)&" de "&HLOOKUP($K$93,Maximos!$AY$39:$BJ$45,7,0) -> 1 de febrero | L94: =HLOOKUP($L$93,Maximos!$AY$39:$BJ$45,2,0)&" de "&HLOOKUP($L$93,Maximos!$AY$39:$BJ$45,7,0) -> 8 de agosto | M94: =HLOOKUP($M$93,Maximos!$BK$39:$BV$45,2,0)&" de "&HLOOKUP($M$93,Maximos!$BK$39:$BV$45,7,0) -> 14 de febrero | N94: =HLOOKUP($N$93,Maximos!$BK$39:$BV$45,2,0)&" de "&HLOOKUP($N$93,Maximos!$BK$39:$BV$45,7,0) -> 23 de agosto | O94: =HLOOKUP(O93,Maximos!BW39:CH45,2,0)&" de "&HLOOKUP(O93,Maximos!BW39:CH45,7,0) -> 12 de febrero | P94: =HLOOKUP(P93,Maximos!BW39:CH45,2,0)&" de "&HLOOKUP(P93,Maximos!BW39:CH45,7,0) -> 26 de agosto | Q94: =HLOOKUP(Q93,Maximos!CI39:CT45,2,0)&" de "&HLOOKUP(Q93,Maximos!CI39:CT45,7,0) -> 29 de enero | R94: =HLOOKUP(R93,Maximos!CI39:CT45,2,0)&" de "&HLOOKUP(R93,Maximos!CI39:CT45,7,0) -> 29 de agosto | S94: =HLOOKUP(S93,Maximos!CU39:DF45,2,0)&" de "&HLOOKUP(S93,Maximos!CU39:DF45,7,0) -> 21 de enero | T94: =HLOOKUP(T93,Maximos!CZ39:DC45,2,0)&" de "&HLOOKUP(T93,Maximos!CZ39:DC45,7,0) -> 7 de agosto | U94: =HLOOKUP(U93,Maximos!DG39:DR45,2,0)&" de "&HLOOKUP(U93,Maximos!DG39:DR45,7,0) -> 7 de marzo | V94: =HLOOKUP(V93,Maximos!DL39:DO45,2,0)&" de "&HLOOKUP(V93,Maximos!DL39:DO45,7,0) -> 29 de agosto | W94: =HLOOKUP(W93,Maximos!DS39:ED45,2,0)&" de "&HLOOKUP(W93,Maximos!DS39:ED45,7,0) -> 19 de enero | X94: - | Y94: - | Z94: - | AA94: - | AB94: - | AC94: - | AD94: - | AE94: - | AF94: -
B95: Hora | C95: =HLOOKUP($C$93,Maximos!$C$39:$N$45,3,0) -> 20 | D95: =HLOOKUP($D$93,Maximos!$C$39:$N$45,3,0) -> 12 | E95: =HLOOKUP($E$93,Maximos!$O$39:$Z$45,3,0) -> 21 | F95: =HLOOKUP($F$93,Maximos!$O$39:$Z$45,3,0) -> 13 | G95: =HLOOKUP($G$93,Maximos!$AA$39:$AL$45,3,0) -> 20 | H95: =HLOOKUP($H$93,Maximos!$AA$39:$AL$45,3,0) -> 13 | I95: =HLOOKUP($I$93,Maximos!$AM$39:$AX$45,3,0) -> 19 | J95: =HLOOKUP($J$93,Maximos!$AM$39:$AX$45,3,0) -> 13 | K95: =HLOOKUP($K$93,Maximos!$AY$39:$BJ$45,3,0) -> 21 | L95: =HLOOKUP($L$93,Maximos!$AY$39:$BJ$45,3,0) -> 13 | M95: =HLOOKUP($M$93,Maximos!$BK$39:$BV$45,3,0) -> 21 | N95: =HLOOKUP($N$93,Maximos!$BK$39:$BV$45,3,0) -> 13 | O95: =HLOOKUP(O93,Maximos!BW39:CH45,3,0) -> 21 | P95: =HLOOKUP(P93,Maximos!BW39:CH45,3,0) -> 14 | Q95: =HLOOKUP(Q93,Maximos!CI39:CT45,3,0) -> 21 | R95: =HLOOKUP(R93,Maximos!CI39:CT45,3,0) -> 14 | S95: =HLOOKUP(S93,Maximos!CU39:DF45,3,0) -> 22 | T95: =HLOOKUP(T93,Maximos!CZ39:DC45,3,0) -> 13 | U95: =HLOOKUP(U93,Maximos!DG39:DR45,3,0) -> 20 | V95: =HLOOKUP(V93,Maximos!DL39:DO45,3,0) -> 13 | W95: =HLOOKUP(W93,Maximos!DS39:ED45,3,0) -> 21 | X95: - | Y95: - | Z95: - | AA95: - | AB95: - | AC95: - | AD95: - | AE95: - | AF95: -
B96: Demanda máxima diaria diaria Melilla | C96: 2007 | D96: 2007 | E96: 2008 | F96: 2008 | G96: 2009 | H96: 2009 | I96: 2010 | J96: 2010 | K96: 2011 | L96: 2011 | M96: 2012 | N96: 2012 | O96: 2013 | P96: 2013 | Q96: 2014 | R96: 2014 | S96: 2015 | T96: 2015 | U96: 2016 | V96: 2016 | W96: 2017 | X96: 2017 | Y96: 2018 | Z96: 2018 | AA96: 2019 | AB96: 2019 | AC96: 2020 | AD96: 2020 | AE96: 2021 | AF96: 2021
C97: Invierno | D97: Verano | E97: Invierno | F97: Verano | G97: Invierno | H97: Verano | I97: Invierno | J97: Verano | K97: Invierno | L97: Verano | M97: Invierno | N97: Verano | O97: Invierno | P97: Verano | Q97: Invierno | R97: Verano | S97: Invierno | T97: Verano | U97: Invierno | V97: Verano | W97: Invierno | X97: Verano | Y97: Invierno | Z97: Verano | AA97: Invierno | AB97: Verano | AC97: Invierno | AD97: Verano | AE97: Invierno | AF97: Verano
B98: Demanda diaria (MWh) | C98: =MAX(Maximos!C43:G43,Maximos!L43:N43) -> 615 | D98: =MAX(Maximos!H43:K43) -> 679 | E98: =MAX(Maximos!O43:S43,Maximos!X43:Z43) -> 640 | F98: =MAX(Maximos!T43:W43) -> 688 | G98: =MAX(Maximos!AA43:AE43,Maximos!AJ43:AL43) -> 663 | H98: =MAX(Maximos!AF43:AI43) -> 726 | I98: =MAX(Maximos!AM43:AQ43,Maximos!AV43:AX43) -> 655.507 | J98: =MAX(Maximos!AR43:AU43) -> 765.994 | K98: =MAX(Maximos!AY43:BC43,Maximos!BH43:BJ43) -> 666.77 | L98: =MAX(Maximos!BD43:BG43) -> 750.249 | M98: =MAX(Maximos!BK43:BO43,Maximos!BT43:BV43) -> 687.139 | N98: =MAX(Maximos!BP43:BS43) -> 741.603 | O98: =MAX(Maximos!BW43:CA43,Maximos!CF43:CH43) -> 641.701 | P98: =MAX(Maximos!CB43:CE43) -> 709.446 | Q98: =MAX(Maximos!CI43:CM43,Maximos!CR43:CT43) -> 627.362 | R98: =MAX(Maximos!CN43:CQ43) -> 724.6 | S98: =MAX(Maximos!CU43:CY43,Maximos!DD43:DF43) -> 673.262 | T98: =MAX(Maximos!CZ43:DC43) -> 782.097 | U98: =MAX(Maximos!DG43:DK43,Maximos!DP43:DR43) -> 627.536 | V98: =MAX(Maximos!DL43:DO43) -> 792.884 | W98: =MAX(Maximos!DS43:DW43,Maximos!EB43:ED43) -> 712.866 | X98: - | Y98: - | Z98: - | AA98: - | AB98: - | AC98: - | AD98: - | AE98: - | AF98: -
B99: Día | C99: =HLOOKUP($C$98,Maximos!$C$43:$N$45,2,0)&" de "&HLOOKUP($C$98,Maximos!$C$43:$N$45,3,0) -> 19 de diciembre | D99: =HLOOKUP($D$98,Maximos!$C$43:$N$45,2,0)&" de "&HLOOKUP($D$98,Maximos!$C$43:$N$45,3,0) -> 1 de agosto | E99: =HLOOKUP($E$98,Maximos!$O$43:$Z$45,2,0)&" de "&HLOOKUP($E$98,Maximos!$O$43:$Z$45,3,0) -> 2 de diciembre | F99: =HLOOKUP($F$98,Maximos!$O$43:$Z$45,2,0)&" de "&HLOOKUP($F$98,Maximos!$O$43:$Z$45,3,0) -> 27 de agosto | G99: =HLOOKUP($G$98,Maximos!$AA$43:$AL$45,2,0)&" de "&HLOOKUP($G$98,Maximos!$AA$43:$AL$45,3,0) -> 12 de enero | H99: =HLOOKUP($H$98,Maximos!$AA$43:$AL$45,2,0)&" de "&HLOOKUP($H$98,Maximos!$AA$43:$AL$45,3,0) -> 5 de agosto | I99: =HLOOKUP($I$98,Maximos!$AM$43:$AX$45,2,0)&" de "&HLOOKUP($I$98,Maximos!$AM$43:$AX$45,3,0) -> 27 de enero | J99: =HLOOKUP($J$98,Maximos!$AM$43:$AX$45,2,0)&" de "&HLOOKUP($J$98,Maximos!$AM$43:$AX$45,3,0) -> 31 de agosto | K99: =HLOOKUP($K$98,Maximos!$AY$43:$BJ$45,2,0)&" de "&HLOOKUP($K$98,Maximos!$AY$43:$BJ$45,3,0) -> 1 de febrero | L99: =HLOOKUP($L$98,Maximos!$AY$43:$BJ$45,2,0)&" de "&HLOOKUP($L$98,Maximos!$AY$43:$BJ$45,3,0) -> 16 de agosto | M99: =HLOOKUP($M$98,Maximos!$BK$43:$BV$45,2,0)&" de "&HLOOKUP($M$98,Maximos!$BK$43:$BV$45,3,0) -> 14 de febrero | N99: =HLOOKUP($N$98,Maximos!$BK$43:$BV$45,2,0)&" de "&HLOOKUP($N$98,Maximos!$BK$43:$BV$45,3,0) -> 10 de agosto | O99: =HLOOKUP(O98,Maximos!BW43:CH45,2,0)&" de "&HLOOKUP(O98,Maximos!BW43:CH45,3,0) -> 12 de febrero | P99: =HLOOKUP(P98,Maximos!BW43:CH45,2,0)&" de "&HLOOKUP(P98,Maximos!BW43:CH45,3,0) -> 6 de agosto | Q99: =HLOOKUP(Q98,Maximos!CI43:CT45,2,0)&" de "&HLOOKUP(Q98,Maximos!CI43:CT45,3,0) -> 1 de octubre | R99: =HLOOKUP(R98,Maximos!CI43:CT45,2,0)&" de "&HLOOKUP(R98,Maximos!CI43:CT45,3,0) -> 29 de agosto | S99: =HLOOKUP(S98,Maximos!CU43:DF45,2,0)&" de "&HLOOKUP(S98,Maximos!CU43:DF45,3,0) -> 21 de enero | T99: =HLOOKUP(T98,Maximos!CZ43:DC45,2,0)&" de "&HLOOKUP(T98,Maximos!CZ43:DC45,3,0) -> 7 de agosto | U99: =HLOOKUP(U98,Maximos!DG43:DR45,2,0)&" de "&HLOOKUP(U98,Maximos!DG43:DR45,3,0) -> 6 de octubre | V99: =HLOOKUP(V98,Maximos!DL43:DO45,2,0)&" de "&HLOOKUP(V98,Maximos!DL43:DO45,3,0) -> 5 de septiembre | W99: =HLOOKUP(W98,Maximos!DS43:ED45,2,0)&" de "&HLOOKUP(W98,Maximos!DS43:ED45,3,0) -> 20 de enero | X99: - | Y99: - | Z99: - | AA99: - | AB99: - | AC99: - | AD99: - | AE99: - | AF99: -

Sheet Año (hidden)
Y1: 1 | Z1: 1
B2: 1990 | C2: 1990-1994 | D2: 2006-2015 | E2: 2006-2010 | F2: 2007-2011 | O2: Peninsular | P2: Mensual
B3: 1991 | C3: 1995-1999 | E3: 2011-2015 | F3: 2012-2016 | O3: Canarias | P3: Anual
B4: 1992 | C4: 2000-2004 | E4: 2016-2020 | F4: 2017-2021 | O4: Baleares
B5: 1993 | C5: 2005-2009 | O5: Ceuta
B6: 1994 | C6: 2010-2014 | O6: Melilla
B7: 1995 | C7: 2015-2019
B8: 1996
B9: 1997
B10: 1998
B11: 1999
B12: 2000
B13: 2001
B14: 2002
B15: 2003
B16: 2004
B17: 2005
B18: 2006
B19: 2007
B20: 2008
B21: 2009
B22: 2010
B23: 2011
B24: 2012
B25: 2013
B26: 2014
B27: 2015
B28: 2016
B29: 2017
